Workbook

Sheet Directors report (hidden)
A1: Di
D9: YEAR ENDED 31 DECEMBER, 2015 | E9: 2015 | F9: 2014
E10: N'000 | F10: N'000
D11: Revenue | E11: ='Stmnt of comp inc'!D12 -> 25,071,122 | F11: 92,325,405
D12: Profit Before Tax | E12: ='Stmnt of comp inc'!D28 -> 626,488 | F12: 1,282,052
D13: Taxation | E13: ='Stmnt of comp inc'!D30 -> (263,125) | F13: (535,649)
D14: Profit for the Year | E14: ='Stmnt of comp inc'!D32 -> 363,363 | F14: 746,403
D15: Proposed Dividend for the Year | E15: - | F15: 223,510
D16: Earnings Per share (Naira) | E16: ='Notes 5 - 11'!G167 -> 1.43 | F16: 2.94
D17: Declared Dividend per 50k share(Kobo) | E17: 88 | F17: 74.93
D18: Net Assets per 50k share | E18: 0 | F18: 7,960

Sheet Cover
A37: MRS Oil Nigeria Plc
A39: Financial Statement - - 31 March 2016
A61: Ist Page
A62: Note first page
A63: Note last page

Sheet Content pg
B13: Contents | I13: Page
B15: Corporate information | I15: 2
B17: Directors' report | I17: 3
B19: Corporate governance report | I19: 11
B21: Statement of directors’ responsibilities | I21: 15
B23: Report of the audit committee | I23: 16
B25: Independent auditor’s report | I25: 17
B27: Statement of financial position | I27: 18
B29: Statement of profit or loss and other comprehensive income | I29: 19
B31: Statement of changes in equity | I31: 20
B33: Statement of cash flows | I33: 21
B35: Index to notes to the financial statements | I35: 22
B37: Notes to the financial statements | I37: 23
B39: Other national disclosures | I39: 60

Sheet Corp Info
B5: Corporate information
B7: RC 6442
B9: Board of directors | C9: Alhaji Sayyu I. Dantata | D9: Chairman
C10: Mr. Andrew O. Gbodume | D10: Managing Director (Ag.)
C11: Mr. Patrice Alberti | D11: Non Executive Director
C12: Mr. Paul Bissohong | D12: Non Executive Director
C13: Dr. Samaila M. Kewa | D13: Non Executive Director
C14: Alhaji Dahiru Lawal Mangal | D14: Non Executive Director
C15: Mr. Lawal Mangal | D15: Alternate Director
C16: Ms Amina Maina | D16: Non Executive Director
B18: Registered office | C18: 8, Macarthy Street
C19: Onikan
C20: Lagos
B22: Company secretary | C22: Mrs. O.M. Jafojo
C23: 8, Macarthy Street
C24: Onikan
C25: Lagos
B27: Registrar | C27: Cardinal Stone Securities (Registrars) Limited -(formerly City Securities)
C28: 358, Albert Macaulay Street
C29: Yaba
C30: Lagos
B32: Auditor | C32: KPMG Professional Services
C33: KPMG Tower
C34: Bishop Aboyade Cole Street
C35: Victoria Island
C36: Lagos
B38: Principal bankers | C38: Access Bank Plc
C39: Citibank Nigeria Limited
C40: First City Monument Bank Plc
C41: First Bank of Nigeria Limited
C42: Standard Chartered Bank Nigeria Limited
C43: Zenith Bank Plc
C44: Skye Bank Plc
C45: Sterling Bank Plc
B47: Leadership team | C47: Andrew O. Gbodume | D47: Oghenekaro Ologe
C48: Managing Director | D48: Information Technology Manager
C50: Oluwakemi M. Jafojo | D50: Timipiri Odu
C51: Company Secretary | D51: Human Resources Manager
C53: Martin Orogun | D53: Andrew Onum
C54: Finance Manager | D54: Chief Legal Counsel
C56: Peter Z. Dia | D56: Abdullahi Masanawa
C57: Aviation Manager | D57: Operations Manager
C59: Roseline Igbokwe | D59: Moruf Sobowale
C60: Sales & Marketing Manager | D60: Consumer & Industrial Manager
C62: Lawrence Molokwu | D62: Kola Akinyemi
C63: Health, Safety and Enviroment Manager | D63: Engineering/Marketing Support Manager
C65: Jubril Hassan | D65: Gloria Atong
C66: Treasury Manager | D66: Procurement Manager
C68: Daniel Chukwuazawom | D68: Charles Onum
C69: Chief Internal Auditor | D69: Lubes Operation Manager
C71: Omoloja Oladipo
C72: Fuel Terminal Manager

Sheet Directors' report (hidden)
B1: MRS Oil Nigeria Plc
B2: Directors’ Report
B3: For the year ended 31 December 2013
B5: The Directors present their Annual Report on the state of affairs of the Company, together with the Audited Financial Statements for the year ended 31 December 2013.
B7: Incorporation and Legal Status of the Company
B8: The Company was incorporated as a privately owned Company in 1969, and was converted to a Public Limited Liability Company quoted on the Nigerian Stock Exchange in 1978, as a result of the 1977 Nigerian Enterprises Promotions Decree. The Company is domiciled in Nigeria and its shares are listed on the Nigerian Stock Exchange (NSE).
B10: The marketing of products in Nigeria commenced in 1913 under the Texaco brand, when they were distributed exclusively by CFAO a French multinational retail company. In 1964 Texaco Africa Limited started direct marketing of Texaco products selling through service stations and kiosks acquired from the said multinational retail company, on lease terms. It also entered into the aviation business.
B12: On 12 August 1969 Texaco Nigeria Limited was incorporated as a wholly-owned subsidiary of Texaco Africa Limited, thus inheriting the business formerly carried out in Nigeria by Texaco Africa Limited. With the promulgation of the Nigeria Indigenization decree in 1978, 40% of Texaco Nigeria Limited was sold to Nigerian individuals and organizations by Texas Petroleum Company.
B14: In 1990, the Companies and Allied Matters Decree came into force and this necessitated the removal of ‘Limited’ from the company’s corporate name to the prescribed ‘Public Limited Liability Company’(PLC) with its shares quoted on the Nigerian Stock Exchange.
B16: Following the creation of ChevronTexaco in 2001 from the merger between Chevron Corporation and former Texaco Inc., Texaco Nigeria Plc became an integral part of the new corporation. As ChevronTexaco considered the acquisition of former Union Oil Company of California (UNOCAL), the board of ChevronTexaco decided to eliminate ‘Texaco’ from the corporate name and retain only Chevron as the new name of the enlarged corporation.
B18: Effective 1 September 2006, the company’s name changed from Texaco Nigeria Plc to Chevron Oil Nigeria Plc following a directive from Chevron Corporation’s headquarters to all affiliate companies. This was designed to present a clear, strong and unified presence of Chevron Corporation throughout the world.
B20: On 20 March 2009 there was an acquisition of Chevron Africa Holdings Limited, (a Bermudian Company) by Corlay Global SA of Moffson Building, East 54th Street, Panama, Republic of Panama. By virtue of this foreign transaction, MRS Africa Holdings Limited gained control of all assets of Chevron Nigeria Holdings Limited, Bermuda.
B22: The new management of the Company announced a change of name of the Company from Chevron Oil Nigeria Plc to MRS Oil Nigeria Plc (“MRS”) effective 2 December 2009 following the ratification of the name change of the Company at the 40th Annual General Meeting of the Company on 29 September 2009.
B24: Currently about 253,988,672 shares are held by about 23,551 Nigerian shareholders and 1 foreign shareholder (MRS Africa Holdings Limited, Bermuda) in MRS Oil Nigeria Plc, a company with the main business of marketing and/or manufacture of petroleum related products in Nigeria. With about 138 active Company owned operating outlets and more than 255 third party owned operating outlets, MRS Oil Nigeria Plc is a major player in Nigeria’s petroleum products marketing industry. MRS is also a leading producer of quality lubricating oils and greases.
B26: Principal Activities:
B27: The Company remains principally engaged in the business of marketing and distribution of refined petroleum products, blending of lubricants and manufacturing of greases.
B29: The summary of results of the company as included in the financial statements are as follows:
B31: YEAR ENDED 31 DECEMBER, 2013 | C31: 2013 | D31: 2012
C32: N'000 | D32: N'000
B33: Revenue | C33: =+'Stmnt of comp inc'!D12 -> 25,071,122 | D33: 79,727,349
B34: Profit Before Tax | C34: =+'Stmnt of comp inc'!D28 -> 626,488 | D34: 378,755
B36: Taxation | C36: =+'Stmnt of comp inc'!D30 -> (263,125) | D36: (173,634)
B38: Profit for the Year | C38: =+C34+C36 -> 363,363 | D38: =+D34+D36 -> 205,121
B40: Proposed Dividend for the Year | C40: 0 | D40: 59,281
B41: Earnings Per share (Naira) | C41: 1.93 | D41: 0.81
B42: Declared Dividend per 50k share(Kobo) | C42: 0 | D42: 23
B43: Net Assets per 50k share | C43: =+'[152]Fin Summary'!B20 -> 7,671 | D43: 7,502

Sheet Directors' responsibilities
B2: Statement of directors’ responsibilities in relation to the financial statements for the period ended 31 March 2016
B5: The directors accept responsibility for the preparation of the annual financial statements set out on pages 18 to 59 that give a true and fair view in accordance with International Financial Reporting Standards (IFRS) and in the manner required by the Companies and Allied Matters Act of Nigeria and the Financial Reporting Council Act, 2011.
B7: The directors further accept responsibility for maintaining adequate accounting records as required by the Companies and Allied Matters Act of Nigeria and for such internal control as the directors determine is necessary to enable the preparation of financial statements that are free from material misstatements whether due to fraud or error.
B9: The directors have made an assessment of the Company's ability to continue as a going concern and have no reason to believe the Company will not remain a going concern in the year ahead.
B13: SIGNED ON BEHALF OF THE BOARD OF DIRECTORS BY:
B17: Signature | F17: Signature
B19: Mr. Andrew Gbodume (Managing Director) | F19: Mr. Paul Bissohong (Director)
B20: Name | F20: Name
B22: FRC/2012/ICAN/00000000534 | F22: FRC/2013/IOD/00000003841
B23: FRC | F23: FRC
B25: Mr. Martins Orogun (Finance Manager)
B26: Name
B29: FRC/2012/ICAN/0000000XXXX
B32: Date | F32: Date

Sheet Stmt of financial position
A4: Statement of financial position
A5: as at 31
I6: (2)
D7: March 2016 | F7: December 2015
B8: Notes
D9: N’000 | F9: N’000
A10: Assets
A11: Property, plant and equipment | B11: 12 | D11: 18,747,905 | F11: 19,053,705 | I11: (305,800) | J11: done
A12: Intangible assets | B12: 13 | D12: 949 | F12: 1,144 | I12: (195) | J12: done
A13: Loans and receivables | B13: 14 | D13: 0 | F13: 0 | I13: 0 | J13: done
A14: Prepayments | B14: 30 | D14: 351,063 | F14: 354,303 | I14: (3,240) | J14: done
A15: Trade and other receivables | B15: 15 | D15: 0 | F15: 1,211 | I15: (1,211) | J15: done
A16: Total non-current assets | D16: 19,099,917 | F16: 19,410,363
A19: Inventories | B19: 17 | D19: 2,402,688 | F19: 6,260,483 | I19: (3,857,795) | J19: done
A20: Loans and receivables | B20: 14 | D20: 594,555 | F20: 606,985 | I20: (12,430) | J20: done
A21: Trade and other receivables | B21: 15 | D21: 17,709,675 | F21: 20,519,974 | I21: (2,810,299) | J21: done
A22: Witholding tax receivables | B22: 16 | D22: 42,902 | F22: 32,348
A23: Prepayments | B23: 30 | D23: 356,145 | F23: 289,191 | I23: 66,954 | J23: done
A24: Cash and cash equivalents | B24: 18 | D24: 26,313,158 | F24: 19,774,397 | I24: 6,538,761
A25: Total current assets | D25: 47,419,123 | E25: 0 | F25: 47,483,378
A28: Total assets | D28: 66,519,040 | F28: 66,893,741 | I28: 0 | AX28: 66,519,039.94
A30: Equity | I30: 66,519,040 | K30: 0
A31: Share capital | B31: 19 | D31: 126,994 | F31: 126,994
A32: Retained earnings | D32: 21,213,693 | F32: 20,850,330 | I32: 363,363
A34: Total equity | D34: 21,340,687 | E34: 0 | F34: 20,977,324 | K34: 7,566,643
A37: Liabilities | K37: 0
A39: Employee benefit obligations | B39: 20 | D39: 13,774 | F39: 12,618 | I39: 1,156
A40: Deferred tax liabilities | D40: 5,312,099 | F40: 5,312,099 | I40: 0
A42: Total non-current liabilities | D42: 5,325,873 | F42: 5,324,717
A44: Security deposits | B44: 21 | D44: 1,581,293 | F44: 1,573,485 | I44: 7,808 | J44: done
A45: Dividend payable | B45: 22(a) | D45: 395,637 | F45: 399,889 | I45: (4,252)
A46: Trade and other payables | B46: 23 | D46: 21,595,863 | F46: 21,226,030 | I46: 369,833
A47: Bank overdraft and short term borrowings | B47: 24 | D47: 15,024,732 | F47: 16,400,466 | I47: (1,375,734)
A48: Tax payable | B48: 11(c) | D48: 1,254,955 | F48: 991,830 | I48: 263,125 | J48: done
A50: Total current liabilities | D50: 39,852,480 | F50: 40,591,700
A52: Total liabilities | B52: 0 | D52: 45,178,353 | E52: 0 | F52: 45,916,417 | AY52: 45,178,353
A54: Total equity and liabilities | D54: 66,519,040 | E54: 0 | F54: 66,893,741 | AX54: (0.0311)
A56: Approved by the Board of Directors on ____________2016 and signed on its behalf by:
B58: )Mr. Andrew Gbodume (Managing Director) FRC/2012/ICAN/00000000534
B60: ) Mr. Paul Bissohong (Director) FRC/2013/IOD/00000003841
B62: ) Mr. Martin Orogun (Chief Financial Officer) FRC/2013/ICAN/00000004639
A64: The notes on pages 23 to 59 are an integral part of these financial statements.

Sheet Stmnt of comp inc
A6: Statement of profit or loss and other comprehensive income
A7: for the period ended 31
B9: Notes | D9: March 2016 | F9: March 2015
D11: N’000 | F11: N’000
A12: Revenue | B12: 5 | D12: 25,071,122 | F12: 21,339,069
A13: Cost of sales | B13: 7 | D13: (23,315,418) | F13: (19,721,369)
A15: Gross profit | D15: 1,755,704 | F15: 1,617,700 | J15: 7% | CO15: 1,755,704.00
J16: 3.04%
A17: Other income | B17: 6 | D17: 381,650 | F17: 340,231
A18: Selling and distribution expenses | B18: 7 | D18: (207,893) | F18: (217,110)
A19: Administrative expenses | B19: 7 | D19: (1,304,911) | F19: (1,148,462)
A21: Operating profit | D21: 624,550 | F21: 592,359 | J21: 169%
A23: Finance income | B23: 8 | D23: 169,516 | F23: 61,740
A24: Finance costs | B24: 8 | D24: (167,578) | F24: (1,388,614)
A26: Net finance costs | B26: 8 | D26: 1,938 | F26: (1,326,874)
A28: Profit before income tax | B28: 9 | D28: 626,488 | F28: (734,515)
A30: Income tax expense | B30: 11(a) | D30: (263,125) | F30: (185,314)
A32: Profit for the period | D32: 363,363 | F32: (919,829)
K33: 253,988,672 | M33: 253,989
A35: Other Comprehensive Income, net of income tax | K35: 109,009
A36: Items that will never be reclassified subsequently to profit or loss:
A37: Actuarial gains on post-employment benefit obligation | D37: 0 | F37: 0 | M37: 0.4292
A38: Income tax effect | B38: 11(b) | D38: 0 | F38: 0
M39: 1
A40: Other comprehensive income, net of tax | D40: 0 | F40: 0 | M40: 190,339
A42: Total comprehensive income for the period | D42: 363,363 | F42: (919,829) | I42: 762,483 | J42: 0
A45: Earnings per share (EPS)
A46: Basic and diluted earnings per share (Naira) | B46: 10(a) | D46: 1.43 | F46: (3.62)
J48: 52,671
A49: The notes on pages 23 to 59 are an integral part of these financial statements.

Sheet Stmt of changes in equity
A7: Statement of changes in equity
A8: for the Period ended 31 March
D9: *
C10: Share capital | D10: Retained earnings | F10: Total equity
B11: Notes
C12: N’000 | D12: N’000 | F12: N’000
A13: Balance as at 1 January 2015 | C13: 126,994 | D13: 20,091,127 | F13: 20,218,121
A14: Total comprehensive income:
A15: Profit for the year | C15: 0 | D15: (919,829) | F15: (919,829)
A16: Other comprehensive income | C16: 0 | D16: 0 | F16: 0 | I16: 19,629,147
A17: Total comprehensive income for the year | C17: 0 | D17: (919,829) | F17: (919,829)
A19: Transactions with owners of the Company
A20: Contributions and Distributions
A21: Dividends declared | B21: 22 (b) | D21: 0 | F21: 0
A22: Unclaimed dividend written back | B22: 22 (b) | C22: 0 | D22: 0 | F22: 0
A23: Total transactions with owners of the Company | C23: 0 | D23: 0 | F23: 0
A26: Balance as at 31 March 2015 | C26: 126,994 | D26: 19,171,298 | F26: 19,298,292
C27: Share capital | D27: Retained earnings | F27: Total equity
B28: Notes
C29: N’000 | D29: N’000 | F29: N’000
A30: Balance as at 1 January 2016 | C30: 126,994 | D30: 20,850,330 | F30: 20,977,324
A31: Total comprehensive income:
A32: Profit for the year | C32: 0 | D32: 363,363 | F32: 363,363
A33: Other comprehensive income | C33: 0 | D33: 0 | F33: 0
A35: Total comprehensive income | C35: 0 | D35: 363,363 | F35: 363,363
A37: Transactions with owners of the Company
A38: Contributions and Distributions
A39: Dividends declared | B39: 23 (b) | C39: 0 | D39: 0 | F39: 0
A40: Unclaimed dividend written back | B40: 23 (b) | D40: 0 | F40: 0
A41: Total transactions with owners of the Company | C41: 0 | D41: 0 | F41: 0
A43: Balance as at 31 March 2016 | C43: 126,994 | D43: 21,213,693 | F43: 21,340,687
A45: *
A46: Included in retained earnings is N14.40 billion (2015: N14.40 billion) which represents revaluation surplus on Property, plant and equipment transferred at IFRS transition date. The Company has opted not to distribute this amount.
E49: 20,930,527,071
A51: The notes on pages 23 to 59 are an integral part of these financial statements.

Sheet Stmt of cash flows
A1: Statement of cash flows
A2: for the period ended 31
B4: Notes | D4: March 2016 | F4: March 2015 | H4: checks
D6: N’000 | F6: N’000
A7: Cash flows from operating activities:
A8: Profit after tax | D8: 363,363 | F8: (919,829)
A10: Adjustments for:
A11: Depreciation | B11: 12(a) | D11: 399,894 | F11: 403,268 | R11: unrealized gain | T11: (175,245,064) | V11: (175,245.0)
A12: Amortisation of intangible assets | B12: 13 | D12: 195 | F12: 27,909 | L12: Loss on Disposal | R12: unrealized loss | T12: 135,867,535 | V12: 135,868.0
A13: Finance income | B13: 8 | D13: (169,516) | F13: (61,740) | H13: (157,537) | K13: NBV | R13: Net unrealised gain | T13: (39,377,529) | V13: (39,377.0)
A14: Finance costs | D14: 77,432 | F14: 181,709 | K14: Proceeds | L14: (2,000) | P14: 3,215
A15: Gain on sale of property, plant and equipment | B15: 9(a) | D15: 0 | F15: (2,000) | K15: Loss
A16: (Write-back)/Provision for long-term service award | B16: 20 | D16: 1,156 | F16: 1,837
A17: Impairment loss on trade receivables - net | B17: 7 | D17: 0 | F17: 0
A18: Impairment loss on non-current assets | B18: 7 | D18: 0 | F18: 0
A19: Impairment loss on employee and other receivables | B19: 7 | D19: 0 | F19: 0
A20: Net increase in impairment loss on inventory | B20: 17 | D20: 0 | F20: 0
A21: Tax expense | B21: 11(a) | D21: 263,125 | F21: 185,314
D22: 935,649 | F22: (183,532)
A23: Changes in:
A24: - Inventories | D24: 3,857,795 | F24: 921,563 | P24: 1,940 | R24: unrealized forex gain on bank | T24: (31,769)
A25: - Trade, other receivables and prepayments | D25: 2,737,242 | F25: (4,028,223) | R25: unrealized forex gain on payables | T25: (7,608)
A26: - Security deposits | D26: 7,808 | F26: 32,105
A27: - Trade and other payables | D27: 369,833 | F27: 3,955,386
A28: Cash generated from operating activities | D28: 7,908,327 | F28: 697,299
A30: Income taxes paid | B30: 11(c) | D30: 0 | F30: 0
A31: Withholding tax credit notes utilised | B31: 11(c) | D31: 0 | F31: 0 | R31: (972)
A32: Long-term service award paid | B32: 20 | D32: 0 | F32: 0
A33: Value added tax paid | D33: 0 | F33: 0 | R33: 368
A35: Net cash generated from operating activities | D35: 7,908,327 | F35: 697,299
A37: Cash flows from investing activities: | P37: (1,630,770)
A38: Proceeds from sale of property, plant and equipment | D38: 0 | F38: 2,000
A39: Purchase of property, plant and equipment | B39: 12(a) | D39: (94,094) | F39: (138,996)
A40: Purchase of intangible assets | B40: 13 | D40: 0 | F40: 0
A41: Amounts paid on behalf of transporters | B41: 14 | D41: (35,506) | F41: 0 | P41: 12,430 | T41: (39,377)
A42: Principal repayment received on amounts advanced to transporters | B42: 14 | D42: 47,936 | F42: 91,797 | P42: 10,311
A43: Interest received | B43: 8 | D43: 169,516 | F43: 61,740 | P43: (1,643,200)
A45: Net cash generated from investing activities | D45: 87,852 | F45: 16,541
A47: Cash flows from financing activities:
A48: Net repayment on short term borrowings | D48: (1,375,734) | F48: (3,087,723)
A49: Dividends paid | B49: 22(b) | D49: (4,252) | F49: (6,182)
A50: Interest paid | D50: (77,432) | F50: (181,709)
A52: Net cash used in financing activities | D52: (1,457,418) | F52: (3,275,614)
A54: Net change in cash and cash equivalents | D54: 6,538,761 | F54: (2,561,774)
A55: Cash and cash equivalents at 1 January | D55: 19,774,397 | F55: 9,683,802
A56: Effect of movements in exchange rates on cash held | F56: 0 | P56: effect is a drop in exchange rate which results in a decrease in bank balance
A58: Cash and cash equivalents at 31 | B58: 18 | D58: 26,313,158 | F58: 7,122,028 | P58: 8,886,913
P59: (1,764,885)
A60: The notes on pages 23 to 59 are an integral part of these financial statements.

Sheet Cashflow worksheet (hidden)
A2: CASH FLOW WORKSHEET
A4: Finance Cost:
A5: Interest expense | C5: a | D5: ='Notes 5 - 11'!G72 -> 35,314
A6: Bank Charges | C6: b | D6: ='Notes 5 - 11'!G73 -> 42,118
A7: Interest Paid | C7: c=a+b | D7: =SUM(D5:D6) -> 77,432
A8: Effect of movements in exchange rates on cash held | C8: d | D8: =-'Stmt of cash flows'!D56 -> 0
A9: Finance cost | C9: e=c+d | D9: =D7+D8 -> 77,432
A11: Property, plant and equipment
A12: Cost on disposal | C12: f | D12: 0
A13: Accum. Dep on disposal | C13: g | D13: 0
A14: NBV | C14: h=f+g | D14: =SUM(D12:D13) -> 0
A15: Proceeds on sale of PPE | C15: i | D15: ='Stmt of cash flows'!D38 -> 0
A16: Gain on disposal | C16: j=h+i | D16: =D14+D15 -> 0
A19: Trade and other receivables
A20: 2013
A21: Prepayments - non current | D21: ='Stmt of financial position'!F14 -> 354,303
A22: Trade and other receivables - non current | D22: ='Stmt of financial position'!F15 -> 1,211
A23: Trade and other receivables - current | D23: ='Stmt of financial position'!F21 -> 20,519,974
A24: Prepayments - current | D24: ='Stmt of financial position'!F23 -> 289,191
C26: l | D26: =SUM(D21:D25) -> 21,164,679
A28: 2014
A29: Prepayments - non current | D29: ='Stmt of financial position'!D14 -> 351,063
A30: Trade and other receivables - non current | D30: ='Stmt of financial position'!D15 -> 0
A31: Trade and other receivables - current | D31: ='Stmt of financial position'!D21 -> 17,709,675
A32: Prepayments - current | D32: ='Stmt of financial position'!D23 -> 356,145
C34: l | D34: =SUM(D29:D33) -> 18,416,883
C36: m=k-l | D36: =D26-D34 -> 2,747,796
A37: ='Stmt of cash flows'!A17 -> Impairment loss on trade receivables - net | B37: less: | D37: =-'Stmt of cash flows'!D17 -> 0
A38: ='Stmt of cash flows'!A19 -> Impairment loss on employee and other receivables | B38: less: | D38: =-'Stmt of cash flows'!D19 -> 0
A40: Net changes Trade, other receivables and prepayments | D40: =SUM(D36:D38) -> 2,747,796
A42: Trade and other payables
A43: 2013
A44: Trade and other payables | C44: n | D44: ='Stmt of financial position'!F46 -> 21,226,030
A45: 2014
A46: Trade and other payables | C46: o | D46: ='Stmt of financial position'!D46 -> 21,595,863
A47: Net changes in Trade payables | C47: z=n-o | D47: =D44-D46 -> (369,833)
A50: 2013
A51: Inventories | C51: n2 | D51: ='Stmt of financial position'!F19 -> 6,260,483
A53: 2014
A54: Inventories | D54: ='Stmt of financial position'!D19 -> 2,402,688
A55: Reversal of impairment loss | D55: ='Stmt of cash flows'!D20 -> 0
C56: n2 | D56: =SUM(D54:D55) -> 2,402,688
A58: Changes in Inventories | C58: z=n2-n1 | D58: =D56-D51 -> (3,857,795)
A61: 2014
A62: short term borrowings | C62: p | D62: ='Notes 13 - 29'!I328 -> 15,024,732
A64: Net Repayment on Short-Term Borrowings | C64: q=n:p | D64: =D67-D62 -> 1,375,734
A66: 2013
A67: short term borrowings | C67: p | D67: ='Notes 13 - 29'!K328 -> 16,400,466
A71: Effects of exchange rate on cash and cash equivalent
B74: USD
A75: Opening balance of cash and cash equiv (USD) | B75: 789.00 | C75: 167.5 | D75: year-end rate | E75: x | F75: =B75*C75 -> 132,157.50
A77: 2014 transactions | B77: 2,062.42 | C77: 192.64 | D77: Average rate | E77: y | F77: =B77*C77 -> 397,304.09
A79: Closing balance (calculated) | E79: z=x+y | F79: =F75+F77 -> 529,461.59
A81: closing balance of cash equiv @ year end spot rate | B81: 2,851.42 | C81: 196.5 | D81: year-end rate | F81: =B81*C81 -> 560,303.52
A83: Effect of movements in exchange rates on cash held | F83: =F81-F79 -> 30,841.93

Sheet TB December 2013 (hidden)
A1: MRS Oil Nig. Plc
A2: Trial Balance as at December 31 2013 | E2: YTD as at Dec. 2013
A4: 1011000 | B4: Good Will | C4: Intangible assets | E4: =VLOOKUP(A4,'[153]MON 2013 Final TB '!$A$4:$D$1438,4,0) -> 0
A5: 1011200 | B5: Patents (process, formulas, etc.) | C5: Intangible assets | E5: =VLOOKUP(A5,'[153]MON 2013 Final TB '!$A$4:$D$1438,4,0) -> 0
A6: 1011300 | B6: Royalty Rights (other than gas and oil) | C6: Intangible assets | E6: =VLOOKUP(A6,'[153]MON 2013 Final TB '!$A$4:$D$1438,4,0) -> 0
A7: 1011400 | B7: Contracts (grants to dealers, etc.) | C7: Intangible assets | E7: =VLOOKUP(A7,'[153]MON 2013 Final TB '!$A$4:$D$1438,4,0) -> 0
A8: 1011500 | B8: Copyrights | C8: Intangible assets | E8: =VLOOKUP(A8,'[153]MON 2013 Final TB '!$A$4:$D$1438,4,0) -> 0
A9: 1011600 | B9: Franchises (O/T riparian rights and rights-of-way) | C9: Intangible assets | E9: =VLOOKUP(A9,'[153]MON 2013 Final TB '!$A$4:$D$1438,4,0) -> 0
A10: 1011700 | B10: Research & Studies | C10: Intangible assets | E10: =VLOOKUP(A10,'[153]MON 2013 Final TB '!$A$4:$D$1438,4,0) -> 0
A11: 1011800 | B11: SAP Software (>US$1m) | C11: Intangible assets | E11: =VLOOKUP(A11,'[153]MON 2013 Final TB '!$A$4:$D$1438,4,0) -> 162,640,897.20
A12: 1011900 | B12: Other Software (<US$1m) | C12: Intangible assets | E12: =VLOOKUP(A12,'[153]MON 2013 Final TB '!$A$4:$D$1438,4,0) -> 17,667,779.42
A13: 1012000 | B13: Licenses | C13: Intangible assets | E13: =VLOOKUP(A13,'[153]MON 2013 Final TB '!$A$4:$D$1438,4,0) -> 0
A14: 1021000 | B14: Unoperated Acreage | C14: Intangible assets | E14: =VLOOKUP(A14,'[153]MON 2013 Final TB '!$A$4:$D$1438,4,0) -> 0
A15: 1031000 | B15: Operated Acreage | C15: Intangible assets | E15: =VLOOKUP(A15,'[153]MON 2013 Final TB '!$A$4:$D$1438,4,0) -> 0
A16: 1051000 | B16: Freehold Land | C16: Property, plant and equipment | E16: =VLOOKUP(A16,'[153]MON 2013 Final TB '!$A$4:$D$1438,4,0) -> 11,950,827,379.18
A17: 1061000 | B17: Capital Leases | C17: Property, plant and equipment | E17: =VLOOKUP(A17,'[153]MON 2013 Final TB '!$A$4:$D$1438,4,0) -> 0
A18: 1071000 | B18: Leasehold land | C18: Property, plant and equipment | E18: =VLOOKUP(A18,'[153]MON 2013 Final TB '!$A$4:$D$1438,4,0) -> 0
A19: 1082000 | B19: Leasehold Land & Buildings | C19: Property, plant and equipment | E19: =VLOOKUP(A19,'[153]MON 2013 Final TB '!$A$4:$D$1438,4,0) -> 0
A20: 1091100 | B20: Land & Buildings - General | C20: Property, plant and equipment | E20: =VLOOKUP(A20,'[153]MON 2013 Final TB '!$A$4:$D$1438,4,0) -> 0
A21: 1101000 | B21: Buildings & Improvements | C21: Property, plant and equipment | E21: =VLOOKUP(A21,'[153]MON 2013 Final TB '!$A$4:$D$1438,4,0) -> 1,853,833,858.39
A22: 1102000 | B22: Office Partitions | C22: Property, plant and equipment | E22: =VLOOKUP(A22,'[153]MON 2013 Final TB '!$A$4:$D$1438,4,0) -> 0
A23: 1103000 | B23: Drainage & Driveways | C23: Property, plant and equipment | E23: =VLOOKUP(A23,'[153]MON 2013 Final TB '!$A$4:$D$1438,4,0) -> 0
A24: 1104000 | B24: Fences | C24: Property, plant and equipment | E24: =VLOOKUP(A24,'[153]MON 2013 Final TB '!$A$4:$D$1438,4,0) -> 0
A25: 1105000 | B25: Pipes & Fittings (Pipe Work - Lines) | C25: Property, plant and equipment | E25: =VLOOKUP(A25,'[153]MON 2013 Final TB '!$A$4:$D$1438,4,0) -> (327,670,012.70)
A26: 1106000 | B26: Power lines and yard light | C26: Property, plant and equipment | E26: =VLOOKUP(A26,'[153]MON 2013 Final TB '!$A$4:$D$1438,4,0) -> 47,518,420.00
A27: 1111100 | B27: Petroleum Refinery Plant & Gas Plant | C27: Property, plant and equipment | E27: =VLOOKUP(A27,'[153]MON 2013 Final TB '!$A$4:$D$1438,4,0) -> 0
A28: 1111300 | B28: Boilers | C28: Property, plant and equipment | E28: =VLOOKUP(A28,'[153]MON 2013 Final TB '!$A$4:$D$1438,4,0) -> 104,695,604.28
A29: 1111400 | B29: Laboratory Equip, Dormitories & Hospitals | C29: Property, plant and equipment | E29: =VLOOKUP(A29,'[153]MON 2013 Final TB '!$A$4:$D$1438,4,0) -> 3,255,906.75
A30: 1111500 | B30: Fire Fighting Equipment | C30: Property, plant and equipment | E30: =VLOOKUP(A30,'[153]MON 2013 Final TB '!$A$4:$D$1438,4,0) -> 150,179,362.14
A31: 1111550 | B31: Workshop Equipment | C31: Property, plant and equipment | E31: =VLOOKUP(A31,'[153]MON 2013 Final TB '!$A$4:$D$1438,4,0) -> 336,519,931.95
A32: 1111600 | B32: Loading Racks / Loading Arms (Pipe Work & Machi) | C32: Property, plant and equipment | E32: =VLOOKUP(A32,'[153]MON 2013 Final TB '!$A$4:$D$1438,4,0) -> 825,184,216.70
A33: 1111700 | B33: Maintenance & Shop Equipment | C33: Property, plant and equipment | E33: =VLOOKUP(A33,'[153]MON 2013 Final TB '!$A$4:$D$1438,4,0) -> 0
A34: 1111800 | B34: Aviation Equipment | C34: Property, plant and equipment | E34: =VLOOKUP(A34,'[153]MON 2013 Final TB '!$A$4:$D$1438,4,0) -> 0
A35: 1111900 | B35: Communications Systems, Radio and etc | C35: Property, plant and equipment | E35: =VLOOKUP(A35,'[153]MON 2013 Final TB '!$A$4:$D$1438,4,0) -> 23,230,744.00
A36: 1112200 | B36: Industrial Mobile Equipment | C36: Property, plant and equipment | E36: =VLOOKUP(A36,'[153]MON 2013 Final TB '!$A$4:$D$1438,4,0) -> 0
A37: 1112300 | B37: Compressors and Blowers | C37: Property, plant and equipment | E37: =VLOOKUP(A37,'[153]MON 2013 Final TB '!$A$4:$D$1438,4,0) -> 60,235,357.53
A38: 1112400 | B38: Steam & Electric Generation/Dist. System - General | C38: Property, plant and equipment | E38: =VLOOKUP(A38,'[153]MON 2013 Final TB '!$A$4:$D$1438,4,0) -> 381,805,231.29
A39: 1112500 | B39: Auto Mainte/Repair Equip / Service Equi - Other | C39: Property, plant and equipment | E39: =VLOOKUP(A39,'[153]MON 2013 Final TB '!$A$4:$D$1438,4,0) -> 0
A40: 1112600 | B40: Pumps - Retail Outfit,Kerbside,Dispencers | C40: Property, plant and equipment | E40: =VLOOKUP(A40,'[153]MON 2013 Final TB '!$A$4:$D$1438,4,0) -> 594,673,212.56
A41: 1112700 | B41: Retail Signs, Canopies,Shop Equipment | C41: Property, plant and equipment | E41: =VLOOKUP(A41,'[153]MON 2013 Final TB '!$A$4:$D$1438,4,0) -> 654,164,818.80
A42: 1112750 | B42: Shop Equipment | C42: Property, plant and equipment | E42: =VLOOKUP(A42,'[153]MON 2013 Final TB '!$A$4:$D$1438,4,0) -> 0
A43: 1112800 | B43: Retail Yard Light & Power Line | C43: Property, plant and equipment | E43: =VLOOKUP(A43,'[153]MON 2013 Final TB '!$A$4:$D$1438,4,0) -> 0
A44: 1112900 | B44: Service Stations / Consumer Pipe & Fittings | C44: Property, plant and equipment | E44: =VLOOKUP(A44,'[153]MON 2013 Final TB '!$A$4:$D$1438,4,0) -> 0
A45: 1113000 | B45: Storage Tanks | C45: Property, plant and equipment | E45: =VLOOKUP(A45,'[153]MON 2013 Final TB '!$A$4:$D$1438,4,0) -> 7,044,930,794.40
A46: 1121100 | B46: Light Automotive Equipment (Motor Vehicles) | C46: Property, plant and equipment | E46: =VLOOKUP(A46,'[153]MON 2013 Final TB '!$A$4:$D$1438,4,0) -> 952,297,715.75
A47: 1121200 | B47: Heavy Automotive Equipment (Motor Vehicles) | C47: Property, plant and equipment | E47: =VLOOKUP(A47,'[153]MON 2013 Final TB '!$A$4:$D$1438,4,0) -> 406,861,494.29
A48: 1131100 | B48: Aviation Refueling Equipment | C48: Property, plant and equipment | E48: =VLOOKUP(A48,'[153]MON 2013 Final TB '!$A$4:$D$1438,4,0) -> 540,794,622.72
A49: 1141000 | B49: Marine Vessels- Ocean going ships | C49: Property, plant and equipment | E49: =VLOOKUP(A49,'[153]MON 2013 Final TB '!$A$4:$D$1438,4,0) -> 0
A50: 1141200 | B50: Water Trans - Vessels operating on inland waters | C50: Property, plant and equipment | E50: =VLOOKUP(A50,'[153]MON 2013 Final TB '!$A$4:$D$1438,4,0) -> 0
A51: 1151000 | B51: Home furniture | C51: Property, plant and equipment | E51: =VLOOKUP(A51,'[153]MON 2013 Final TB '!$A$4:$D$1438,4,0) -> 0
A52: 1151100 | B52: Office Furniture & Fitxtures | C52: Property, plant and equipment | E52: =VLOOKUP(A52,'[153]MON 2013 Final TB '!$A$4:$D$1438,4,0) -> 191,301,199.66
A53: 1151200 | B53: Shop furniture & fittings | C53: Property, plant and equipment | E53: =VLOOKUP(A53,'[153]MON 2013 Final TB '!$A$4:$D$1438,4,0) -> 0
A54: 1161100 | B54: Office Equipment | C54: Property, plant and equipment | E54: =VLOOKUP(A54,'[153]MON 2013 Final TB '!$A$4:$D$1438,4,0) -> 149,393,471.25
A55: 1171000 | B55: IT Equipment, Computers, Copiers & Faxes | C55: Property, plant and equipment | E55: =VLOOKUP(A55,'[153]MON 2013 Final TB '!$A$4:$D$1438,4,0) -> 623,286,557.46
A56: 1181000 | B56: Low Value Assets | C56: Property, plant and equipment | E56: =VLOOKUP(A56,'[153]MON 2013 Final TB '!$A$4:$D$1438,4,0) -> 0
A57: 1191000 | B57: Surplus Equip Available for Sales or Abandon | C57: Property, plant and equipment | E57: =VLOOKUP(A57,'[153]MON 2013 Final TB '!$A$4:$D$1438,4,0) -> 0
A58: 1200010 | B58: AUC- Goodwill | C58: Property, plant and equipment | E58: =VLOOKUP(A58,'[153]MON 2013 Final TB '!$A$4:$D$1438,4,0) -> 0
A59: 1200020 | B59: AUC-Patents (process, formulas, etc.) | C59: Property, plant and equipment | E59: =VLOOKUP(A59,'[153]MON 2013 Final TB '!$A$4:$D$1438,4,0) -> 0
A60: 1200030 | B60: AUC-Royalty Rights (other than gas and oil) | C60: Property, plant and equipment | E60: =VLOOKUP(A60,'[153]MON 2013 Final TB '!$A$4:$D$1438,4,0) -> 0
A61: 1200040 | B61: AUC-Contracts (grants to dealers, etc.) | C61: Property, plant and equipment | E61: =VLOOKUP(A61,'[153]MON 2013 Final TB '!$A$4:$D$1438,4,0) -> 0
A62: 1200050 | B62: AUC-Copyrights | C62: Property, plant and equipment | E62: =VLOOKUP(A62,'[153]MON 2013 Final TB '!$A$4:$D$1438,4,0) -> 0
A63: 1200060 | B63: AUC-Franchises (O/T riparian rig and rig-of-way) | C63: Property, plant and equipment | E63: =VLOOKUP(A63,'[153]MON 2013 Final TB '!$A$4:$D$1438,4,0) -> 0
A64: 1200070 | B64: AUC-Research & Studies | C64: Property, plant and equipment | E64: =VLOOKUP(A64,'[153]MON 2013 Final TB '!$A$4:$D$1438,4,0) -> 0
A65: 1200080 | B65: AUC-SAP Software (>US$1m) | C65: Property, plant and equipment | E65: =VLOOKUP(A65,'[153]MON 2013 Final TB '!$A$4:$D$1438,4,0) -> 0
A66: 1200090 | B66: AUC-Other Software (<US$1m) | C66: Property, plant and equipment | E66: =VLOOKUP(A66,'[153]MON 2013 Final TB '!$A$4:$D$1438,4,0) -> 0
A67: 1200100 | B67: AUC-Unoperated Acreage | C67: Property, plant and equipment | E67: =VLOOKUP(A67,'[153]MON 2013 Final TB '!$A$4:$D$1438,4,0) -> 0
A68: 1200110 | B68: AUC-Operated Acreage | C68: Property, plant and equipment | E68: =VLOOKUP(A68,'[153]MON 2013 Final TB '!$A$4:$D$1438,4,0) -> 0
A69: 1200200 | B69: AUC-Freehold Land | C69: Property, plant and equipment | E69: =VLOOKUP(A69,'[153]MON 2013 Final TB '!$A$4:$D$1438,4,0) -> 0
A70: 1200210 | B70: AUC-Other Capital Leases | C70: Property, plant and equipment | E70: =VLOOKUP(A70,'[153]MON 2013 Final TB '!$A$4:$D$1438,4,0) -> 0
A71: 1200220 | B71: AUC-Leasehold Land | C71: Property, plant and equipment | E71: =VLOOKUP(A71,'[153]MON 2013 Final TB '!$A$4:$D$1438,4,0) -> 0
A72: 1200230 | B72: AUC-Leasehold Land & Buildings | C72: Property, plant and equipment | E72: =VLOOKUP(A72,'[153]MON 2013 Final TB '!$A$4:$D$1438,4,0) -> 0
A73: 1200240 | B73: AUC-Leasehold Land & Buildings Improvements | C73: Property, plant and equipment | E73: =VLOOKUP(A73,'[153]MON 2013 Final TB '!$A$4:$D$1438,4,0) -> 0
A74: 1200250 | B74: AUC-Building lease land | C74: Property, plant and equipment | E74: =VLOOKUP(A74,'[153]MON 2013 Final TB '!$A$4:$D$1438,4,0) -> 0
A75: 1200500 | B75: AUC-Land & Buildings - General | C75: Property, plant and equipment | E75: =VLOOKUP(A75,'[153]MON 2013 Final TB '!$A$4:$D$1438,4,0) -> (89,050,663.95)
A76: 1200510 | B76: AUC-Site Development, Land & Buildings | C76: Property, plant and equipment | E76: =VLOOKUP(A76,'[153]MON 2013 Final TB '!$A$4:$D$1438,4,0) -> 121,676,332.10
A77: 1200600 | B77: AUC-Buildings & Improvements | C77: Property, plant and equipment | E77: =VLOOKUP(A77,'[153]MON 2013 Final TB '!$A$4:$D$1438,4,0) -> 0.00
A78: 1200610 | B78: AUC-Building fee land | C78: Property, plant and equipment | E78: =VLOOKUP(A78,'[153]MON 2013 Final TB '!$A$4:$D$1438,4,0) -> 0
A79: 1200620 | B79: AUC-Buildings on own land | C79: Property, plant and equipment | E79: =VLOOKUP(A79,'[153]MON 2013 Final TB '!$A$4:$D$1438,4,0) -> 0
A80: 1200700 | B80: AUC-Office Partitions | C80: Property, plant and equipment | E80: =VLOOKUP(A80,'[153]MON 2013 Final TB '!$A$4:$D$1438,4,0) -> 0
A81: 1200800 | B81: AUC-Drainage & Driveways | C81: Property, plant and equipment | E81: =VLOOKUP(A81,'[153]MON 2013 Final TB '!$A$4:$D$1438,4,0) -> 0
A82: 1200900 | B82: AUC-Fences | C82: Property, plant and equipment | E82: =VLOOKUP(A82,'[153]MON 2013 Final TB '!$A$4:$D$1438,4,0) -> 0
A83: 1200930 | B83: AUC-Pipes & Fittings (Pipe Work - Lines) | C83: Property, plant and equipment | E83: =VLOOKUP(A83,'[153]MON 2013 Final TB '!$A$4:$D$1438,4,0) -> 3,742,950.00
A84: 1200980 | B84: AUC-Pipe Powerlines & Yard Light | C84: Property, plant and equipment | E84: =VLOOKUP(A84,'[153]MON 2013 Final TB '!$A$4:$D$1438,4,0) -> 0
A85: 1201000 | B85: AUC-Process Units | C85: Property, plant and equipment | E85: =VLOOKUP(A85,'[153]MON 2013 Final TB '!$A$4:$D$1438,4,0) -> 0
A86: 1201050 | B86: AUC-Boilers | C86: Property, plant and equipment | E86: =VLOOKUP(A86,'[153]MON 2013 Final TB '!$A$4:$D$1438,4,0) -> 0
A87: 1201100 | B87: AUC-Laboratory Equipment | C87: Property, plant and equipment | E87: =VLOOKUP(A87,'[153]MON 2013 Final TB '!$A$4:$D$1438,4,0) -> 0
A88: 1201150 | B88: AUC-Fire Fighting/workshop Equipment | C88: Property, plant and equipment | E88: =VLOOKUP(A88,'[153]MON 2013 Final TB '!$A$4:$D$1438,4,0) -> 152,250.00
A89: 1201200 | B89: AUC-Loading Racks / Arms (excl: Pipe Work & Mach) | C89: Property, plant and equipment | E89: =VLOOKUP(A89,'[153]MON 2013 Final TB '!$A$4:$D$1438,4,0) -> 9,760,160.81
A90: 1201300 | B90: AUC-Maintenance & Shop Equipment | C90: Property, plant and equipment | E90: =VLOOKUP(A90,'[153]MON 2013 Final TB '!$A$4:$D$1438,4,0) -> 0
A91: 1201350 | B91: AUC-Aviation Equipment | C91: Property, plant and equipment | E91: =VLOOKUP(A91,'[153]MON 2013 Final TB '!$A$4:$D$1438,4,0) -> 13,425,000.00
A92: 1201400 | B92: AUC-Communications Systems | C92: Property, plant and equipment | E92: =VLOOKUP(A92,'[153]MON 2013 Final TB '!$A$4:$D$1438,4,0) -> 61,137,830.87
A93: 1201550 | B93: AUC-Switches | C93: Property, plant and equipment | E93: =VLOOKUP(A93,'[153]MON 2013 Final TB '!$A$4:$D$1438,4,0) -> 0
A94: 1201600 | B94: AUC-Light trucks | C94: Property, plant and equipment | E94: =VLOOKUP(A94,'[153]MON 2013 Final TB '!$A$4:$D$1438,4,0) -> 0
A95: 1201610 | B95: AUC-Heavy trucks | C95: Property, plant and equipment | E95: =VLOOKUP(A95,'[153]MON 2013 Final TB '!$A$4:$D$1438,4,0) -> 0
A96: 1201620 | B96: AUC-Light cranes | C96: Property, plant and equipment | E96: =VLOOKUP(A96,'[153]MON 2013 Final TB '!$A$4:$D$1438,4,0) -> 0
A97: 1201630 | B97: AUC-Heavy cranes | C97: Property, plant and equipment | E97: =VLOOKUP(A97,'[153]MON 2013 Final TB '!$A$4:$D$1438,4,0) -> 0
A98: 1201640 | B98: AUC-Fork lifts | C98: Property, plant and equipment | E98: =VLOOKUP(A98,'[153]MON 2013 Final TB '!$A$4:$D$1438,4,0) -> 0
A99: 1201650 | B99: AUC-Load luggers | C99: Property, plant and equipment | E99: =VLOOKUP(A99,'[153]MON 2013 Final TB '!$A$4:$D$1438,4,0) -> 0
A100: 1201800 | B100: AUC- Compressors | C100: Property, plant and equipment | E100: =VLOOKUP(A100,'[153]MON 2013 Final TB '!$A$4:$D$1438,4,0) -> 0
A101: 1201850 | B101: AUC-Compressor Blowers | C101: Property, plant and equipment | E101: =VLOOKUP(A101,'[153]MON 2013 Final TB '!$A$4:$D$1438,4,0) -> 0
A102: 1201900 | B102: AUC-Electrical Generators | C102: Property, plant and equipment | E102: =VLOOKUP(A102,'[153]MON 2013 Final TB '!$A$4:$D$1438,4,0) -> 0
A103: 1201930 | B103: AUC-Other Generators | C103: Property, plant and equipment | E103: =VLOOKUP(A103,'[153]MON 2013 Final TB '!$A$4:$D$1438,4,0) -> 0
A104: 1201950 | B104: AUC-Motors | C104: Property, plant and equipment | E104: =VLOOKUP(A104,'[153]MON 2013 Final TB '!$A$4:$D$1438,4,0) -> 0
A105: 1202000 | B105: AUC-Lubrication Equipment | C105: Property, plant and equipment | E105: =VLOOKUP(A105,'[153]MON 2013 Final TB '!$A$4:$D$1438,4,0) -> 10,051,992.47
A106: 1202020 | B106: AUC-Greasing Equipment | C106: Property, plant and equipment | E106: =VLOOKUP(A106,'[153]MON 2013 Final TB '!$A$4:$D$1438,4,0) -> 0
A107: 1202040 | B107: AUC-Grease Guns | C107: Property, plant and equipment | E107: =VLOOKUP(A107,'[153]MON 2013 Final TB '!$A$4:$D$1438,4,0) -> 0
A108: 1202045 | B108: AUC-Service Equipment - tyre meters | C108: Property, plant and equipment | E108: =VLOOKUP(A108,'[153]MON 2013 Final TB '!$A$4:$D$1438,4,0) -> 0
A109: 1202050 | B109: AUC-Service Equipment - wheel balancers | C109: Property, plant and equipment | E109: =VLOOKUP(A109,'[153]MON 2013 Final TB '!$A$4:$D$1438,4,0) -> 0
A110: 1202055 | B110: AUC-Service Equipment - tire changers | C110: Property, plant and equipment | E110: =VLOOKUP(A110,'[153]MON 2013 Final TB '!$A$4:$D$1438,4,0) -> 0
A111: 1202060 | B111: AUC-Car/Truck Hoist | C111: Property, plant and equipment | E111: =VLOOKUP(A111,'[153]MON 2013 Final TB '!$A$4:$D$1438,4,0) -> 0
A112: 1202080 | B112: AUC-Car Automatic washing machines | C112: Property, plant and equipment | E112: =VLOOKUP(A112,'[153]MON 2013 Final TB '!$A$4:$D$1438,4,0) -> 0
A113: 1202100 | B113: AUC-Washing material | C113: Property, plant and equipment | E113: =VLOOKUP(A113,'[153]MON 2013 Final TB '!$A$4:$D$1438,4,0) -> 0
A114: 1202200 | B114: AUC-Service Station / Retail Outfit Pumps | C114: Property, plant and equipment | E114: =VLOOKUP(A114,'[153]MON 2013 Final TB '!$A$4:$D$1438,4,0) -> 36,332,539.06
A115: 1202220 | B115: AUC - Tangible Assets | C115: Property, plant and equipment | E115: =VLOOKUP(A115,'[153]MON 2013 Final TB '!$A$4:$D$1438,4,0) -> 0
A116: 1202240 | B116: Consumer/Pump Dispensers | C116: Property, plant and equipment | E116: =VLOOKUP(A116,'[153]MON 2013 Final TB '!$A$4:$D$1438,4,0) -> 0
A117: 1202300 | B117: AUC-Retail Signs | C117: Property, plant and equipment | E117: =VLOOKUP(A117,'[153]MON 2013 Final TB '!$A$4:$D$1438,4,0) -> 23,158,131.89
A118: 1202320 | B118: AUC-Canopies | C118: Property, plant and equipment | E118: =VLOOKUP(A118,'[153]MON 2013 Final TB '!$A$4:$D$1438,4,0) -> 4,683,000.00
A119: 1202400 | B119: AUC-Shop Equipment | C119: Property, plant and equipment | E119: =VLOOKUP(A119,'[153]MON 2013 Final TB '!$A$4:$D$1438,4,0) -> 0
A120: 1202500 | B120: AUC-Retail Yard Light & Power Line | C120: Property, plant and equipment | E120: =VLOOKUP(A120,'[153]MON 2013 Final TB '!$A$4:$D$1438,4,0) -> 0
A121: 1202600 | B121: AUC-Retail - Pipes & Fittings | C121: Property, plant and equipment | E121: =VLOOKUP(A121,'[153]MON 2013 Final TB '!$A$4:$D$1438,4,0) -> 0
A122: 1202610 | B122: AUC-C/I - Pipes & Fittings | C122: Property, plant and equipment | E122: =VLOOKUP(A122,'[153]MON 2013 Final TB '!$A$4:$D$1438,4,0) -> 0
A123: 1202700 | B123: AUC-Tanks - Underground Steel | C123: Property, plant and equipment | E123: =VLOOKUP(A123,'[153]MON 2013 Final TB '!$A$4:$D$1438,4,0) -> 44,572,880.12
A124: 1202720 | B124: AUC-Tanks - Underground Fiberglass | C124: Property, plant and equipment | E124: =VLOOKUP(A124,'[153]MON 2013 Final TB '!$A$4:$D$1438,4,0) -> 0
A125: 1202740 | B125: AUC-Tanks - Aboveground Steel | C125: Property, plant and equipment | E125: =VLOOKUP(A125,'[153]MON 2013 Final TB '!$A$4:$D$1438,4,0) -> 0
A126: 1202760 | B126: AUC-Tanks - Consumer | C126: Property, plant and equipment | E126: =VLOOKUP(A126,'[153]MON 2013 Final TB '!$A$4:$D$1438,4,0) -> 0
A127: 1202780 | B127: AUC-Tanks - Kerbside | C127: Property, plant and equipment | E127: =VLOOKUP(A127,'[153]MON 2013 Final TB '!$A$4:$D$1438,4,0) -> 0
A128: 1202800 | B128: AUC-Rubber Tanks | C128: Property, plant and equipment | E128: =VLOOKUP(A128,'[153]MON 2013 Final TB '!$A$4:$D$1438,4,0) -> 0
A129: 1202820 | B129: AUC-Skid Tank | C129: Property, plant and equipment | E129: =VLOOKUP(A129,'[153]MON 2013 Final TB '!$A$4:$D$1438,4,0) -> 0
A130: 1202840 | B130: AUC-Retail Outfit Tanks (transitional account) | C130: Property, plant and equipment | E130: =VLOOKUP(A130,'[153]MON 2013 Final TB '!$A$4:$D$1438,4,0) -> 0
A131: 1202860 | B131: AUC-Retail Storage Tanks (transitional account) | C131: Property, plant and equipment | E131: =VLOOKUP(A131,'[153]MON 2013 Final TB '!$A$4:$D$1438,4,0) -> 0
A132: 1202880 | B132: AUC-C/I - Storage Tanks (transititional account) | C132: Property, plant and equipment | E132: =VLOOKUP(A132,'[153]MON 2013 Final TB '!$A$4:$D$1438,4,0) -> 0
A133: 1203000 | B133: AUC-Autos - Sedans/cars | C133: Property, plant and equipment | E133: =VLOOKUP(A133,'[153]MON 2013 Final TB '!$A$4:$D$1438,4,0) -> 0
A134: 1203020 | B134: AUC-Autos - buses | C134: Property, plant and equipment | E134: =VLOOKUP(A134,'[153]MON 2013 Final TB '!$A$4:$D$1438,4,0) -> 0
A135: 1203040 | B135: AUC-Autos - motorcycles | C135: Property, plant and equipment | E135: =VLOOKUP(A135,'[153]MON 2013 Final TB '!$A$4:$D$1438,4,0) -> 0
A136: 1203060 | B136: AUC-Autos - motor boats | C136: Property, plant and equipment | E136: =VLOOKUP(A136,'[153]MON 2013 Final TB '!$A$4:$D$1438,4,0) -> 0
A137: 1203100 | B137: AUC-Trucks Heavy | C137: Property, plant and equipment | E137: =VLOOKUP(A137,'[153]MON 2013 Final TB '!$A$4:$D$1438,4,0) -> 0
A138: 1203200 | B138: AUC-Trucks Light | C138: Property, plant and equipment | E138: =VLOOKUP(A138,'[153]MON 2013 Final TB '!$A$4:$D$1438,4,0) -> 0
A139: 1203300 | B139: AUC-Tank Cars | C139: Property, plant and equipment | E139: =VLOOKUP(A139,'[153]MON 2013 Final TB '!$A$4:$D$1438,4,0) -> 0
A140: 1203400 | B140: AUC-Aviation automotive dispensing equipment | C140: Property, plant and equipment | E140: =VLOOKUP(A140,'[153]MON 2013 Final TB '!$A$4:$D$1438,4,0) -> 129,863,970.92
A141: 1203800 | B141: AUC-Office and Household furniture & fittings | C141: Property, plant and equipment | E141: =VLOOKUP(A141,'[153]MON 2013 Final TB '!$A$4:$D$1438,4,0) -> 22,563,788.00
A142: 1203900 | B142: AUC-Office Equipment | C142: Property, plant and equipment | E142: =VLOOKUP(A142,'[153]MON 2013 Final TB '!$A$4:$D$1438,4,0) -> 3,559,140.00
A143: 1204000 | B143: AUC-IT Equip, Comp, Word Pro and Peripheral Equip | C143: Property, plant and equipment | E143: =VLOOKUP(A143,'[153]MON 2013 Final TB '!$A$4:$D$1438,4,0) -> 23,324,082.59
A144: 1205000 | B144: AUC-Low Value Assets | C144: Property, plant and equipment | E144: =VLOOKUP(A144,'[153]MON 2013 Final TB '!$A$4:$D$1438,4,0) -> 0
A145: 1211000 | B145: Allowance for Amortisation of Goodwill | C145: Intangible assets | E145: =VLOOKUP(A145,'[153]MON 2013 Final TB '!$A$4:$D$1438,4,0) -> 0
A146: 1211100 | B146: Allow for Amortis of Patents(pro, formulas, etc.) | C146: Intangible assets | E146: =VLOOKUP(A146,'[153]MON 2013 Final TB '!$A$4:$D$1438,4,0) -> 0
A147: 1211200 | B147: Allow for Amorti of Royalty Rights (O/T gas & oil) | C147: Intangible assets | E147: =VLOOKUP(A147,'[153]MON 2013 Final TB '!$A$4:$D$1438,4,0) -> 0
A148: 1211300 | B148: Allow for Amorti of Contracts (grants to dealers) | C148: Intangible assets | E148: =VLOOKUP(A148,'[153]MON 2013 Final TB '!$A$4:$D$1438,4,0) -> 0 | G148: =418953384.88/1000 -> 418,953.38
A149: 1211400 | B149: Allowance for Amortisation of Copyrights | C149: Intangible assets | E149: =VLOOKUP(A149,'[153]MON 2013 Final TB '!$A$4:$D$1438,4,0) -> 0 | G149: (125,700.00)
A150: 1211500 | B150: Allowance for Amortisation of Franchises | C150: Intangible assets | E150: =VLOOKUP(A150,'[153]MON 2013 Final TB '!$A$4:$D$1438,4,0) -> 0
A151: 1212000 | B151: Allowance for Amortisation of Research & Studies | C151: Intangible assets | E151: =VLOOKUP(A151,'[153]MON 2013 Final TB '!$A$4:$D$1438,4,0) -> 0 | H151: (23,079,007.99)
A152: 1213000 | B152: Allowance for Amortisation of SAP Software (>$1m) | C152: Intangible assets | E152: =VLOOKUP(A152,'[153]MON 2013 Final TB '!$A$4:$D$1438,4,0) -> (50,185,824.19) | G152: =+E152+E153 -> (98,988,228.02) | H152: (16,670,129.42)
A153: 1213100 | B153: Allowance for Amortisa of Other Software (<$1m) | C153: Intangible assets | E153: =VLOOKUP(A153,'[153]MON 2013 Final TB '!$A$4:$D$1438,4,0) -> (48,802,403.83) | H153: =SUM(H151:H152) -> (39,749,137.41)
A154: 1214000 | B154: Allowance for Amortisation of License | C154: Intangible assets | E154: =VLOOKUP(A154,'[153]MON 2013 Final TB '!$A$4:$D$1438,4,0) -> 0 | H154: =+G152-H153 -> (59,239,090.61)
A155: 1221000 | B155: Allowance for Amortisation of Other Capital Leases | C155: Property, plant and equipment | E155: =VLOOKUP(A155,'[153]MON 2013 Final TB '!$A$4:$D$1438,4,0) -> 0 | H155: =+H154+G1341 -> 0
A156: 1231000 | B156: Allowance for Amortisation of Leasehold Land | C156: Property, plant and equipment | E156: =VLOOKUP(A156,'[153]MON 2013 Final TB '!$A$4:$D$1438,4,0) -> 0
A157: 1241000 | B157: Allow for Dep & Amortisa - LH Land & Build Improv | C157: Property, plant and equipment | E157: =VLOOKUP(A157,'[153]MON 2013 Final TB '!$A$4:$D$1438,4,0) -> 0 | H157: 83,137.50
A158: 1251000 | B158: Allowance for Dep of Land & Buildings - General | C158: Property, plant and equipment | E158: =VLOOKUP(A158,'[153]MON 2013 Final TB '!$A$4:$D$1438,4,0) -> 0
A159: 1251100 | B159: Allow for Dep of Site Development, Land & Buildi | C159: Property, plant and equipment | E159: =VLOOKUP(A159,'[153]MON 2013 Final TB '!$A$4:$D$1438,4,0) -> 0 | H159: =+H155-H157 -> (83,137.50)
A160: 1271000 | B160: Allowance for Depreciation of Buildings & Improve | C160: Property, plant and equipment | E160: =VLOOKUP(A160,'[153]MON 2013 Final TB '!$A$4:$D$1438,4,0) -> (868,937,672.71)
A161: 1272000 | B161: Allowance for Depreciation of Office Partitions | C161: Property, plant and equipment | E161: =VLOOKUP(A161,'[153]MON 2013 Final TB '!$A$4:$D$1438,4,0) -> 0
A162: 1273000 | B162: Allowance for Depreciation of Drainage & Driveways | C162: Property, plant and equipment | E162: =VLOOKUP(A162,'[153]MON 2013 Final TB '!$A$4:$D$1438,4,0) -> 0
A163: 1274000 | B163: Allowance for Depreciation of Fences | C163: Property, plant and equipment | E163: =VLOOKUP(A163,'[153]MON 2013 Final TB '!$A$4:$D$1438,4,0) -> 0
A164: 1275000 | B164: Allowance for Dep of Pipes & Fit (Pipe Work-Lines) | C164: Property, plant and equipment | E164: =VLOOKUP(A164,'[153]MON 2013 Final TB '!$A$4:$D$1438,4,0) -> (2,814,134.76)
A165: 1276000 | B165: Allowance for Dep of Pipe Powerlines & Yard Light | C165: Property, plant and equipment | E165: =VLOOKUP(A165,'[153]MON 2013 Final TB '!$A$4:$D$1438,4,0) -> (11,302,240.00)
A166: 1281100 | B166: Allowance for Depreciation of Process Units | C166: Property, plant and equipment | E166: =VLOOKUP(A166,'[153]MON 2013 Final TB '!$A$4:$D$1438,4,0) -> 0
A167: 1281200 | B167: Allowance for Depreciation of Boilers | C167: Property, plant and equipment | E167: =VLOOKUP(A167,'[153]MON 2013 Final TB '!$A$4:$D$1438,4,0) -> (46,278,173.21)
A168: 1281300 | B168: Allowance for Depreciation of Laboratory Equipment | C168: Property, plant and equipment | E168: =VLOOKUP(A168,'[153]MON 2013 Final TB '!$A$4:$D$1438,4,0) -> (300,111.41)
A169: 1281400 | B169: Allowance for Dep of Fire Fighting Equipment | C169: Property, plant and equipment | E169: =VLOOKUP(A169,'[153]MON 2013 Final TB '!$A$4:$D$1438,4,0) -> (50,957,811.11)
A170: 1281420 | B170: Allowance for Depreciation of Workshop Equipment | C170: Property, plant and equipment | E170: =VLOOKUP(A170,'[153]MON 2013 Final TB '!$A$4:$D$1438,4,0) -> (61,568,510.62)
A171: 1281450 | B171: Allowance for Depreciation of Loading Racks/Arms | C171: Property, plant and equipment | E171: =VLOOKUP(A171,'[153]MON 2013 Final TB '!$A$4:$D$1438,4,0) -> (146,270,120.20)
A172: 1281500 | B172: Allowance for Dep of Maintenance & Shop Equip | C172: Property, plant and equipment | E172: =VLOOKUP(A172,'[153]MON 2013 Final TB '!$A$4:$D$1438,4,0) -> 0
A173: 1281700 | B173: Allowance for Depreciation of Aviation Equipment | C173: Property, plant and equipment | E173: =VLOOKUP(A173,'[153]MON 2013 Final TB '!$A$4:$D$1438,4,0) -> 0
A174: 1281800 | B174: Allowance for Dep of Communication Systems | C174: Property, plant and equipment | E174: =VLOOKUP(A174,'[153]MON 2013 Final TB '!$A$4:$D$1438,4,0) -> (12,481,614.16)
A175: 1281900 | B175: Allowance for Depreciation of Tracks & Switches | C175: Property, plant and equipment | E175: =VLOOKUP(A175,'[153]MON 2013 Final TB '!$A$4:$D$1438,4,0) -> 0
A176: 1282000 | B176: Allowance for Dep of Industrial Mobile Equip | C176: Property, plant and equipment | E176: =VLOOKUP(A176,'[153]MON 2013 Final TB '!$A$4:$D$1438,4,0) -> 0
A177: 1282050 | B177: Allow for Dep of Pipeline Transportation - Other | C177: Property, plant and equipment | E177: =VLOOKUP(A177,'[153]MON 2013 Final TB '!$A$4:$D$1438,4,0) -> 0
A178: 1282100 | B178: Allowance for Dep of Compressors & Blowers | C178: Property, plant and equipment | E178: =VLOOKUP(A178,'[153]MON 2013 Final TB '!$A$4:$D$1438,4,0) -> (10,983,634.02)
A179: 1282200 | B179: Allow for Dep Steam & Elec Gener/Dist. Sys - Gen | C179: Property, plant and equipment | E179: =VLOOKUP(A179,'[153]MON 2013 Final TB '!$A$4:$D$1438,4,0) -> (62,518,972.97)
A180: 1282300 | B180: Allo for Dep of Auto Mainte/Repair/Service Equip | C180: Property, plant and equipment | E180: =VLOOKUP(A180,'[153]MON 2013 Final TB '!$A$4:$D$1438,4,0) -> 0
A181: 1282400 | B181: Allowance for Depreciation of Pumps | C181: Property, plant and equipment | E181: =VLOOKUP(A181,'[153]MON 2013 Final TB '!$A$4:$D$1438,4,0) -> (102,152,114.35)
A182: 1282500 | B182: Allowance for Dep of Retail Signs & Canopies | C182: Property, plant and equipment | E182: =VLOOKUP(A182,'[153]MON 2013 Final TB '!$A$4:$D$1438,4,0) -> (56,022,788.43)
A183: 1282600 | B183: Allowance for Depreciation of Shop Equipment | C183: Property, plant and equipment | E183: =VLOOKUP(A183,'[153]MON 2013 Final TB '!$A$4:$D$1438,4,0) -> 0
A184: 1282700 | B184: Allow for Dep of Retail Yard Light & Power Line | C184: Property, plant and equipment | E184: =VLOOKUP(A184,'[153]MON 2013 Final TB '!$A$4:$D$1438,4,0) -> 0
A185: 1282800 | B185: Allow for Dep Ser Station/Consumer Pipes & Fitti | C185: Property, plant and equipment | E185: =VLOOKUP(A185,'[153]MON 2013 Final TB '!$A$4:$D$1438,4,0) -> 0
A186: 1282900 | B186: Allowance for Depreciation of Storage Tanks | C186: Property, plant and equipment | E186: =VLOOKUP(A186,'[153]MON 2013 Final TB '!$A$4:$D$1438,4,0) -> (2,177,517,649.75)
A187: 1291000 | B187: Allowance for Dep of Light Automotive Equipmen | C187: Property, plant and equipment | E187: =VLOOKUP(A187,'[153]MON 2013 Final TB '!$A$4:$D$1438,4,0) -> (723,590,014.99)
A188: 1291100 | B188: Allowance for Dep of Heavy Automotive Equipment | C188: Property, plant and equipment | E188: =VLOOKUP(A188,'[153]MON 2013 Final TB '!$A$4:$D$1438,4,0) -> (367,136,723.05)
A189: 1301000 | B189: Allowance for Dep of Aviation Refuelling Equipment | C189: Property, plant and equipment | E189: =VLOOKUP(A189,'[153]MON 2013 Final TB '!$A$4:$D$1438,4,0) -> (63,828,228.42)
A190: 1311000 | B190: Allowance for Depreciation of Marine Vessels | C190: Property, plant and equipment | E190: =VLOOKUP(A190,'[153]MON 2013 Final TB '!$A$4:$D$1438,4,0) -> 0
A191: 1311200 | B191: Allowance for Depreciation of Water Transp | C191: Property, plant and equipment | E191: =VLOOKUP(A191,'[153]MON 2013 Final TB '!$A$4:$D$1438,4,0) -> 0
A192: 1341000 | B192: Allow for Dep of Office and Household fur & fitt | C192: Property, plant and equipment | E192: =VLOOKUP(A192,'[153]MON 2013 Final TB '!$A$4:$D$1438,4,0) -> (138,177,907.21)
A193: 1351000 | B193: Allowance for Depreciation of Office Equipment | C193: Property, plant and equipment | E193: =VLOOKUP(A193,'[153]MON 2013 Final TB '!$A$4:$D$1438,4,0) -> (156,747,997.85)
A194: 1361000 | B194: Allo for Dep of Comp, Word Procs and Perip Equip | C194: Property, plant and equipment | E194: =VLOOKUP(A194,'[153]MON 2013 Final TB '!$A$4:$D$1438,4,0) -> (483,315,807.88)
A195: 1371000 | B195: Allowance for Depreciation of Low Value Assets | C195: Property, plant and equipment | E195: =VLOOKUP(A195,'[153]MON 2013 Final TB '!$A$4:$D$1438,4,0) -> 0
A196: 1391000 | B196: Allow for Amor of Sur Equ Avai for Sales or Aband | C196: Property, plant and equipment | E196: =VLOOKUP(A196,'[153]MON 2013 Final TB '!$A$4:$D$1438,4,0) -> 0
A197: 1701000 | B197: Rent - Service Stations (Due After One Year) | C197: Trade and other Receivable | E197: =VLOOKUP(A197,'[153]MON 2013 Final TB '!$A$4:$D$1438,4,0) -> 0
A198: 1702000 | B198: Rent Bulk Stations/Terminals (Due After One Year) | C198: Trade and other Receivable | E198: =VLOOKUP(A198,'[153]MON 2013 Final TB '!$A$4:$D$1438,4,0) -> 0
A199: 1703000 | B199: Rent - Office Building (Due After One Year) | C199: Trade and other Receivable | E199: =VLOOKUP(A199,'[153]MON 2013 Final TB '!$A$4:$D$1438,4,0) -> 0
A200: 1704000 | B200: Rent - Living Quarters (Due After One Year) | C200: Trade and other Receivable | E200: =VLOOKUP(A200,'[153]MON 2013 Final TB '!$A$4:$D$1438,4,0) -> 0
A201: 1751000 | B201: Service Station Generator Dealer Loans Receivable | C201: Trade and other Receivable | E201: =VLOOKUP(A201,'[153]MON 2013 Final TB '!$A$4:$D$1438,4,0) -> 20,840,052.20
... 1238 more rows

Sheet Index to Notes
A7: Index to Notes to the financial statements
A8: for the year ended 31 March 2016
H11: Page
A13: 1 | B13: Reporting entity | H13: 23
A14: 2 | B14: Basis of preparation | H14: 23
A15: 3 | B15: Significant accounting policies | H15: 25
A16: 4 | B16: Standards and Interpretations not yet effective | H16: 33
A17: 5 | B17: Revenue | H17: 35
A18: 6 | B18: Other income | H18: 35
A19: 7 | B19: Expenses by nature | H19: 35
A20: 8 | B20: Finance income and costs | H20: 36
A21: 9 | B21: Profit before income tax | H21: 36
A22: 10 | B22: Earnings per share (EPS) and dividend declared per share. | H22: 38
A23: 11 | B23: Income Taxes | H23: 38
A24: 12 | B24: Property, plant and equipment | H24: 41
A25: 13 | B25: Intangible assets | H25: 43
A26: 14 | B26: Loans and receivables | H26: 43
A27: 15 | B27: Trade and other receivables | H27: 44
A28: 16 | B28: Witholding tax receivables | H28: 44
A29: 17 | B29: Inventories | H29: 45
A30: 18 | B30: Cash and cash equivalents | H30: 45
A31: 19 | B31: Share capital | H31: 45
A32: 20 | B32: Employee benefit obligations | H32: 46
A33: 21 | B33: Security deposits | H33: 47
A34: 22 | B34: Dividends | H34: 48
A35: 23 | B35: Trade and other payables | H35: 48
A36: 24 | B36: Bank overdraft and other short term borrowings | H36: 49
A37: 25 | B37: Financial risk management & financial instruments | H37: 49
A38: 26 | B38: Related party transactions | H38: 56
A39: 27 | B39: Segment reporting | H39: 58
A40: 28 | B40: Subsequent events | H40: 59
A41: 29 | B41: Contingencies | H41: 59
A42: 30 | B42: Operating leases | H42: 59
A43: 31 | B43: Non-audit services provided by KPMG Professional Services | H43: 59

Sheet Notes 1- 4 (Acc policies)
B2: Notes to the financial statements
A4: 1. | B4: Reporting entity
B5: The Company was incorporated as Texaco Nigeria Limited (a privately owned Company) on 12 August 1969 and was converted to a Public Limited Liability company quoted on the Nigerian Stock Exchange in 1978, as a result of the 1977 Nigerian Enterprises Promotions Decree. The Company is domiciled in Nigeria and its shares are listed on the Nigerian Stock Exchange (NSE). The Company’s name was changed to Texaco Nigeria Plc. in 1990 and again on 1 September 2006 to Chevron Oil Nigeria Plc.
B6: On 20 March, 2009 there was an acquisition of Chevron Africa Holdings Limited, (a Bermudian Company) by Corlay Global SA of Moffson Building, East 54th Street, Panama, Republic of Panama. By virtue of this foreign transaction, Chevron Nigeria Holdings Limited, Bermuda changed its name to MRS Africa Holdings Limited, Bermuda.
B7: The new management of the Company announced a change of name of the Company from Chevron Oil Nigeria Plc to MRS Oil Nigeria Plc (“MRS”) effective 2 December, 2009 following the ratification of the name change of the Company at the 40th Annual General Meeting of the Company on 29 September, 2009.
B9: The Company is domiciled in Nigeria and has its registered office address at:
B11: 8, Macarthy Street Onikan Lagos Nigeria
B13: The Company is principally engaged in the business of marketing and distribution of refined petroleum products, blending of lubricants and manufacturing of greases.
A15: 2 | B15: Basis of preparation
A17: (a) | B17: Statement of compliance
B18: These financial statements have been prepared in accordance with International Financial Reporting Standards (IFRSs) as issued by the International Accounting Standards Board (IASB). The financial statements were authorised for issue by the Company's Board of Directors on 30 March 2016 Details of the Company's significant accounting policies are included in Note 3.
A20: (b) | B20: Basis of measurement
B21: The financial statements have been prepared on the historical cost basis.
A23: (c) | B23: Functional and presentation currency
B24: These financial statements are presented in Nigerian Naira, which is the Company’s functional currency. All financial information presented in Naira have been rounded to the nearest thousand unless stated otherwise.
A26: (d) | B26: Use of judgements and estimates
B27: The preparation of annual financial statements in conformity with IFRS requires management to make judgements, estimates and assumptions that affect the application of the Company's accounting policies and the reported amounts of assets, liabilities, income and expenses. Actual results may differ from these estimates.
B29: Estimates and underlying assumptions are reviewed on an ongoing basis. Revisions to estimates are recognized prospectively.
A31: i | B31: Judgements
B32: Significant judgments have not been made in applying accounting policies that would have significant effects on the amounts recognised in these financial statements.
A34: i | B34: Judgements, assumptions and estimation uncertainties
B35: Information about judgements, assumptions and estimation uncertainties that have a significant risk of resulting in a material adjustment in the year ending 31 March 2016 is included in the following notes:
B36: Note 11 - Recognition of deferred tax asset: availability of future taxable profit against which carryforward tax losses can be used
B37: Note 12 - Impairment test- recoverable amounts are higher than carrying amounts.
B38: Note 20 - Measurement of employee benefits obligations; key actuarial assumptions.
B39: Note 29 - Recognition of contingencies: key assumptions about the likelihood and magnitude of an outflow of economic resources
A41: ii | B41: Measurement of fair values
B42: Some of the Company’s accounting policies and disclosures require the measurement of fair values, for both financial and non-financial assets and liabilities. The Company has an established control framework with respect to the measurement of fair values. The Executive director (Finance & Administration) has overall responsibility for overseeing all significant fair value measurements, including Level 3 fair values, and reports directly to the Board of Directors. The Executive director (Finance & Administration) regularly reviews significant unobservable inputs and valuation adjustments. If third party information, such as broker quotes or pricing services, is used to measure fair values, then the Executive director (Finance & Administration) assesses the evidence obtained from the third parties to support the conclusion that such valuations meet the requirements of IFRS, including the level in the fair value hierarchy in which such valuations should be classified. Significant valuation issues are reported to the Board of Directors. When measuring the fair value of an asset or a liability, the Company uses market observable data as far as possible. Fair values are categorised into different levels in a fair value hierarchy based on the inputs used in the valuation techniques as follows.
B44: • Level 1: quoted prices (unadjusted) in active markets for identical assets or liabilities. • Level 2: inputs other than quoted prices included in Level 1 that are observable for the asset or liability, either directly (i.e. as prices) or indirectly (i.e. derived from prices). •Level 3: inputs for the asset or liability that are not based on observable market data (unobservable inputs).
B46: If the inputs used to measure the fair value of an asset or a liability might be categorised in different levels of the fair value hierarchy, then the fair value measurement is categorised in its entirety in the same level of the fair value hierarchy as the lowest level input that is significant to the entire measurement. The Company recognises transfers between levels of the fair value hierarchy at the end of the reporting period during which the change has occurred.
A48: 3 | B48: Significant accounting policies
B49: The accounting policies set out below have been applied consistently to all periods presented in these financial statements.
B51: (i) | C51: Presentation of items of other comprehensive income (Amendments to IAS 1)
C52: As a result of the amendments to IAS 1, the Company has modified the presentation of items of other comprehensive income in its statement of profit or loss and other comprehensive income, to present separately, items that would be reclassified to profit or loss from those that would never be Comparative information. This has been re-presented accordingly.
B54: (ii) | C54: IFRS 13 Fair value measurement
C55: IFRS 13 establishes a single framework for measuring fair value and making disclosures about fair value measurements when such measurements are required or permitted by other IFRSs. It unifies the definition of fair value as the price that would be received to sell an asset or paid to transfer a liability in an orderly transaction between market participants at the measurement date. It replaces and expands the disclosure requirements about fair value measurements in other IFRSs, including IFRS 7. As a result, the Company has included additional disclosures in this regard (see note 25 (e)). In accordance with the transitional provisions of IFRS 13, the Company has applied the new fair value measurement guidance prospectively and has not provided any comparative information for new disclosures. Notwithstanding the above, the change had no significant impact on the measurements of the Company’s assets and liabilities.
A57: (a) | B57: Foreign currency transactions
B58: Transactions denominated in foreign currencies are translated and recorded in Nigerian Naira at the actual exchange rates as of the date of the transaction. Monetary assets and liabilities denominated in foreign currencies at the reporting date are translated to the functional currency at the rates of exchange prevailing at that date. Non-monetary assets and liabilities denominated in foreign currencies that are measured at fair value are retranslated to the functional currency at the exchange rate at the date that the fair value was determined.
B59: Foreign currency differences arising on translation are recognized in profit or loss. Non-monetary items that are measured based on historical cost in a foreign currency are not re-translated.
A61: (b) | B61: Financial instruments
B63: The Company classifies non-derivative financial assets into loans and receivables.
B64: The Company classifies non-derivative financial liabilities into the other financial liabilities category.
A66: i. | B66: Non-derivative financial assets and financial liabilities - recognition and derecognition
B67: The Company initially recognises loans and receivables on the date when they are originated. Financial liabilities are initially recognised on the trade date.
B69: The Company derecognises a financial asset when the contractual rights to the cash flows from the asset expire, or it transfers the rights to receive the contractual cash flows in a transaction in which substantially all the risks and rewards of ownership of the financial asset are transferred or it neither transfers nor retains substantially all the risks and rewards of ownership and does not retain control over the transferred asset. Any interest in such derecognised financial assets that is created or retained by the Company is recognised as a separate asset or liability. The Company derecognises a financial liability when its contractual obligations are discharged or cancelled, or expire.
B71: Financial assets and financial liabilities are offset and the net amount presented in the statement of financial position when, and only when, the Company has a legal right to offset the amounts and intends either to settle on a net basis or to realise the asset and settle the liability simultaneously.
A73: ii | B73: Non-derivative financial assets - measurement
B74: The Company initially recognizes loans and receivables at fair value plus any directly attributable transaction costs. Subsequent to initial recognition, they are measured at amortised cost using the effective interest method.
B75: The Company derecognizes a financial asset when the contractual rights to the cash flows from the asset expire, or it transfers the rights to receive the contractual cash flows on the financial asset in a transaction in which substantially all the risks and rewards of ownership of the financial asset are transferred. Any interest in transferred financial assets that is created or retained by the Company is recognized as a separate asset or liability.
B77: Financial assets and liabilities are offset and the net amount presented in the statement of financial position when, and only when, the Company has a legal right to offset the amounts and intends either to settle on a net basis or to realise the asset and settle the liability simultaneously.
B79: The Company has only loans and receivables, trade and other receivables, cash and cash equivalents as non-derivative financial assets.
B80: Loans and receivables
B81: Loans and receivables are financial assets with fixed or determinable payments that are not quoted in an active market. Short term receivables that do not attract interest are measured at original invoice amount where the effect of discounting is not material.
B83: Cash and cash equivalents
B84: Cash and cash equivalents comprise cash on hand, cash balances with banks and call deposits with original maturities of three months or less. Short-term borrowings and bank overdrafts that are repayable on demand and form an integral part of the Company’s cash management are included as a component of cash and cash equivalents for the purpose of statement of cash flows.
A86: iii | B86: Non-derivative financial liabilities - measurement
B87: Non-derivative financial liabilities are initially recognized at fair value less any directly attributable transaction costs. Subsequent to initial recognition, these liabilities are measured at amortised cost using the effective interest method. The Company has the following non-derivative financial liabilities: loans and borrowings, trade and other payables. Short term payables that do not attract interest are measured at original invoice amount where the effect of discounting is not material.
A90: (c) | B90: Property, plant and equipment
A92: i | B92: Recognition and measurement
B93: Items of property, plant and equipment are measured at cost less accumulated depreciation and accumulated impairment losses. The cost of certain items of PPE at 1 January 2011, the Company's date of transition to IFRS, was determined with reference to their fair value at that date.
B95: Cost includes expenditure that is directly attributable to the acquisition of the asset. Property, plant and equipment under construction are disclosed as capital work-in-progress. The cost of self-constructed assets includes the cost of materials and direct labour, any other costs directly attributable to bringing the assets to a working condition for their intended use including, where applicable, the costs of dismantling and removing the items and restoring the site on which they are located and borrowing costs on qualifying assets.
B96: Purchased software that is integral to the functionality of the related equipment is capitalized as part of the equipment.
B97: If significant parts of an item of property, plant and equipment have different useful lives, they are accounted for as separate items (major components) of property, plant and equipment.
B98: Gains and losses on disposal of an item of property, plant and equipment are determined by comparing the proceeds from disposal with the carrying amount of property, plant and equipment, and are recognized net within other income in profit or loss.
A100: ii | B100: Subsequent expenditure
B101: The cost of replacing a part of an item of property, plant and equipment is recognized in the carrying amount of the item if it is probable that the future economic benefits embodied within the part will flow to the Company and its cost can be measured reliably. The carrying amount of the replaced part is derecognized. The costs of the day-to-day servicing of property, plant and equipment are recognized in profit or loss as incurred.
A103: iii | B103: Depreciation
B104: Depreciation is calculated to write off the depreciable amount, which is the cost of an asset, or other amount substituted for cost, less its residual value.
B105: Depreciation is recognized in profit or loss on a straight-line basis over the estimated useful lives of each part of an item of property, plant and equipment which reflects the expected pattern of consumption of the future economic benefits embodied in the asset. Leased assets are depreciated over the shorter of the lease term and their useful lives unless it is reasonably certain that the Company will obtain ownership by the end of the lease term in which case the assets are depreciated over the useful life.
B107: The estimated useful lives for the current and comparative periods are as follows:
B109: Land and Buildings
B110: - Leasehold Land | D110: Lease period
B111: - Buildings | D111: 10 to 25 years
B112: Plant and Machinery | D112: 10 to 20 years
B113: Furniture and Fittings | D113: 5 years
B114: Automotive equipment | D114: 4 to 10 years
B115: Computer equipment | D115: 3 years
B116: Office equipment | D116: 5 years
B118: Depreciation methods, useful lives and residual values are reviewed at each reporting date and adjusted if appropriate.
B119: Capital work-in-progress is not depreciated. The attributable cost of each asset is transferred to the relevant asset category immediately the asset is available for use and depreciated accordingly.
A121: (d) | B121: Intangible assets
B122: Intangible assets that are acquired by the Company and have finite useful lives are measured at cost less accumulated amortisation and accumulated impairment losses.
B123: The Company’s intangible assets with finite useful lives comprise acquired software.
B125: Subsequent expenditure
B126: Subsequent expenditure is capitalized only when it increases the future economic benefits embodied in the specific intangible asset to which it relates. All other expenditure is recognized in profit or loss as incurred.
B128: Amortisation of intangible assets
B129: Amortisation is calculated over the cost of the asset, or other amount substituted for cost, less its residual value. Amortisation is recognized in profit or loss on a straight-line basis over the estimated useful lives of intangible assets from the date that they are available for use, since this most closely reflects the expected pattern of consumption of the future economic benefits embodied in the asset. There is no new addition to intangible assets in the current period.
B131: Amortisation methods, useful lives and residual values are reviewed at each reporting date and adjusted if appropriate. The useful life for computer software is 3 years.
A133: (e) | B133: Leases
A135: i | B135: Determining whether an arrangement contains a lease
B136: At inception of an arrangement, the Company determines whether such an arrangement is or contains a lease. At inception or on reassessment of the arrangement, the Company separates payments and other consideration required by such an arrangement into those for the lease and those for other elements on the basis of their relative fair values. If the Company concludes for a finance lease that it is impracticable to separate the payments reliably, then an asset and a liability are recognised at an amount equal to the fair value of the underlying asset. Subsequently, the liability is reduced as payments are made and an imputed finance cost on the liability is recognised using the Company’s incremental borrowing rate.
A137: ii | B137: Leased assets
B138: Assets held by the Company under leases that transfer to the Company substantially all of the risks and rewards of ownership are classified as finance leases. The leased assets are measured initially at an amount equal to the lower of their fair value and the present value of the minimum lease payments. Subsequent to initial recognition, the asset is accounted for in accordance with the accounting policy applicable to that asset.
B140: Assets held under other leases are classified as operating leases and are not recognised in the Company's statement of financial position.
A142: iii | B142: Lease payments
B143: Payments made under operating leases are recognised in profit or loss on a straight-line basis over the term of the lease. Lease incentives received are recognised as an integral part of the total lease expense, over the term of the lease.
B144: Minimum lease payments made under finance leases are apportioned between the finance expense and the reduction of the outstanding liability. The finance expense is allocated to each period during the lease term so as to produce a constant periodic rate of interest on the remaining balance of the liability.
A146: (f) | B146: Inventories
B148: Inventories are measured at the lower of cost and net realisable value. The cost of inventories includes expenditure incurred in acquiring the inventories, production or conversion costs and other costs incurred in bringing them to their existing location and condition. In the case of manufactured/ blended inventories and work in progress, cost includes an appropriate share of production overheads based on normal operating capacity.
B150: The basis of costing inventories are as follows:
B152: Product Type | D152: Cost Basis
B153: Refined petroleum products (i) ( AGO, ATK, PMS , DPK) | D153: Weighted average costs incurred (for regulated products reduced by the value of subsidies due)
B154: Refined petroleum product (ii) ( LPG) | D154: First in First Out (FIFO)
B155: Packaging materials , lubricants and greases | D155: Weighted average cost
B156: Inventories-in-transit | D156: Purchase cost incurred to date
B158: Net realisable value is the estimated selling price in the ordinary course of business, less the estimated costs of completion and selling expenses. Inventory values are adjusted for obsolete, slow-moving or defective items.
A160: (g) | B160: Impairment
A161: i | B161: Non-derivative financial assets
B162: Financial assets not classified at fair value through profit or loss are assessed at each reporting date to determine whether there is objective evidence of impairment.
B164: Objective evidence that financial assets are impaired includes:
B166: . | C166: default or delinquency by a debtor;
B167: . | C167: restructuring of an amount due to the Company on terms that the Company would not consider otherwise;
B168: . | C168: indications that a debtor or issuer will enter bankruptcy;
B169: . | C169: adverse changes in the payment status of borrowers or issuers;
B170: . | C170: the disappearance of an active market for a security; or
B171: . | C171: observable data indicating that there is measurable decrease in expected cash flows from a group of
C172: financial assets
B175: The Company considers evidence of impairment for these assets at both an individual asset and collective level. All individually significant assets are individually assessed for impairment. Those found not to be impaired are then collectively assessed for any impairment that has been incurred but not yet individually identified. Assets that are not individually significant are collectively assessed for impairment. Collective assessment is carried out by grouping together assets with similar risk characteristics.
B177: In assessing collective impairment, the Company uses historical information on timing of recoveries and the amount of loss incurred, and makes adjustment if current economic and credit conditions are such that the actual losses are likely to be greater or less than suggested by historical trends.
B179: An impairment loss is calculated as the difference between an asset's carrying amount and the present value of the estimated future cash flows discounted at the asset’s original effective interest rate. Losses are recognized in profit or loss and reflected in an allowance account. When the Company considers that there are no realistic prospects of recovery of the asset, the relevant amounts are written off. If the amount of impairment loss subsequently decreases and the decrease can be related objectively to an event occurring after the impairment was recognised, then the previously recognised impairment loss is reversed through profit or loss.
A181: ii | B181: Non-financial assets
B182: At each reporting date, the Company reviews the carrying amounts of its non-financial assets (other than inventories and deferred tax assets) to determine whether there is any indication of impairment. If any such indication exists, then the asset’s recoverable amount is estimated.
B184: For impairment testing, assets are grouped together into the smallest group of assets that generates cash flows from continuing use that are largely independent of the cash flows of other assets or cash generating units (CGUs).
B186: The recoverable amount of an asset or cash-generating unit is the greater of its value in use and its fair value less costs to sell. Value in use is based on the estimated future cash flows, discounted to their present value using a pre-tax discount rate that reflects current market assessments of the time value of money and the risks specific to the asset or CGU.
B188: An impairment loss is recognized if the carrying amount of an asset or CGU exceeds its estimated recoverable amount.
B189: Impairment losses are recognised in profit or loss. An impairment loss is reversed only to the extent that the asset's carrying amount does not exceed the carrying amount that would have been determined, net of depreciation or amortisation, if no impairment loss had been recognised.
A191: (h) | B191: Employee benefits
A192: i | B192: Defined contribution plan
B193: A defined contribution plan is a post-employment benefit plan (pension fund) under which the Company pays fixed contributions into a separate entity. The Company has no legal or constructive obligations to pay further contributions if the fund does not hold sufficient assets to pay all employees the benefits relating to employee service in the current and prior periods.
B194: In line with the provisions of the Pension Reform Act 2014, the Company has instituted a defined contribution pension scheme for its permanent staff. Employees contribute 6% each of their basic salary, transport and housing allowances to the Fund on a monthly basis. The Company’s contribution is 12% of each employee’s basic salary, transport and housing allowances. Staff contributions to the scheme are funded through payroll deductions while the Company’s contribution is recognised in profit or loss as employee benefit expense in the periods during which services are rendered by employees.
A196: ii | B196: Defined benefit plan
B197: The Company operated one gratuity scheme which was a defined benefit scheme for certain employees. This scheme was however terminated in February 2013 and all qualifying employees under the scheme were paid off. See note 19.
B198: The Company’s net obligation in respect of defined benefit scheme was calculated by estimating the amount of future benefit that employees have earned in return for their service in the current and prior periods and that benefit was discounted to determine its present value. In determining the liability for employee benefits under the defined benefit scheme, consideration was given to future increases in salary rates and the Company's experience with staff turnover.
B199: The recognised liability was determined by an independent actuarial valuation every year using the projected unit credit method. HR Nigeria Limited was engaged as the independent actuary in the prior years. Actuarial gains and losses arising from differences between the actual and expected outcome in the valuation of the obligation were recognised fully in Other Comprehensive Income. The effect of any curtailment is recognised in full in profit or loss immediately the curtailment occurs. The discount rate is the yield on Federal Government of Nigeria issued bonds that have maturity dates approximating the terms of the Company’s obligation. Although the scheme was not funded, the Company ensured that adequate arrangements were in place to meet its obligations under the scheme.
A201: ii | B201: Other long-term employee benefits
B202: The Company’s other long-term employee benefits represents a Long Service Award scheme instituted for all permanent employees. The Company’s obligations in respect of this scheme is the amount of future benefits that employees have earned in return for their service in the current and prior periods. The benefit is discounted to determine its present value. The discount rate is the yield at the reporting date on Federal Government of Nigeria issued bonds that have maturity dates approximating the term of the Company’s obligation. The calculation is performed using the Projected Unit Credit method. Remeasurements are recognised in profit or loss in the period in which they arise. Although the scheme was not funded, the Company ensured that adequate arrangements were in place to meet its obligations under the scheme.
A204: iii | B204: Termination benefits
B205: Termination benefits are expensed at the earlier of when the Company can no longer withdraw the offer of those benefits and when the Company recognises costs for a restructuring. If benefits are not expected to be settled wholly within 12 months of the end of the reporting period, then they are discounted.
A207: iv | B207: Short-term employee benefits
B208: Short-term employee benefit obligations are measured on an undiscounted basis and are expensed as the related service is provided.
B210: A liability is recognized for the amount expected to be paid under short-term cash bonuses if the Company has a present legal or constructive obligation to pay this amount as a result of past service provided by the employee, and the obligation can be estimated reliably.
A212: (i) | B212: Provisions and contingent liabilities
B213: Provisions
B215: A provision is recognized if, as a result of a past event, the Company has a present legal or constructive obligation that can be estimated reliably, and it is probable that an outflow of economic benefits will be required to settle the obligation. Provisions are determined by discounting the expected future cash flows at a pre-tax rate that reflects current market assessments of the time value of money and the risks specific to the liability. The unwinding of the discount is recognized as finance cost.
B217: A provision for restructuring is recognised when the Company has approved a detailed and formal restructuring plan, and the restructuring either has commenced or has been announced publicly. Future operating losses are not provided for.
B219: A provision for onerous contracts is recognized when the expected benefits to be derived by the Company from a contract are lower than the unavoidable cost of meeting its obligations under the contract. The provision is measured at the present value of the lower of the expected cost of terminating the contract and the expected net cost of continuing with the contract. Before a provision is established, the Group recognizes any impairment loss on the assets associated with that contract.
B221: Contingent liabilities
B222: A contingent liability is a possible obligation that arises from past events and whose existence will be confirmed only by the occurrence or non-occurrence of one or more uncertain future events not wholly within the control of the company, or a present obligation that arises from past events but is not recognised because it is not probable that an outflow of resources embodying economic benefits will be required to settle the obligation; or the amount of the obligation cannot be measured with sufficient reliability.
B223: Contingent liabilities are only disclosed and not recognised as liabilities in the statement of financial position.
A225: (j) | B225: Revenue
B226: Revenue from the sale of non-regulated products in the course of ordinary activities is measured at the fair value of the consideration received or receivable, net of value added tax, sales returns, trade discounts and volume rebates. Revenue is recognized when persuasive evidence exists that the significant risks and rewards of ownership have been transferred to the buyer, recovery of the consideration is probable, there is no continuing management involvement with the goods and the amount of revenue can be measured reliably. If it is probable that discounts will be granted and the amount can be measured reliably, then the discount is recognised as a reduction of revenue as the sales are recognised.
B228: Revenue for regulated products is measured at the regulated price of the products. The timing of the transfer of risks and rewards varies depending on whether the customer collects the products himself or the Company delivers to the customer using the third party transporters. For the former, revenue is recognized when the customer picks up the products from the Company's depots and the later, when delivery is made.
A230: (k) | B230: Finance income and finance costs
B231: Finance income comprising of interest income on funds invested, foreign currency gain on financial assets and financial liabilities, and reimbursement of any foreign exchange gain or loss or interest from Petroleum Product Pricing Regulatory Agency (PPPRA). Finance income is recognized as it accrues in profit or loss, using the effective interest method.
B233: Finance costs comprises interest expense on borrowings, bank charges, foreign currency loss on financial assets and financial liabilities, unwinding of the discount on provisions and are recognized in profit or loss using the effective interest method. Finance costs that are directly attributable to the acquisition, construction or production of a qualifying asset which are capitalised as part of the related assets.
B234: Foreign currency gains and losses are reported on a net basis.
A236: (l) | B236: Income tax
B238: Income tax expense comprises current and deferred tax. Current tax and deferred tax are recognized in profit or loss except to the extent that it relates to items recognized directly in equity or in other comprehensive income.
A240: i | B240: Current tax
B241: Current tax is the expected tax payable or receivable on the taxable income or loss for the year, using tax rates statutorily enacted at the reporting date, and any adjustment to tax payable in respect of previous years.
B242: The Company offsets the tax assets arising from WHT credits and current tax liabilities if, and only if, the entity has a legally enforceable right to set off the recognised amounts, and it intends either to settle on a net basis, or to realise the asset and settle the liability simultaneously. The tax asset is reviewed at each reporting date and written down to the extent that it is no longer probable that future economic benefit would be realised.
A244: ii | B244: Deferred tax
B245: Deferred tax is recognised in profit or loss except to the extent that it relates to a transaction that is recognised directly in equity. A deferred tax asset is recognised for unused tax credits and deductible temporary differences to the extent that it is probable that future taxable profits will be available against which the amount will be utilised. Deferred tax assets are reduced to the extent that it is no longer probable that the related tax benefit will be realised.
B247: Deferred tax is measured at the tax rates that are expected to be applied to temporary differences when they reverse, based on the laws that have been enacted or substantively enacted at the reporting date. Deferred tax assets and liabilities are offset only if certain criteria are met.
B249: Deferred tax is recognized in respect of temporary differences between the carrying amounts of assets and liabilities for financial reporting purposes and the amounts used for taxation purposes. Deferred tax is not recognized for the initial recognition of assets or liabilities in a transaction that is not a business combination and that affects neither accounting nor taxable profit or loss.
A252: (m) | B252: Earnings per share (EPS)
B254: The Company presents basic and diluted earnings per share (EPS) data for its ordinary shares. Basic EPS is calculated by dividing the profit or loss attributable to ordinary shareholders of the Company by the weighted average number of ordinary shares outstanding during the period, adjusted for own shares held. Diluted EPS is determined by adjusting the profit or loss attributable to ordinary shareholders and the weighted average number of ordinary shares outstanding, adjusted for own shares held, for the effects of all dilutive potential ordinary shares.
A256: (n) | B256: Segment reporting
B258: An operating segment is a component of the Company that engages in business activities from which it may earn revenues and incur expenses. All operating segments’ operating results are reviewed regularly by the Managing Director to make decisions about resources to be allocated to the segment and assess its performance, and for which discrete financial information is available.
B259: Segment results that are reported to the Managing Director include items directly attributable to a segment as well as those that can be allocated on a reasonable basis.
A261: (o) | B261: Statement of cash flows
B263: The statement of cash flows is prepared using the indirect method. Changes in statement of financial position items that have not resulted in cash flows have been eliminated for the purpose of preparing the statement. Dividends paid to ordinary shareholders are included in financing activities. Finance costs paid is also included in financing activities while finance income is included in investing activities.
A265: (p) | B265: Government grants
B266: Petroleum Products Pricing Regulatory Agency (PPPRA) subsidies which compensate the Company for losses made on importation of certain refined petroleum products are recognised when there is reasonable assurance that they will be recovered and the Company has complied with the conditions attached to receiving the subsidy. The subsidies are recognised as a reduction to the landing cost of the subsidised petroleum product.
A268: (q) | B268: Joint arrangement
B269: The Company’s joint arrangement is in respect of its interests in joint aviation facilities held with other parties. These Financial Statements include the Company’s share of assets, liabilities, revenue and expenses of the joint arrangement.
A270: (r) | B270: Share capital
B271: The Company has only one class of shares, ordinary shares. Ordinary shares are classified as equity. When new shares are issued, they are recorded in share capital at their par value. The excess of the issue price is recorded in the share premium reserve. Incremental costs directly attributable to the issue of ordinary shares, net of any tax effects are recognised as a deduction from equity.
A273: 4 | B273: Standards and Interpretations not yet effective (but available for early adoption)
B274: A number of standards, amendments to standards and interpretations are effective for annual periods beginning after 1 January 2016, and have not been applied in preparing these financial statements. Those which may be relevant to the Company are set out below. The Company does not plan to adopt these standards early. These will be adopted in the period that they become mandatory unless otherwise indicated.
B277: Effective for the financial year commencing 1 January 2016
B278: • Disclosure Initiative (Amendments to IAS 1)
B280: Effective for the financial year commencing 1 January 2018
B281: • IFRS 15 Revenue from Contracts with Customers
B283: Effective for the financial year commencing 1 January 2018
B284: • IFRS 9 Financial Instruments
B286: All Standards and Interpretations will be adopted at their effective date (except for those Standards and Interpretations that are not applicable to the entity). IFRS 14 Regulatory Deferral Accounts, Clarification of acceptable methods of depreciation and amortisation (Amendments to IAS 16 and IAS 38), Accounting for acquisitions of interests in joint operations (Amendments to IFRS 11), Agriculture: Bearer plants (Amendments to IAS 6 and IAS 41), Equity Method in Seperate Financial Statements (Amendments to IAS 127), Sale or Contribution of Assets between an Investor and its Associate or Joint Venture (Associates and Joint Ventues: Asset Transactions - Amendments to IFRS 10 and IAS 28), Investment Entities: Applying the Consolidation Exception (Amendments to IFRS 10, IFRS 12 and IAS 28) are not applicable to the business of the entity and will therefore have no impact on future financial statements. The directors are of the opinion that the impact of the application of the remaining Standards and Interpretations will be as follows:
B288: Amendments to IAS 32 Financial Instruments: Presentation: Offsetting Financial Assets and Financial Liabilities
B289: The amendments clarify when an entity can offset financial assets and financial liabilities. This amendment will result in the Company no longer offsetting two of its master netting arrangements. This amendment is effective for annual periods beginning on or after 1 January 2014 with early adoption permitted.
B291: IFRIC 21 Levies
B292: Levies have become more common in recent years, with governments in a number of jurisdictions introducing levies to raise additional income. Current practice on how to account for these levies is mixed. IFRIC 21 provides guidance on accounting for levies in accordance with IAS 37 Provisions, Contingent Liabilities and Assets. The Interpretation is effective for annual periods commencing on or after 1 January 2014 with retrospective application.
B293: Ammendments to IAS 1
B294: The amendments provide additional guidance on the application of materiality and aggregation when preparing financial statements. The ammendments is effective for annual reporting periods beginning on or after 1 January 2016, with early adoption permitted.
B296: IFRS 15 Revenue from contracts with customers
B297: This standard replaces IAS 11 Construction Contracts, IAS 18 Revenue, IFRIC 13 Customer Loyalty Programmes, IFRIC 15 Agreements for the Construction of Real Estate, IFRIC 18 Transfer of Assets from Customers and SIC-31 Revenue – Barter of Transactions Involving Advertising Services. The standard contains a single model that applies to contracts with customers and two approaches to recognising revenue: at a point in time or over time. The model features a contract-based five-step analysis of transactions to determine whether, how much and when revenue is recognised. This new standard will most likely have a significant impact on the Company, which will include a possible change in the timing of when revenue is recognised and the amount of revenue recognised. IFRS 15 is effective for annual reporting periods beginning on or after 1 January 2018, with early adoption permitted. The Company will adopt the amendments for the year ending 31 December 2018.
B299: IFRS 9 Financial Instruments
B300: On 24 July 2014, the IASB issued the final IFRS 9 Financial Instruments Standard, which replaces earlier versions of IFRS 9 and completes the IASB’s project to replace IAS 39 Financial Instruments: Recognition and Measurement. This standard will have a significant impact on the Company, which will include changes in the measurement bases of the Company’s financial assets to amortised cost, fair value through other comprehensive income or fair value through profit or loss. Even though these measurement categories are similar to IAS 39, the criteria for classification into these categories are significantly different. In addition, the IFRS 9 impairment model has been changed from an “incurred loss” model from IAS 39 to an “expected credit loss” model, which is expected to increase the allowance for bad debts recognised in the Company.
B301: The amendments apply retrospectively. The Company will adopt the amendments for the year ending 31 December 2018.

Sheet Notes 1- 5 (Acc policies) old (hidden)
B5: MRS Oil Nigeria Plc
B6: Notes to the financial statements for the year ended 31st December, 2013
A8: 1. | B8: Reporting entity
B9: The Company was incorporated as Texaco Nigeria Limited (a privately owned Company) on 12 August 1969 and was converted to a Public Limited Liability company quoted on the Nigerian Stock Exchange in 1978, as a result of the 1977 Nigerian Enterprises Promotions Decree. The Company is domiciled in Nigeria and its shares are listed at the Nigerian Stock Exchange (NSE). The Company’s name was changed to Texaco Nigeria Plc. in 1990 and again on 1 September 2006 to Chevron Oil Nigeria Plc.
B10: On the 20 March, 2009 there was an acquisition of Chevron Africa Holdings Limited, (a Bermudian Company) by Corlay Global SA of Moffson Building, East 54th Street, Panama, Republic of Panama. By virtue of this foreign transaction, M.R.S. Africa Holdings Limited gained control of all assets of Chevron Nigeria Holdings Limited, Bermuda.
B11: The new management of the Company announced a change of name of the Company from Chevron Oil Nigeria Plc to MRS Oil Nigeria Plc (“MRS”) effective 2nd of December, 2009 following the ratification of the name change of the Company at the 40th Annual General Meeting of the Company on September 29, 2009.
B13: The Company is domiciled in Nigeria and has its registered office address at:
B15: 8, Macarthy Street Onikan Lagos Nigeria
B17: The Company is principally engaged in the business of marketing and distribution of refined petroleum products, blending of lubricants and manufacturing of greases.
A19: 2 | B19: Basis of preparation
A21: (a) | B21: Statement of compliance
B22: These financial statements have been prepared in accordance with International Financial Reporting Standards (IFRSs). The financial statements were authorised for issue by the Board of Directors on __________ . Details of the company's accounting policies are included in Note 3.
A24: (b) | B24: Basis of measurement
B25: The financial statements have been prepared on the historical cost basis except for defined benefit obligations (Note 20).
A27: (c) | B27: Functional and presentation currency
B28: These financial statements are presented in Nigerian naira, which is the Company’s functional currency. All financial information presented in naira have been rounded to the nearest thousand unless stated otherwise. | H28: =48*260 -> 12,480 | I28: =60*260 -> 15,600
A30: (d) | B30: Use of estimates and judgements | H30: =H28*7 -> 87,360 | I30: =I28*7 -> 109,200
B31: The preparation of annual financial statements in conformity with IFRS requires management to make judgements, estimates and assumptions that affect the application of accounting policies and the reported amounts of assets, liabilities, income and expenses. Actual results may differ from these estimates.
B33: Estimates and underlying assumptions are reviewed on an ongoing basis. Revisions to accounting estimates are recognized in the period in which the estimates are revised and in any future periods affected.
A35: (i) | B35: Judgements:
B36: information about judgements made in applying accounting policies that have the most significant effects on the amounts recognized in the financial statements is included in Notes XXX with respect to recognition of income on foreign exchange and interest reimbursement on government grant.
A38: (ii) | B38: Assumptions and estimation uncertainties
B39: Information about assupmtions and estimation uncertainties that have a significant risk of resulting in a material adjustment in the year ending 31st December, 2014 is included in the following notes:
B40: Note 25 - Impairment test, key assumptions underlying recoverable amounts.
B41: Note 29 - Measurement of deferred benefits obligations; key actuarial assumptions.
A43: 3 | B43: Significant accounting policies
B44: The accounting policies set out below have been applied consistently to all periods presented in these financial statements. The company has adopted the following new standards and amendments to standards including
A46: (a) | B46: Foreign currency transactions
B47: Transactions denominated in foreign currencies are translated and recorded in Nigerian Naira at the actual exchange rates as of the date of the transaction. Monetary assets and liabilities denominated in foreign currencies at the reporting date are translated to the functional currency at the rates of exchange prevailing at that date. Non-monetary assets and liabilities denominated in foreign currencies that are measured at fair value are retranslated to the functional currency at the exchange rate at the date that the fair value was determined i.e. they are not retranslated.
B48: Foreign currency differences arising on retranslation are recognized in profit or loss, except for qualifying cash flow hedges, which are recognized in other comprehensive income. Non-monetary items that are measured in terms of historical cost in a foreign currency are translated using the exchange rate at the date of the transaction.
A50: (b) | B50: Financial instruments
A52: i. | B52: Non-derivative financial assets
B53: The Company initially recognizes loans and receivables on the date that they are originated. All other financial assets (including assets designated at fair value through profit or loss) are recognized initially on the trade date at which the Company becomes a party to the contractual provisions of the instrument.
B55: The Company derecognizes a financial asset when the contractual rights to the cash flows from the asset expire, or it transfers the rights to receive the contractual cash flows on the financial asset in a transaction in which substantially all the risks and rewards of ownership of the financial asset are transferred. Any interest in transferred financial assets that is created or retained by the Company is recognized as a separate asset or liability.
B56: Financial assets and liabilities are offset and the net amount presented in the statement of financial position when, and only when, the Company has a legal right to offset the amounts and intends either to settle on a net basis or to realize the asset and settle the liability simultaneously.
B58: The Company has the following non-derivative financial assets: financial assets at fair value through profit or loss, loans and receivables.
B60: Cash and cash equivalents
B61: Cash and cash equivalents comprise cash on hand; cash balances with banks and call deposits with original maturities of three months or less. Bank overdrafts that are repayable on demand and form an integral part of the Company’s cash management are included as a component of cash and cash equivalents for the purpose of statement of cash flows.
B63: Financial assets at fair value through profit or loss
B64: A financial asset is classified at fair value through profit or loss if it is classified as held for trading or is designated as such upon initial recognition. Financial assets are designated at fair value through profit or loss if the Company manages such investments and makes purchase and sale decisions based on their fair value in accordance with the Company’s documented risk management or investment strategy. Upon initial recognition attributable transaction costs are recognized in profit or loss as incurred. Financial assets at fair value through profit or loss are measured at fair value, and changes therein are recognized in profit or loss.
B66: Loans and receivables
B67: Loans and receivables are financial assets with fixed or determinable payments that are not quoted in an active market. Such assets are recognized initially at fair value plus any directly attributable transaction costs. Subsequent to initial recognition loans and receivables are measured at amortised cost using the effective interest method, less any impairment losses. Loans and receivables comprise trade and other receivables.
A69: ii | B69: Non-derivative financial liabilities
B71: All financial liabilities (including liabilities designated at fair value through profit or loss) are recognized initially on the trade date at which the Company becomes a party to the contractual provisions of the instrument.
B72: The Company derecognizes a financial liability when its contractual obligations are discharged or cancelled or expire.
B73: Financial assets and liabilities are offset and the net amount presented in the statement of financial position when, and only when, the Company has a legal right to offset the amounts and intends either to settle on a net basis or to realize the asset and settle the liability simultaneously.
B74: The Company has the following non-derivative financial liabilities: loans and borrowings, trade and other payables.
B76: Such financial liabilities are recognized initially at fair value plus any directly attributable transaction costs. Subsequent to initial recognition these financial liabilities are measured at amortised cost using the effective interest method.
A78: iii | B78: Share capital
B79: The Company has only one class of shares, ordinary shares. Ordinary shares are classified as equity.
B80: Incremental costs directly attributable to the issue of ordinary shares are recognized as a deduction from equity, net of any tax effects.
A83: (c) | B83: Property, plant and equipment
A85: i | B85: Recognition and measurement
B86: Items of property, plant and equipment are measured at cost or deemed cost less accumulated depreciation and accumulated impairment losses. The Company elected to apply the optional exemption to recognize cost of certain items of property, plant and equipment by reference to the previous (Nigerian) GAAP revaluation and others using the fair value option as deemed cost at 1 January 2011, the date of transition to IFRS.
B88: Cost includes expenditure that is directly attributable to the acquisition of the asset. Property, plant and equipment under construction are disclosed as capital work-in-progress. The cost of self-constructed asset includes the cost of materials and direct labour, any other costs directly attributable to bringing the assets to a working condition for their intended use including, where applicable, the costs of dismantling and removing the items and restoring the site on which they are located and borrowing costs on qualifying assets.
B90: Purchased software that is integral to the functionality of the related equipment is capitalized as part of the equipment.
B92: When parts of an item of property, plant and equipment have different useful lives, they are accounted for as separate items (major components) of property, plant and equipment.
B94: Gains and losses on disposal of an item of property, plant and equipment are determined by comparing the proceeds from disposal with the carrying amount of property, plant and equipment, and are recognized net within other income in profit or loss.
A96: ii | B96: Subsequent costs
B97: The cost of replacing a part of an item of property, plant and equipment is recognized in the carrying amount of the item if it is probable that the future economic benefits embodied within the part will flow to the Company and its cost can be measured reliably. The carrying amount of the replaced part is derecognized. The costs of the day-to-day servicing of property, plant and equipment are recognized in profit or loss as incurred.
A99: iii | B99: Depreciation
B100: Depreciation is calculated over the depreciable amount, which is the cost of an asset, or other amount substituted for cost, less its residual value.
B102: Depreciation is recognized in profit or loss on a straight-line basis over the estimated useful lives of each part of an item of property, plant and equipment which reflects the expected pattern of consumption of the future economic benefits embodied in the asset. Leased assets are depreciated over the shorter of the lease term and their useful lives unless it is reasonably certain that the Company will obtain ownership by the end of the lease term in which case the assets are depreciated over the useful life.
B104: The estimated useful lives for the current and comparative periods are as follows:
B106: - | C106: Land and Buildings
C107: - Leasehold Land | D107: Lease period
C108: - Buildings | D108: 10 to 25 years
B109: - | C109: Plant and Machinery | D109: 10 to 20 years
B110: - | C110: Furniture and Fittings | D110: 5 years
B111: - | C111: Automotive equipment | D111: 4 years
B112: - | C112: Computer and office equipment | D112: 3 years
B114: Depreciation methods, useful lives and residual values are reviewed at each financial year end and adjusted if appropriate.
B115: Capital work-in-progress is not depreciated. The attributable cost of each asset is transferred to the relevant asset category immediately the asset is available for use and depreciated accordingly.
A117: (d) | B117: Intangible assets
B118: Intangible assets that are acquired by the Company and have finite useful lives are measured at cost less accumulated amortisation and accumulated impairment losses.
B120: The Company’s intangible assets with finite useful lives comprise acquired software.
B122: Subsequent expenditure
B123: Subsequent expenditure is capitalized only when it increases the future economic benefits embodied in the specific intangible asset to which it relates. All other expenditure is recognized in profit or loss as incurred.
B125: Amortisation of intangible assets
B126: Amortisation is calculated over the cost of the asset, or other amount substituted for cost, less its residual value. Amortisation is recognized in profit or loss on a straight-line basis over the estimated useful lives of intangible assets from the date that they are available for use, since this most closely reflects the expected pattern of consumption of the future economic benefits embodied in the asset. The estimated useful life for the current period for the acquired computer software is 3 years.
A128: (e) | B128: Leases
B130: Leased assets
B131: Leases in terms of which the Company assumes substantially all the risks and rewards of ownership are classified as finance leases. Upon initial recognition the leased asset is measured at an amount equal to the lower of its fair value and the present value of the minimum lease payments. Subsequent to initial recognition, the asset is accounted for in accordance with the accounting policy applicable to that asset.
B133: Other leases are operating leases and the leased assets are not recognized in the Company’s statement of financial position.
B135: Lease payments
B136: Payments made under operating leases are recognised in profit or loss on a straight-line basis over the term of the lease. Lease incentives received are recognised as an integral part of the total lease expense, over the term of the lease.
B137: Minimum lease payments made under finance leases are apportioned between the finance expense and the reduction of the outstanding liability. The finance expense is allocated to each period during the lease term so as to produce a constant periodic rate of interest on the remaining balance of the liability.
B139: Determining whether an arrangement contains a lease
B140: At inception of an arrangement, the Company determines whether such an arrangement is or contains a lease. This will be the case if the following two criteria are met:
B141: · | C141: the fulfilment of the arrangement is dependent on the use of a specific asset or assets; and
B142: · | C142: the arrangement contains a right to use the asset(s).
B143: At inception or on reassessment of the arrangement, the Company separates payments and other consideration required by such an arrangement into those for the lease and those for other elements on the basis of their relative fair values. If the Company concludes for a finance lease that it is impracticable to separate the payments reliably, then an asset and a liability are recognised at an amount equal to the fair value of the underlying asset. Subsequently the liability is reduced as payments are made and an imputed finance cost on the liability is recognised using the Company’s incremental borrowing rate.
A145: (f) | B145: Inventories
B147: Inventories are measured at the lower of cost and net realizable value. The cost of inventories includes expenditure incurred in acquiring the inventories, production or conversion costs and other costs incurred in bringing them to their existing location and condition. In the case of manufactured/ blended inventories and work in progress, cost includes an appropriate share of production overheads based on normal operating capacity.
B149: The basis of costing inventories are as follows:
B151: Product Type | D151: Cost Basis
B152: White Petroleum Products ( AGO, ATK, PMS , DPK) | D152: Weighted Average Cost of costs incurred (for deregulated products) and reduced value of subsidies due for deregulated products.
B153: Packaging Materials , Lubricants and Greases | D153: First in , First Out
B154: Inventory-in-transit | D154: Purchase cost incurred to date
B156: Net realizable value is the estimated selling price in the ordinary course of business, less the estimated costs of completion and selling expenses. Inventory values are adjusted for obsolete, slow-moving or defective items.
A158: (g) | B158: Impairment
A159: i | B159: Non-derivative financial assets (including receivables)
B160: A financial asset not carried at fair value through profit or loss, including an equity accounted investee, is assessed at each reporting date to determine whether there is objective evidence that it is impaired. A financial asset is impaired if objective evidence indicates that a loss event has occurred after the initial recognition of the asset, and that the loss event had a negative effect on the estimated future cash flows of that asset that can be reliably estimated.
B162: Objective evidence that financial assets (including equity securities) are impaired can include default or delinquency by a debtor, restructuring of an amount due to the Company on terms that the Company would not consider otherwise, indications that a debtor or issuer will enter bankruptcy, or the disappearance of an active market for a security. In addition, for an investment in an equity security, a significant or prolonged decline in its fair value below its cost is objective evidence of impairment.
B164: The Company considers evidence of impairment for receivables at both a specific asset and collective level. All individually significant receivables are assessed for specific impairment. All individually significant receivables found not to be specifically impaired are then collectively assessed for any impairment that has been incurred but not yet identified. Receivables that are not individually significant are collectively assessed for impairment by grouping together receivables with similar risk characteristics.
B166: In assessing collective impairment the Company uses historical trends of the probability of default, timing of recoveries and the amount of loss incurred, adjusted for management’s judgement as to whether current economic and credit conditions are such that the actual losses are likely to be greater or less than suggested by historical trends.
B168: An impairment loss in respect of a financial asset measured at amortised cost is calculated as the difference between its carrying amount and the present value of the estimated future cash flows discounted at the asset’s original effective interest rate. Losses are recognized in profit or loss and reflected in an allowance account against receivables. Interest on the impaired asset where applicable continues to be recognized through the unwinding of the discount. When a subsequent event causes the amount of impairment loss to decrease, the decrease in impairment loss is reversed through profit or loss.
A170: ii | B170: Non-financial assets
B171: The carrying amounts of the Company’s non-financial assets, other than inventories are reviewed at each reporting date to determine whether there is any indication of impairment. If any such indication exists, then the asset’s recoverable amount is estimated.
B173: The recoverable amount of an asset or cash-generating unit is the greater of its value in use and its fair value less costs to sell. In assessing value in use, the estimated future cash flows are discounted to their present value using a pre-tax discount rate that reflects current market assessments of the time value of money and the risks specific to the asset. For the purpose of impairment testing, assets that cannot be tested individually are grouped together into the smallest group of assets that generates cash inflows from continuing use that are largely independent of the cash inflows of other assets or groups of assets (the “cash-generating unit, or CGU”).
B175: The Company’s corporate assets do not generate separate cash inflows. If there is an indication that a corporate asset may be impaired, then the recoverable amount is determined for the CGU to which the corporate asset belongs.
B177: An impairment loss is recognized if the carrying amount of an asset or its CGU exceeds its estimated recoverable amount. Impairment losses are recognized in profit or loss. Impairment losses recognized in respect of CGUs are allocated first to reduce the carrying amount of any goodwill allocated to the units, and then to reduce the carrying amounts of the other assets in the unit (group of units) on a pro rata basis.
B179: Impairment losses recognized in prior periods are assessed at each reporting date for any indications that the loss has decreased or no longer exists. An impairment loss is reversed if there has been a change in the estimates used to determine the recoverable amount. An impairment loss is reversed only to the extent that the asset’s carrying amount does not exceed the carrying amount that would have been determined, net of depreciation or amortisation, if no impairment loss had been recognized.
A181: (h) | B181: Employee benefits
A183: i | B183: Defined contribution plan
B184: A defined contribution plan is a post-employment benefit plan (pension fund) under which the Company pays fixed contributions into a separate entity. The Company has no legal or constructive obligations to pay further contributions if the fund does not hold sufficient assets to pay all employees the benefits relating to employee service in the current and prior periods.
B185: In line with the provisions of the Pension Reform Act 2004, the Company has instituted a defined contribution pension scheme for its permanent staff. Staff contributions to the scheme are funded through payroll deductions while the Company’s contribution is recognised in profit or loss as employee benefit expense in the periods during which services are rendered by employees. Employees contribute 3 % each of their Basic salary, Transport and Housing Allowances to the Fund on a monthly basis. The Company’s contribution is 12 % of each employee’s Basic salary, Transport and Housing Allowances.
A187: ii | B187: Defined benefit plan
B188: The Company currently operates one gratuity scheme which is a defined benefit scheme for certain employees.
B189: The Company’s net obligation in respect of defined benefit scheme is calculated by estimating the amount of future benefit that employees have earned in return for their service in the current and prior periods and that benefit is discounted to determine its present value. In determining the liability for employee benefits under the defined benefit scheme, consideration is given to future increases in salary rates and the Company's experience with staff turnover.
B190: The recognised liability is determined by an independent actuarial valuation every year using the projected unit credit method. HR Nigeria Limited was engaged as the independent actuary in the current and prior years. Actuarial gains and losses arising from differences between the actual and expected outcome in the valuation of the obligation are recognised fully in Other Comprehensive Income. The effect of any curtailment is recognised in full in the profit or loss immediately the curtailment occurs. The discount rate is the yield on Federal Government of Nigeria issued bonds that have maturity dates approximating the terms of the Company’s obligation. Although the scheme is not funded, the Company ensures that adequate arrangements are in place to meet its obligations under the scheme.
A192: iii | B192: Other long-term employee benefits
B193: The Company’s other long-term employee benefits represents Long Service Awards scheme instituted for all permanent employees. The Company’s obligations in respect of these schemes are the amount of future benefits that employees have earned in return for their service in the current and prior periods. The benefit is discounted to determine its present value. The discount rate is the yield at the reporting date on Federal Government of Nigeria issued bonds that have maturity dates approximating the term of the Company’s obligation. The calculation is performed using the Projected Unit Credit method. Any actuarial gains and losses are recognised in profit or loss in the period which they arise.
A195: iv | B195: Termination benefits
B196: Termination benefits are recognized as an expense when the Company is committed demonstrably, without realistic possibility of withdrawal, to a formal detailed plan to either terminate employment before the normal retirement date, or to provide termination benefits as a result of an offer made to encourage voluntary redundancy. Termination benefits for voluntary redundancies are recognized as an expense if the Company has made an offer of voluntary redundancy, it is probable that the offer will be accepted, and the number of acceptances can be estimated reliably. If benefits are payable more than 12 months after the reporting period, then they are discounted to their present value.
A198: v | B198: Short-term employee benefits
B199: Short-term employee benefit obligations are measured on an undiscounted basis and are expensed as the related service is provided.
B201: A liability is recognized for the amount expected to be paid under short-term cash bonuses if the Company has a present legal or constructive obligation to pay this amount as a result of past service provided by the employee, and the obligation can be estimated reliably.
A203: (i) | B203: Provisions and contingent liabilities
B205: Provisions
B206: A provision is recognized if, as a result of a past event, the Company has a present legal or constructive obligation that can be estimated reliably, and it is probable that an outflow of economic benefits will be required to settle the obligation. Provisions are determined by discounting the expected future cash flows at a pre-tax rate that reflects current market assessments of the time value of money and the risks specific to the liability. The unwinding of the discount is recognized as finance cost.
B207: A provision for restructuring is recognised when the Company has approved a detailed and formal restructuring plan, and the restructuring either has commenced or has been announced publicly. Future operating losses are not provided for.
B208: A provision for onerous contracts is recognized when the expected benefits to be derived by the Company from a contract are lower than the unavoidable cost of meeting its obligations under the contract. The provision is measured at the present value of the lower of the expected cost of terminating the contract and the expected net cost of continuing with the contract. Before a provision is established, the Group recognizes any impairment loss on the assets associated with that contract.
B210: Contingent liabilities
B211: A contingent liability is a possible obligation that arises from past events and whose existence will be confirmed only by the occurrence or non-occurrence of one or more uncertain future events not wholly within the control of the company, or a present obligation that arises from past events but is not recognised because it is not probable that an outflow of resources embodying economic benefits will be required to settle the obligation; or the amount of the obligation cannot be measured with sufficient reliability.
B213: Contingent liabilities are only disclosed and not recognised as liabilities in the statement of financial position.
B215: If the likelihood of an outflow of resources is remote, the possible obligation is neither a provision nor a contingent liability and no disclosure is made.
A217: (j) | B217: Revenue
B218: Revenue from the sale of goods in the course of ordinary activities is measured at the fair value of the consideration received or receivable, net of value added tax, sales returns, trade discounts and volume rebates. Revenue for regulated products equates the amounts that accrue to the Company directly net of amounts the Company collects from regulators on behalf of third parties i.e. dealer commissions and transport costs. Revenue is recognized when persuasive evidence exists that the significant risks and rewards of ownership have been transferred to the buyer, recovery of the consideration is probable and there is no continuing management involvement with the goods and the amount of revenue can be measured reliably.
B219: If it is probable that discounts will be granted and the amount can be measured reliably, then the discount is recognised as a reduction of revenue as the sales are recognised.
A221: (k) | B221: Rental income
B222: Rental income is recognized in profit or loss on a straight-line basis over the term of the lease. Lease incentives granted are recognized as an integral part of the total rental income, over the term of the lease. Rental income is recognized as other income.
A224: (l) | B224: Finance income and finance costs
B225: Finance income comprises interest income on funds invested and changes in the fair value of financial assets at fair value through profit or loss.. Finance income is recognized as it accrues in profit or loss, using the effective interest method.
B226: Finance costs comprise interest expense on borrowings, bank charges, unwinding of the discount on provisions and impairment losses recognized on financial assets except finance costs that are directly attributable to the acquisition, construction or production of a qualifying asset which are capitalised as part of the related assets, are recognized in profit or loss using the effective interest method.
B228: Foreign currency gains and losses are reported on a net basis.
A231: (m) | B231: Income and deferred tax
B232: Income tax expense comprises current and deferred tax. Current tax and deferred tax are recognized in profit or loss except to the extent that it relates to a business combination, or items recognized directly in equity or in other comprehensive income.
B233: Current tax is the expected tax payable or receivable on the taxable income or loss for the year, using tax rates statutorily enacted at the reporting date, and any adjustment to tax payable in respect of previous years.
B234: Deferred tax is recognised in profit or loss account except to the extent that it relates to a transaction that is recognised directly in equity. A deferred tax asset is recognised only to the extent that it is probable that future taxable profits will be available against which the amount will be utilised. Deferred tax assets are reduced to the extent that it is no longer probable that the related tax benefit will be realised.
B235: Deferred tax is measured at the tax rates that are expected to be applied to temporary differences when they reverse, based on the laws that have been enacted or substantively enacted by the reporting date. Deferred tax assets and liabilities are offset if there is a legally enforceable right to offset current tax liabilities and assets, and they relate to income taxes levied by the same tax authority on the same taxable entity, or on different tax entities, but they intend to settle current tax liabilities and assets on a net basis or their tax assets and liabilities will be realized simultaneously.
B236: Deferred tax is recognized in respect of temporary differences between the carrying amounts of assets and liabilities for financial reporting purposes and the amounts used for taxation purposes. Deferred tax is not recognized for the initial recognition of assets or liabilities in a transaction that is not a business combination and that affects neither accounting nor taxable profit or loss.
A238: (n) | B238: Earnings per share (EPS)
B239: The Company presents basic and diluted earnings per share (EPS) data for its ordinary shares. Basic EPS is calculated by dividing the profit or loss attributable to ordinary shareholders of the Company by the weighted average number of ordinary shares outstanding during the period, adjusted for own shares held. Diluted EPS is determined by adjusting the profit or loss attributable to ordinary shareholders and the weighted average number of ordinary shares outstanding, adjusted for own shares held, for the effects of all dilutive potential ordinary shares.
A241: (o) | B241: Segment reporting
B242: An operating segment is a component of the Company that engages in business activities from which it may earn revenues and incur expenses. All operating segments’ operating results are reviewed regularly by the Board of Directors to make decisions about resources to be allocated to the segment and assess its performance, and for which discrete financial information is available.
B243: Segment results that are reported to the Board of Directors include items directly attributable to a segment as well as those that can be allocated on a reasonable basis.
A245: (p) | B245: Loans and borrowings
B246: Loans and borrowings are recognised initially at fair value, net of transaction costs incurred. Loans and borrowings are subsequently stated at amortised cost; any difference between the proceeds (net of transaction costs) and the redemption value is recognised in profit or loss over the period of the borrowings using the effective interest method.
B248: Loans and borrowings, for which the Company has an unconditional right to defer settlement of the liability for at least 12 months after the statement of financial position date, are classified as non-current liabilities.
A250: (q) | B250: Statement of cash flows
B251: The statement of cash flows is prepared using the indirect method. Changes in statement of financial position items that have not resulted in cash flows such as translation differences, fair value changes, equity-settled share-based payments and other non-cash items, have been eliminated for the purpose of preparing the statement. Dividends paid to ordinary shareholders are included in financing activities. Finance costs paid is also included in financing activities while finance income is included in investing activities.
A253: (r) | B253: Government Grants
B254: Petroleum Products Pricing Regulatory Agency (PPPRA) subsidies which compensate the Company for losses made on importation of certain refined petroleum products are recognised when there is reasonable assurance that they will be recovered and the Company has complied with the conditions attached to receiving the subsidy. The subsidies are recognised as a reduction to the landing cost of the subsidised petroleum product.
A256: (s) | B256: Jointly Controlled Assets
B257: Jointly controlled assets refers to the Company’s interests in joint aviation facilities held with other parties. These financial Statements include the Company’s share of these jointly controlled assets and a proportionate share of the relevant revenue and related operating costs.
A259: 4 | B259: New standards and interpretations not yet adopted
B260: A number of new standards, amendments to standards and interpretations are effective for annual periods beginning after 1 January 2013, and have not been applied in preparing these financial statements. Those which may be relevant to the Company are IFRS 11 Joint Arrangement, IFRS 13 Fair Value Measurement and IFRS 9 Financial Instruments, which is expected to impact the classification and measurement of financial assets. These standards will become mandatory for the Company’s 2013 financial statements except for IFRS 9 which is mandatory for the 2015 financial statements. The extent of the impact has not been determined and the Company does not plan to adopt these standards early.
A262: 5 | B262: Determination of fair values
B263: A number of the Company’s accounting policies and disclosures require the determination of fair value, for both financial and non-financial assets and liabilities. Fair values have been determined for measurement and/or disclosure purposes based on the following methods. When applicable, further information about the assumptions made in determining fair values is disclosed in the notes specific to that asset or liability.
A265: (i) | B265: Trade and other receivables
B266: The fair value of trade and other receivables is estimated as the present value of future cash flows, discounted at the market rate of interest at the reporting date. This fair value is determined for disclosure purposes. For short term trade receivables, no disclosure of fair value is presented when the carrying amount is a reasonable approximation of fair value.
A268: (ii) | B268: Non-derivative financial instruments
B269: Fair value, which is determined for disclosure purposes, is calculated based on the present value of future principal and interest cash flows, discounted at the market rate of interest at the reporting date.

Sheet Notes 5 - 11
B3: Notes to the financial statements
A5: 5 | B5: Revenue | G5: March 2016 | I5: March 2015
G6: N’000 | I6: N’000
B7: Premium Motor Spirit (PMS) | G7: 20,895,449 | I7: 16,725,938
B8: Aviation Turbine Kerosene (ATK) | G8: 1,567,314 | I8: 2,528,569
B9: Automotive Gas Oil (AGO) | G9: 1,029,652 | I9: 1,096,346
B10: Lubricants and greases | G10: 804,470 | I10: 524,263
B11: Dual Purpose Kerosene (DPK) | G11: 774,237 | I11: 450,980
B12: Liquidified Petroleum Gas (LPG) | G12: 0 | I12: 12,973.00
G13: 25,071,122 | I13: 21,339,069
A15: 6 | B15: Other income | G15: March 2016 | I15: March 2015
G16: N’000 | I16: N’000
B17: Rental and lease income (Note 6(a)) | G17: 4,648 | I17: 23,386
B18: Gains on disposal/Sale of property, plant & equipment | G18: 0 | I18: 2,000
B19: Sundry income (Note 6(b)) | G19: 211,458 | I19: 222,109
B20: Income on storage services | G20: 165,544 | I20: 92,736
B22: Total | G22: 381,650 | I22: 340,231
A24: (a) | B24: Rental and lease income relates to income earned on assets that are on lease (finance and operating leases) to third parties. Assets on lease include filling stations and related equipment (generators and dispenser pumps).
A26: (b) | B26: Sundry income represents service fees for handling and other fees earned in the delivery of products.
A28: 7 | B28: Expenses by nature | G28: March 2016 | I28: March 2015
G29: N’000 | I29: N’000
B30: Depreciation | G30: 399,894 | I30: 403,268
B31: Amortization of intangible assets | G31: 195 | I31: 27,909
B32: Changes in inventories of lubes, greases and refined products | G32: 23,319,148 | I32: 19,489,316
B33: Rental of service stations, buildings and equipment | G33: 60,650 | I33: 58,646
B34: Advertising expense | G34: 22,319 | I34: 14,393
B35: Consultancy expense | G35: 73,153 | I35: 21,597
B36: Maintenance expense | G36: 91,328 | I36: 46,141
B37: Throughput expense | G37: 13,184 | I37: 248,664
B38: Freight expense | G38: 125,867 | I38: 89,756
B39: Management fees (Note 26 (c)) | G39: 183,726 | I39: 157,790
B40: Director's remuneration | G40: 1,250 | I40: 2,500
B41: Employee benefit expense (Note 9 (b)) | G41: 143,062 | I41: 131,888
B42: Auditor's remuneration | G42: 7,500 | I42: 6,342
B43: Impairment loss on employee and other receivables | G43: 0 | I43: 0
B44: Impairment loss on trade receivables | G44: 0 | I44: 0
B45: Impairment loss on non-current assets | G45: 0 | I45: 0
B46: Local and international travel | G46: 16,166 | I46: 15,108
B47: Office expenses and supplies | G47: 35,125 | I47: 36,311
B48: Communication and postage | G48: 41,947 | I48: 36,264
B49: Fines and penalties | G49: 77 | I49: 0
B50: Insurance premium | G50: 31,178 | I50: 28,123
B51: Contract labour | G51: 136,751 | I51: 121,777
B52: Sponsorships and donations | G52: 321 | I52: 3,714
B53: Licenses and Levies | G53: 20,269 | I53: 22,814
B54: Utilities | G54: 14,845 | I54: 8,169
B55: Subcriptions | G55: 1,588 | I55: 858
B56: Board meetings and AGM expenses | G56: 4,081 | I56: 22,540
B57: Security | G57: 10,675 | I57: 7,141
B58: Other expenses | G58: 73,923 | I58: 85,912
B59: Total cost of sales, selling and distribution and administrative expenses | G59: 24,828,222 | I59: 21,086,941
A62: 8 | B62: Finance income and finance costs | G62: March 2016 | I62: March 2015
G63: N’000 | I63: N’000
B64: Finance income
B65: Interest income on short-term bank deposits | G65: 159,205 | I65: 31,188
B66: PPPRA reimbursement on interest and foreign exchange differential (a) | G66: 0 | I66: 0
B67: Interest on employee receivables | G67: 0 | I67: 0
B68: Interest income on loans to transporters (Note 14) | G68: 10,311 | I68: 30,552
B69: Total finance income | G69: 169,516 | I69: 61,740
B71: Finance cost
B72: Interest expense | G72: 35,314 | I72: 152,881
B73: Bank charges | G73: 42,118 | I73: 28,828
B74: Net foreign exchange loss | G74: 90,146 | I74: 1,206,905
B75: Total finance costs | G75: 167,578 | I75: 1,388,614
B77: Net finance costs/ (income) | G77: (1,938) | I77: 1,326,874
A79: (a) | B79: This amount represents net interest / foreign exchange differential cost claims received from PPPRA arising from delayed subsidy payments relating to products imported.
A81: 9 | B81: Profit before income tax | G81: March 2016 | I81: March 2015
A82: (a) | B82: Profit before income tax is stated after charging/(crediting):
G83: N’000 | I83: N’000
B84: Depreciation (Note 12) | G84: 399,894 | I84: 403,268
B85: Amortisation of intangible assets (Note 13) | G85: 195 | I85: 27,909
B86: Management fees (Note 26(c)) | G86: 183,726 | I86: 157,790
B87: Service fee (Note 26(b)) | G87: 0 | I87: 0
B88: Director's remuneration (Note 9(b)(iv)) | G88: 1,250 | I88: 2,500
B89: Employee benefit expense (Note 9(b)(i)) | G89: 143,062 | I89: 131,888
B90: Auditor's remuneration | G90: 7,500 | I90: 6,342
B91: Gain on disposal of property, plant and equipment | G91: 0 | I91: (2,000)
B92: PPPRA reimbursement on interest and foreign exchange differential | G92: 0 | I92: 0
B93: Net foreign exchange loss (Note 8) | G93: 90,146 | I93: 1,206,905
A95: (b) | B95: Directors and employees
A97: i | B97: Employee costs during the year comprise:
G98: March 2016 | I98: March 2015
G99: N’000 | I99: N’000
B100: Salaries and wages | G100: 93,355 | I100: 102,166
B101: Other employee benefits | G101: 38,040 | I101: 16,507
B102: Employer's pension contribution | G102: 10,511 | I102: 11,378
B103: Reversal of post employment benefit charge | G103: 0 | I103: 0
B104: Other long term employee benefit charge | G104: 1,156 | I104: 1,837
G106: 143,062 | I106: 131,888
A108: ii | B108: The average number of full-time persons employed during the year (other than executive directors) was as follows:
G109: Number
G110: March 2016 | I110: March 2015
B111: Administration | G111: 20 | I111: 21
B112: Technical and production | G112: 2 | I112: 2
B113: Operations and distribution | G113: 27 | I113: 27
B114: Sales and marketing | G114: 33 | I114: 34
G116: 82 | I116: 84
A118: iii | B118: Higher-paid employees of the Company and other than directors, whose duties were wholly or mainly discharged in Nigeria, received remuneration in excess of N1,000,000 (excluding pension contributions) in the following ranges:
G119: Number
G120: March 2016 | I120: March 2015
B121: N | C121: N
B122: 1,000,001 | C122: 2,000,000 | G122: 0 | I122: 0
B123: 2,000,001 | C123: 3,000,000 | G123: 7 | I123: 19
B124: 3,000,001 | C124: 4,000,000 | G124: 39 | I124: 30
B125: 4,000,001 | C125: 5,000,000 | G125: 8 | I125: 10
B126: 5,000,001 | C126: 6,000,000 | G126: 9 | I126: 10
B127: 6,000,001 | C127: 7,000,000 | G127: 10 | I127: 10
B128: 7,000,001 | C128: 8,000,000 | G128: 5 | I128: 0
B129: 8,000,001 | C129: 9,000,000 | G129: - | I129: 1
B130: 9,000,001 | C130: 10,000,000 | G130: - | I130: 1
B131: Above | C131: 10,000,000 | G131: 4 | I131: 3
G133: 82 | I133: 84
A135: iv | B135: Directors' remuneration for directors of the Company charged to profit or loss account are as follows:
G136: March 2016 | I136: March 2015
G137: N’000 | I137: N’000
B138: Fees | G138: 1,000 | I138: 2,000
B139: Other emoluments | G139: 250 | I139: 500
G140: 1,250 | I140: 2,500
B142: The directors' remuneration shown above includes:
B143: Chairman | G143: 0 | I143: 0
B144: Highest paid director | G144: 1,250 | I144: 6,040
B146: Other directors received emoluments in the following ranges:
G147: Number
G148: March 2016 | I148: March 2015
B150: Nil | G150: 2 | I150: 2
B151: 1,000,001 | C151: 2,000,000 | G151: 1 | I151: 1
B152: 2,000,001 | C152: 3,000,000 | G152: 1 | I152: 1
B153: 2,000,001 | C153: 3,000,000 | G153: 0 | I153: 0
B154: 3,000,001 | C154: 4,000,000 | G154: 0 | I154: 0
B155: 4,000,001 | C155: 5,000,000 | G155: 0 | I155: 0
B156: 5,000,001 | C156: 6,000,000 | G156: 0 | I156: 0
A158: 10 | B158: Earnings per share (EPS) and Dividend declared per share
A160: (a) | B160: Basic EPS
B161: Basic earnings per share of N1.43 (March 2015: N(3.62) is based on profit attributable to ordinary shareholders of N363,363,000 (March 2015: (N919,829,000), and on the 253,988,672 ordinary shares of 50 kobo each, being the weighted average number of ordinary shares in issue during the period (March 2015: 253,988,672).
G163: March 2016 | I163: March 2015
B165: Profit for the year attributable to shareholders (expressed in Naira) | G165: 363,363,000 | I165: (919,829,000)
B166: Weighted average number of ordinary shares in issue | G166: 253,988,672 | I166: 253,988,672
B167: Basic earnings per share (expressed in Naira per share) | G167: 1.43 | I167: (3.62)
A169: (b) | B169: Diluted Earnings per share
B170: The Company had no dilutive ordinary shares to be accounted for in these finncial statements. Consequently, diluted and basic earnings per share are the same.
A172: (c) | B172: Dividend declared per share
B173: Dividend declared per share of 88 kobo (2014: 74.93 kobo) is based on total declared dividend of N223.51 million (2014: N190.31 million) on 253,988,672 ordinary shares of 50 kobo each, being the ordinary shares in issue during the year (2014: 253,988,672 ordinary shares).
A175: (b) | B175: Dividend declared per share
B176: Dividend declared per share of xx kobo (2014: xx kobo) is based on total declared dividend of xx million (2013: Nxx million) on 253,988,672 ordinary shares of 50 kobo each, being the ordinary shares in issue during the year (2013: 253,988,672 ordinary shares).
A177: 11 | B177: Income taxes
B178: Income tax expense
B179: The tax charge for the period has been computed after adjusting for certain items of expenditure and income, which are not deductible or chargeable for tax purposes, and comprises:
A181: (a) | B181: Amounts recognized in profit or loss
G182: March 2016 | I182: March 2015
G183: N’000 | I183: N’000
B184: Current tax expense:
B185: Income tax | G185: 250,595 | I185: 234,603
B186: Tertiary education tax | G186: 12,530 | I186: 17,491
B187: Capital gains tax | G187: 0 | I187: 0
B188: Prior year over-provision | G188: 0 | I188: 0
G189: 263,125 | I189: 252,094
B190: Deferred tax expense:
B191: Origination and reversal of temporary differences | G191: 0 | I191: (66,780)
G192: 0 | I192: (66,780)
B193: Tax expense on operations | G193: 263,125 | I193: 185,314
A195: (b) | B195: Tax recognized in other comprehensive income:
B196: No tax was recognised in other comprehensive income during the year (2013: Nil).
A199: (b) | B199: Reconciliation of effective tax rates
B200: The tax on the Company's profit before tax differs from the theoretical amount as follows:
C202: % | E202: March 2016 | G202: % | I202: March 2015
B204: Profit before income tax | E204: 626,488 | I204: (734,515)
G205: `
B207: Income tax using the statutory tax rate | C207: 40 | E207: 250,595 | G207: 32 | I207: 234,603
B209: Effect of:
B210: Impact of capital gains tax | E210: 0 | I210: 0
B211: Impact of tertiary education tax | C211: 2 | D211: 0 | E211: 12,530 | G211: 2 | I211: 17,491
B212: Effect of tax incentives | C212: 0 | E212: 0 | G212: 0 | I212: 0
B213: Non deductible expenses | C213: 0 | D213: 0 | E213: 0 | G213: 0 | I213: 0
B214: Prior year over-provision | C214: 0 | D214: 0 | E214: 0 | G214: 0 | I214: 0
B215: Other differences | C215: 0 | D215: 0 | E215: 0 | G215: (9) | I215: (66,780)
B217: Total income tax expense in income statement | C217: 42 | E217: 263,125 | G217: 25 | I217: 185,314
A219: (c) | B219: Movement in current tax liability
G221: March 2016 | I221: December 2015
G222: N’000 | I222: N’000
B223: Balance at beginning of the year | G223: 991,830 | I223: 1,217,783
B224: Payments during the year | G224: 0 | I224: (939,113)
B225: Net provision for the year | G225: 263,125 | I225: 735,029
B226: Prior year under provision | G226: 0 | I226: 0
B227: Tax impact of prior year adjustments | G227: 0 | I227: 0
B228: Reversal of prior year over-provision | G228: 0 | I228: 0
B229: Withholding tax credit notes utilized | G229: 0 | I229: (21,869)
B230: Tax impact of prior year errors | G230: 0
B232: Withholding tax credit notes offset | G232: 0 | I232: 0
G233: 1,254,955 | I233: 991,830
B234: The Company believes that its accruals for tax liabilities are adequate for all open tax years based on its assessment of many factors, including interpretations of tax laws and prior experience.

Sheet Sheet6 (hidden)
K4: =2/E8 -> -0.02218623122
K5: 2015 | L5: 2014
D6: =SUM('Notes 13 - 29'!I411:J413) -> 0 | E6: =D6/1000 -> 0 | F6: =E6/$E$11*1 -> 0 | G6: =SUM('Notes 13 - 29'!K411:L413) -> 85,669 | H6: =G6/1000 -> 85.669 | I6: =H6/$E$11*1 -> 0.24 | J6: Provisions | K6: =F6+3 -> 3.00 | L6: =I6+3 -> 3.24
D7: =(443699854.12/1000)+951000 -> 1,394,699.85 | E7: 1394.699854 | F7: =E7/$E$11*1 -> 3.84 | H7: 0 | I7: =H7/$E$11*1 -> 0 | J7: Write backs | K7: =F7+3 -> 6.84 | L7: =I7+3 -> 3.00
D8: =-'Notes 5 - 11'!G74 -> (90,146.00) | E8: -90.146 | F8: =E8/$E$11*1 -> (0.25) | G8: =-'Notes 5 - 11'!I74 -> (1,206,905.00) | H8: -1206.905 | I8: =H8/$E$11*1 -> (3.32) | J8: Exchange losses | K8: =F8+3 -> 2.75 | L8: =I8+3 -> (0.32)
D9: ='Notes 5 - 11'!G66 -> 0 | E9: 0 | F9: =E9/$E$11*1 -> 0 | G9: ='Notes 5 - 11'!I66 -> 0 | H9: 0 | I9: =H9/$E$11*1 -> 0 | J9: One -off income (PSF interest and forex) | K9: =F9+3 -> 3.00 | L9: =I9+3 -> 3.00
D10: =D11-D9-D7-D8-D6 -> (941,190.85) | E10: -941.1908541 | F10: =E10/$E$11*1 -> (2.59) | G10: =G11-G9-G7-G8-G6 -> 201,407.00 | H10: 201.407 | I10: =H10/$E$11*1 -> 0.55 | J10: Others | K10: =F10+3 -> 0.41 | L10: =I10+3 -> 3.55
D11: ='Stmnt of comp inc'!D42 -> 363,363.00 | E11: 363.363 | F11: 1 | G11: ='Stmnt of comp inc'!F42 -> (919,829.00) | H11: -919.829 | I11: 1

Sheet Note11cont (hidden)
B3: Notes to the financial statements
A6: (d) | B6: Recognised deferred tax assets and liabilities
B7: Deferred tax assets and liabilities are attributable to the following:
F9: Assets | J9: Liabilities | N9: Net
F10: 2015 | H10: 2014 | J10: 2015 | L10: 2014 | N10: 2015 | P10: 2014
F11: N’000 | H11: N’000 | J11: N’000 | L11: N’000 | N11: N’000 | P11: N’000
B12: Property, plant and equipment | F12: 0 | H12: 0 | J12: =-5494533 -> (5,494,533) | L12: (5,783,712) | N12: =J12+F12 -> (5,494,533) | P12: (5,783,712)
B13: Intangible assets | F13: 0 | H13: 0 | J13: 0 | L13: 0 | N13: 0 | P13: =H13+#REF! -> 
B14: Employee benefits | F14: 3,785 | H14: 4,892 | J14: 0 | L14: 0 | N14: =J14+F14 -> 3,785 | P14: 4,892
B15: Impairment loss | F15: 137,106 | H15: 106,164 | J15: 0 | L15: 0 | N15: =J15+F15 -> 137,106 | P15: 106,164
B16: Inventories | F16: 8,800 | H16: 17,628 | J16: 0 | L16: 0 | N16: =J16+F16 -> 8,800 | P16: 17,628
B17: Net unrealised exchange difference | F17: 32,743 | H17: 133,118 | J17: 0 | L17: 0 | N17: =J17+F17 -> 32,743 | P17: 133,118
B18: Others | F18: 0 | H18: 0 | J18: 0 | N18: =J18+F18 -> 0
F20: =SUM(F12:F19) -> 182,434 | H20: =SUM(H12:H19) -> 261,802 | J20: =SUM(J12:K18) -> (5,494,533) | L20: =SUM(L12:M17) -> (5,783,712) | N20: =SUM(N12:O18) -> (5,312,099) | P20: =P12+P14+P15+P16+P17 -> (5,521,910) | R20: ='Stmt of financial position'!D40 -> 5,312,099 | S20: =P20+'[155]Stmt of financial position'!F34 -> 877,980 | T20: =#REF!+'[155]Stmt of financial position'!H34 -> 
B22: The Company does not have any unrecognized deferred tax assets or liabilities
A26: (e) | B26: Movement in temporary differences during the year
F29: Balance | H29: Recognized in | J29: Balance | L29: Recognized in | N29: Balance
F30: 2014-01-01 | H30: profit or loss | J30: 2014-12-31 | L30: profit or loss | N30: 2015-12-31
F31: N’000 | H31: N’000 | J31: N’000 | L31: N’000 | N31: N’000
B32: Property, plant and equipment | F32: (6,068,376) | G32: (6,068,376) | H32: =J32-F32 -> 284,664 | J32: =P12 -> (5,783,712) | L32: =N32-J32 -> 289,179 | N32: =N12 -> (5,494,533) | R32: =148257+67104+94490-6709741 -> -6399890
B33: Intangible assets | H33: 0 | I33: 0 | J33: =P13 ->  | L33: =N33-J33 ->  | N33: 0
B34: Employee benefits | F34: 4,662 | G34: 4,662 | H34: =J34-F34 -> 230 | J34: =P14 -> 4,892 | L34: (1,107) | N34: 3,785
B35: Impairment loss | F35: 71,348 | G35: 71,348 | H35: =J35-F35 -> 34,816 | J35: 106,164 | L35: 30,942 | N35: 137,106
B36: Inventories | F36: 24,163 | G36: 24,163 | H36: =J36-F36 -> (6,535) | J36: 17,628 | L36: (8,828) | N36: 8,800
B37: Net unrealised exchange difference | F37: (13,416) | G37: (13,416) | H37: =J37-F37 -> 146,534 | J37: 133,118 | L37: (100,375) | N37: 32,743
B38: Others | L38: 0 | N38: =N18 -> 0
F40: =F32+F34+F35+F36+F37 -> (5,981,619) | H40: =H32+H34+H35+H36+H37 -> 459,709 | J40: =J32+J34+J35+J36+J37 -> (5,521,910) | L40: =L32+L34+L35+L36+L38+L37 -> 209,811 | N40: =SUM(N32:N38) -> (5,312,099) | S40: =F40-#REF! ->  | T40: =J40-P20 -> 0 | U40: =N40-N20 -> 0
S41: =H40+'[155]Notes 5-11'!G185 -> (9,614) | T41: =L40+'[155]Notes 5-11'!E185 -> 46,925

Sheet Sheet4 (hidden)
B7: Notes to the financial statements
A9: ='Notes 5 - 11'!A177+1 -> 12 | B9: Property, Plant and Equipment
A10: (a) | B10: The movement on these accounts was as follows:
C11: Leasehold Land & Buildings | E11: Plant & Machinery | F11: Automotive Equipment | H11: Computer & Office Equipment | J11: Furniture & Fittings | K11: Capital Work in Progress | M11: Total
C12: N’000 | E12: N’000 | F12: N’000 | H12: N’000 | J12: N’000 | K12: N’000 | M12: N’000
B13: Cost
B14: Balance at 1 January 2014 | C14: 14,438,612 | E14: 10,149,259 | F14: 1,646,343 | G14: 0 | H14: 775,767 | I14: 0 | J14: 191,302 | K14: 373,103 | M14: =SUM(C14:K14) -> 27,574,386
B15: Additions | C15: ='[156]2a. Adjusted Summary Sheet'!C26 -> 19,773 | D15: 0 | E15: 233,974 | F15: 111,434 | H15: 42,628 | J15: ='[156]2a. Adjusted Summary Sheet'!K26 -> 12,882 | K15: =113345+3830 -> 117,175 | M15: =SUM(C15:K15) -> 537,866
B16: Transfers | C16: 34,981 | E16: 254,311 | F16: 75,311 | H16: 25,362 | J16: 0 | K16: (389,965) | M16: =SUM(C16:K16) -> 0
B17: Write-off | E17: =-85500 -> (85,500) | M17: =SUM(C17:K17) -> (85,500)
B18: Disposals | C18: 0 | E18: 0 | F18: (18,022) | H18: 0 | J18: 0 | K18: 0 | M18: =SUM(C18:K18) -> (18,022)
B21: Balance as at 31 December 2014 | C21: =SUM(C14:C18) -> 14,493,366 | D21: 0.0 | E21: 10,552,044 | F21: 1,815,066 | G21: 0.0 | H21: 843,757 | I21: 0.0 | J21: 204,184 | K21: 100,313 | M21: =SUM(M14:M18) -> 28,008,730
B23: Cost
B24: Balance as at 1 January 2013 | C24: 14,388,204 | E24: 9,876,568 | F24: 1,333,110 | H24: 761,280 | J24: 191,302 | K24: 125,699 | M24: =SUM(C24:K24) -> 26,676,163
B25: Additions | C25: 0 | D25: 0 | E25: 0 | F25: 0 | H25: 0 | J25: 0 | K25: 901,297 | M25: =SUM(C25:K25) -> 901,297
B26: Transfers | C26: 50,408 | E26: 272,691 | F26: 316,307 | H26: 14,487 | J26: 0 | K26: (653,893) | M26: =SUM(C26:K26) -> 0
B27: Reclassification/ Adjustments | M27: =SUM(C27:K27) -> 0
B28: Disposals | C28: 0 | E28: 0 | F28: (3,074) | H28: 0 | J28: 0 | K28: 0 | M28: =SUM(C28:K28) -> (3,074)
B30: Balance as at 31 December 2013 | C30: =SUM(C24:C28) -> 14,438,612 | D30: 0 | E30: 10,149,259 | F30: 1,646,343 | G30: 0 | H30: 775,767 | I30: 0 | J30: 191,302 | K30: 373,103 | M30: =SUM(M24:M28) -> 27,574,386
B32: Depreciation and impairment losses
B34: Balance as at 1 January 2014 | C34: 1,502,999 | E34: 2,796,338 | F34: 1,100,939 | H34: 655,686 | J34: 167,155 | K34: 0 | M34: =SUM(C34:K34) -> 6,223,117 | O34: =F18-F37 -> (1,340)
B35: Charge for the year | C35: 293,544 | E35: 999,625 | F35: 227,372 | H35: 63,274 | J35: 6,096 | K35: 0 | M35: =SUM(C35:K35) -> 1,589,911 | O35: =M35-'[156]Notes 6- 11'!G84 -> 0
B36: Reclassification/ Adjustments | C36: 0 | E36: 0 | F36: 0 | H36: 0 | J36: 0 | K36: 0 | M36: =SUM(C36:K36) -> 0
B37: Disposal | C37: 0 | E37: 0 | F37: (16,682) | H37: 0 | J37: 0 | K37: 0 | M37: =SUM(C37:K37) -> (16,682)
B39: Balance as at 31 December 2014 | C39: =SUM(C34:C37) -> 1,796,543 | E39: =SUM(E34:E37) -> 3,795,963 | F39: =SUM(F34:F37) -> 1,311,629 | H39: =SUM(H34:H37) -> 718,960 | J39: =SUM(J34:J37) -> 173,251 | K39: =SUM(K34:K37) -> 0 | M39: =SUM(M34:M37) -> 7,796,346
B41: Depreciation and impairment losses
B43: Balance as at 1 January 2013 | C43: 1,212,384 | E43: 1,850,304 | F43: 954,350 | H43: 525,460 | J43: 120,097 | K43: 0 | M43: =SUM(C43:K43) -> 4,662,595 | O43: =F28-F46 -> (266)
B44: Charge for the year | C44: 290,615 | E44: 946,034 | F44: 149,397 | H44: 130,226 | J44: 47,058 | K44: 0 | M44: =SUM(C44:K44) -> 1,563,330
B45: Reclassification/ Adjustments | C45: 0 | E45: 0 | F45: 0 | H45: 0 | J45: 0 | K45: 0 | M45: =SUM(C45:K45) -> 0
B46: Disposals | C46: 0 | E46: 0 | F46: (2,808) | H46: 0 | J46: 0 | K46: 0 | M46: =SUM(C46:K46) -> (2,808)
B48: Balance as at 31 December 2013 | C48: =SUM(C43:C46) -> 1,502,999 | E48: =SUM(E43:E46) -> 2,796,338 | F48: =SUM(F43:F46) -> 1,100,939 | H48: =SUM(H43:H46) -> 655,686 | J48: =SUM(J43:J46) -> 167,155 | K48: =SUM(K43:K47) -> 0 | M48: =SUM(M43:M46) -> 6,223,117
B51: Carrying amounts
B52: Balance as at 31 December 2014 | C52: =C21-C39 -> 12,696,823 | E52: =E21-E39 -> 6,756,081 | F52: =F21-F39 -> 503,437 | H52: =H21-H39 -> 124,797 | J52: =J21-J39 -> 30,933 | K52: =K21-K39 -> 100,313 | M52: =M21-M39 -> 20,212,384 | O52: -368
B53: Balance as at 31 December 2013 | C53: =+C30-C48 -> 12,935,613 | D53: 0 | E53: 7,352,921 | F53: 545,404 | G53: 0 | H53: 120,081 | I53: 0 | J53: 24,147 | K53: 373,103 | M53: =+M30-M48 -> 21,351,269
C54: =C39-Sheet4!C21 -> -12,696,823 | D54: =D39-Sheet4!D21 -> 0 | E54: =E39-Sheet4!E21 -> -6,756,081 | F54: =F39-Sheet4!F21 -> -503,437 | G54: =G39-Sheet4!G21 -> 0 | H54: =H39-Sheet4!H21 -> -124,797 | I54: =I39-Sheet4!I21 -> 0 | J54: =J39-Sheet4!J21 -> -30,933 | K54: =K39-Sheet4!K21 -> -100,313 | L54: =L39-Sheet4!L21 -> 0 | M54: =M39-Sheet4!M21 -> -20,212,384
C55: ='Note 12 (PPE)'!C49 -> 12,477,940 | D55: ='Note 12 (PPE)'!D49 -> 0 | E55: ='Note 12 (PPE)'!E49 -> 5,938,866 | F55: ='Note 12 (PPE)'!F49 -> 406,817 | G55: ='Note 12 (PPE)'!G49 -> 0 | H55: ='Note 12 (PPE)'!H49 -> 121,202 | I55: ='Note 12 (PPE)'!I49 -> 29,052 | J55: ='Note 12 (PPE)'!J49 -> 29,052 | K55: ='Note 12 (PPE)'!K49 -> 79,828 | L55: ='Note 12 (PPE)'!L49 -> 0 | M55: ='Note 12 (PPE)'!M49 -> 20,212,384
M57: =M53-M52 -> 1,138,885.00
H59: =F18-F37 -> (1,340) | M59: =M15 -> 537,866
M60: =-M35-#REF! -> 
L61: =12.6*4 -> 50.4 | M61: =M37-M18 -> 1,340

Sheet Note 12 (PPE)
B5: Notes to the financial statements
B7: Property, Plant and Equipment
A8: (a) | B8: The movement on these accounts was as follows:
C9: Leasehold Land & Buildings | E9: Plant & Machinery | F9: Automotive Equipment | H9: Computer & Office Equipment | J9: Furniture & Fittings | K9: Capital Work in Progress | M9: Total
C10: N’000 | E10: N’000 | F10: N’000 | H10: N’000 | J10: N’000 | K10: N’000 | M10: N’000
B11: Cost
B12: Balance at 1 January 2016 | C12: 14,568,251 | D12: 0 | E12: 10,770,226 | F12: 1,913,021 | G12: 0 | H12: 864,556 | I12: 0 | J12: 210,101 | K12: 79,828 | M12: 28,405,983
B13: Additions | C13: 8,059 | E13: 40,369 | F13: 392 | H13: 3,849 | J13: 4,356 | K13: 37,069 | M13: 94,094
B14: Transfers | C14: 0 | E14: 0 | H14: 0 | J14: 0 | M14: 0
B17: Balance as at 31 March 2016 | C17: 14,576,310 | D17: 0.0 | E17: 10,810,595 | F17: 1,913,413 | G17: 0.0 | H17: 868,405 | I17: 0.0 | J17: 214,457 | K17: 116,897 | M17: 28,500,077
B19: Cost
B20: Balance as at 1 January 2013 | C20: 14,388,204 | E20: 9,876,568 | F20: 1,333,110 | H20: 761,280 | J20: 191,302 | K20: 125,699
B21: Additions | C21: 0 | D21: 0 | E21: 0 | F21: 0 | H21: 0 | J21: 0 | K21: 901,297
B22: Transfers | C22: 50,408 | E22: 272,691 | F22: 316,307 | H22: 14,487 | J22: 0 | K22: (653,893)
B23: Reclassification/ Adjustments
B24: Disposals | C24: 0 | E24: 0 | F24: (3,074) | H24: 0 | J24: 0 | K24: 0
B26: Balance as at 31 December 2013 | C26: 14,438,612 | D26: 0 | E26: 10,149,259 | F26: 1,646,343 | G26: 0 | H26: 775,767 | I26: 0 | J26: 191,302 | K26: 373,103
B28: Depreciation and impairment losses
B30: Balance as at 1 January 2016 | C30: 2,090,311 | E30: 4,831,360 | F30: 1,506,204 | H30: 743,354 | J30: 181,049 | K30: 0 | M30: 9,352,278
B31: Charge for the year | C31: 73,439 | E31: 275,256 | F31: 36,494 | H31: 12,759 | J31: 1,946 | M31: 399,894 | O31: 0
B32: Reclassification/ Adjustments | K32: 0 | M32: 0
B33: Impairment loss | M33: 0
B35: Balance as at 31 March 2016 | C35: 2,163,750 | E35: 5,106,616 | F35: 1,542,698 | H35: 756,113 | J35: 182,995 | K35: 0 | M35: 9,752,172
B37: Depreciation and impairment losses
B39: Balance as at 1 January 2013 | C39: 1,212,384 | E39: 1,850,304 | F39: 954,350 | H39: 525,460 | J39: 120,097 | K39: 0 | M39: 4,662,595 | O39: (266)
B40: Charge for the year | C40: 290,615 | E40: 946,034 | F40: 149,397 | H40: 130,226 | J40: 47,058 | K40: 0 | M40: 1,563,330
B41: Reclassification/ Adjustments | C41: 0 | E41: 0 | F41: 0 | H41: 0 | J41: 0 | K41: 0 | M41: 0
B42: Disposals | C42: 0 | E42: 0 | F42: (2,808) | H42: 0 | J42: 0 | K42: 0 | M42: (2,808)
B44: Balance as at 31 December 2013 | C44: 1,502,999 | E44: 2,796,338 | F44: 1,100,939 | H44: 655,686 | J44: 167,155 | K44: 0 | M44: 6,223,117
B47: Carrying amounts
B48: Balance as at 31 March 2016 | C48: 12,412,560 | E48: 5,703,979 | F48: 370,715 | H48: 112,292 | J48: 31,462 | K48: 116,897 | M48: 18,747,905 | O48: -368
B49: Balance as at 31 December 2015 | C49: 12,477,940 | E49: 5,938,866 | F49: 406,817 | H49: 121,202 | I49: 29,052 | J49: 29,052 | K49: 79,828 | M49: 20,212,384

Sheet Sheet3 (hidden)
A12: Other National Disclosures

Sheet Other Information - VAS (hidden)
A3: Other National Disclosures
A5: Value added statement
A6: For the year ended 31
B8: December 2015 | E8: December 2014
B9: N’000 | E9: N’000
A10: Revenue | B10: =+'Notes 5 - 11'!G13 -> 25,071,122 | E10: 92,325,405 | F10: =SUM(E10) -> 92,325,405 | K10: -21483031 | L10: =K10+17798548 -> -3684483
A11: Bought in materials and services | J11: =B13+24209224 -> (11,827,267)
A13: - Imported | B13: =-36036491 -> (36,036,491) | E13: (19,934,429) | I13: 24209224.47
A14: - Local | B14: =L23 -> 11,751,420 | E14: (68,756,604) | I14: =+I37-I13 -> 59,301,677.23 | J14: =B10-B18-B17 -> 23,564,389
B15: =SUM(B10:B14) -> 786,051 | E15: =SUM(E10:E14) -> 3,634,372 | J15: =J14-B39 -> 22,227,172
A16: Other income | B16: =+'Notes 5 - 11'!G22 -> 381,650 | E16: 1,255,531
A17: Finance income | B17: =+'Notes 5 - 11'!G69 -> 169,516 | E17: 277,712 | I17: =59281/0.2334 -> 253,988.86 | J17: =B13/J18 -> 1.483894818 | L17: =E13/L18 -> 0.2247626206
A18: Value added by operating activities | B18: =SUM(B15:B17) -> 1,337,217 | E18: =SUM(E15:E17) -> 5,167,615 | J18: =B13+B14 -> (24,285,071) | L18: =E14+E13 -> (88,691,033)
A21: Distribution of Value Added | D21: % | G21: %
A23: To Government as: | L23: =B39-B17-B16-B10-B13 -> 11,751,420
A24: Taxes and duties | B24: =+'Notes 5 - 11'!G193 -> 263,125 | D24: =ROUND(B24/B39*100,0) -> 20 | E24: 535,649 | G24: =ROUND(E24/E39*100,0) -> 10
K25: =B18-B39 -> 0
A26: To Employees:
A27: Salaries, wages, fringe and end of service benefits | B27: =+'Notes 5 - 11'!G41 -> 143,062 | D27: =ROUND(B27/B39*100,0) -> 11 | E27: 785,082 | G27: =ROUND(E27/E39*100,0) -> 15
A29: To Providers of Finance:
A30: - Finance cost | B30: =+'Notes 5 - 11'!G75 -> 167,578 | D30: =ROUND(B30/B39*100,0) -> 13 | E30: 1,427,577 | G30: =ROUND(E30/E39*100,0) -> 28
A32: Retained in the Business | I32: (76,738,658)
A33: To maintain and replace: | I33: =-88360321257.34/1000 -> -88360321.26
A34: - Property, plant and equipment | B34: =+'Notes 5 - 11'!G84 -> 399,894 | D34: =ROUND(B34/B39*100,0) -> 30 | E34: 1,589,911 | G34: =ROUND(E34/E39*100,0) -> 31 | I34: =+I33-I32 -> (11,621,663)
A35: - Intangible assets | B35: =+'Notes 5 - 11'!G85 -> 195 | D35: =ROUND(B35/B39*100,0) -> 0 | E35: 82,992 | G35: =ROUND(E35/E39*100,0) -> 2 | I35: 4400125
A36: Proposed dividend | B36: ='Notes 13 - 29'!I281 -> 0 | D36: =ROUND(B36/B39*100,0) -> 0 | E36: 223,921 | G36: =ROUND(E36/E39*100,0) -> 4 | I36: 6,772,244
A37: To augment retained earnings | B37: =+'Stmnt of comp inc'!D32-'Other Information - VAS'!B36 -> 363,363 | D37: =ROUND(B37/B39*100,0) -> 27 | E37: 522,483 | G37: =ROUND(E37/E39*100,0) -> 10 | I37: =+I36-I32 -> 83,510,901.70
A39: Value added | B39: =SUM(B24:B38) -> 1,337,217 | D39: =SUM(D24:D37) -> 101 | E39: =SUM(E24:E37) -> 5,167,615 | G39: =SUM(G24:G37) -> 100

Sheet Fin Summary (hidden)
A3: Other National Disclosures
A4: Financial summary
A6: Statement of comprehensive income
B7: 2015 | D7: 2014 | F7: 2013 | H7: 2012
B8: N’000 | D8: N’000 | F8: N’000 | H8: N’000
A9: Revenue | B9: =+'Stmnt of comp inc'!D12 -> 25,071,122 | D9: =+'[157]Stmnt of comp inc'!F12 -> 92,325,405 | F9: 87,786,323 | H9: 79,727,349
A10: Results from operating activities | B10: =+'Stmnt of comp inc'!D21 -> 624,550 | D10: =+'[157]Stmnt of comp inc'!F21 -> 2,431,918 | F10: (1,092,618) | H10: 1,587,900
A11: Profit before taxation | B11: =+'Stmnt of comp inc'!D28 -> 626,488 | D11: =+'[157]Stmnt of comp inc'!F28 -> 1,282,053 | F11: 1,407,143 | H11: 378,755
A12: Profit for the year | B12: =+'Stmnt of comp inc'!D32 -> 363,363 | D12: =+'[157]Stmnt of comp inc'!F32 -> 746,404 | F12: 634,418 | H12: 205,121
A13: Comprehensive income for the year | B13: =+'Stmnt of comp inc'!D42 -> 363,363 | D13: =+'[157]Stmnt of comp inc'!F42 -> 746,404 | F13: 634,418 | H13: 208,846
A15: Ratios | K15: nn
A16: Earnings per share (Kobo) | B16: ='Stmnt of comp inc'!D46*100 -> 143 | D16: ='[157]Stmnt of comp inc'!F46*100 -> 294 | F16: 250 | H16: 81
A17: Declared dividend per share (Kobo) | B17: 88 | D17: 74.93 | F17: 23.34 | H17: 70
A18: Net assets per share (kobo) | B18: =+('Stmt of financial position'!D34/'Notes 5 - 11'!G166)*100000 -> 8,402 | D18: =+('[157]Stmt of financial position'!F34/'[157]Notes 6- 11'!I169)*100000 -> 7,960 | F18: 7,728 | H18: 7,502
A20: Statement of financial position
B21: 31 Dec 2015 | D21: 31 Dec 2014 | F21: 31 Dec 2013 | H21: 31 Dec 2012
A22: Employment of Funds | B22: N’000 | D22: N’000 | F22: N’000 | H22: N’000
A23: Property, plant and equipment | B23: =+'Stmt of financial position'!D11 -> 18,747,905 | C23: =SUM(B23) -> 18,747,905 | D23: =+'[157]Stmt of financial position'!F12 -> 20,212,384 | F23: 21,351,269 | H23: 22,013,568
A24: Intangible assets | B24: =+'Stmt of financial position'!D12 -> 949 | C24: 949 | D24: =+'[157]Stmt of financial position'!F13 -> 57,366 | F24: 81,320 | H24: 140,560
A25: Loans and receivables | B25: ='Stmt of financial position'!D13 -> 0 | D25: 0 | F25: 655,229 | H25: 0
A26: Trade and other receivables | B26: =+'Stmt of financial position'!D15 -> 0 | C26: 0 | D26: =+'[157]Stmt of financial position'!F16 -> 2,044 | F26: =5361 -> 5,361 | H26: =7507 -> 7,507
A27: Prepayment | B27: =+'Stmt of financial position'!D14 -> 351,063 | C27: 351,063 | D27: =+'[157]Stmt of financial position'!F15 -> 297,014 | F27: 303,594 | H27: 236,673
A28: Net current assets | B28: =+'Stmt of financial position'!D25-'Stmt of financial position'!D50 -> 7,566,643 | C28: 7,566,643 | D28: =5187530 -> 5,187,530 | F28: =3229534 -> 3,229,534 | H28: =3112717 -> 3,112,717
A29: Employee benefit obligation | B29: =-'Stmt of financial position'!D39 -> (13,774) | C29: (13,774) | D29: (16,307) | F29: (15,541) | H29: (218,415)
A30: Deferred tax liability | B30: =-'Stmt of financial position'!D40 -> (5,312,099) | D30: =-'[157]Stmt of financial position'!F40 -> (5,521,910) | F30: (5,981,619) | H30: (6,238,600)
A31: Net assets | B31: =SUM(B23:B30) -> 21,340,687 | D31: =SUM(D23:D30) -> 20,218,121 | F31: =SUM(F23:F30) -> 19,629,147 | H31: =SUM(H23:H30) -> 19,054,010
A33: Funds Employed
A34: Share capital | B34: 126,994 | D34: 126,994 | F34: 126,994 | H34: 126,994
A35: Retained earnings | B35: ='Stmt of changes in equity'!D43 -> 21,213,693 | D35: 20,091,127 | F35: 19,502,153 | H35: 18,927,016
B36: =SUM(B34:B35) -> 21,340,687 | D36: =SUM(D34:D35) -> 20,218,121 | F36: =SUM(F34:F35) -> 19,629,147 | H36: =SUM(H34:H35) -> 19,054,010
A39: The financial information presented above reflects historical summaries based on International Financial Reporting Standards. Information related to other prior periods has not been presented as it is based on a different financial reporting framework (Nigerian GAAP) and is therefore not directly comparable.

Sheet Notes 13 - 29
B3: Notes to the financial statements
A5: (b) | B5: Impairment assessment
B7: The carrying amount of the Company's net assets exceeded its market capitalization as at 2015 year end. As a result of this, management carried out an impairment test. Based on results of the test, the recoverable amount of the Company's cash generating units (CGU) are higher than the carrying amount i.e fair value less costs of disposal exceeds the carrying amount hence none of the company's assets were impaired. No further impairment test has been carried out as at the end of the period March 2016.
I8: 2013 | K8: 2012
I9: N’000 | K9: N’000
B10: Discount rate | I10: 18% | K10: 18%
B11: Terminal value growth rate | I11: 7% | K11: 7%
B13: The discount rate was a pre-tax measure based on the Company's borrowing rate from external sources. Five (5) years of cash flows were included in the discounted cash flow made. A long term growth rate into perpetuity has been determined as 9.73% (2012: 9.73%).
A15: ( c ) | B15: The Company holds various parcels of land under lease arrangements. The maximum tenor of the lease is 99 years in line with the Land Use Act. The lease amounts were fully paid at the inception of the lease arrangements and these are depreciated over the lease period. At 31 March 2016, the carrying amount of leased land was N7.87 billion (Dec. 2015: N7.92 billion).
A18: ( d ) | B18: Capital commitments
B19: Capital expenditure commitments at the period end authorised by the Board of Directors comprise:
I20: March 2016 | K20: December 2015
I21: N’000 | K21: N’000
B22: Capital commitments | I22: 393,422.82 | K22: 541,805
A24: (e) | B24: Depreciation expense amounting to Nxxxxxx million (2013: Nil) relating to the plant used for blending lubes has been included in cost of sales. Other depreciation expenses are included as part of administrative expenses.
A26: (f) | B26: Included in additions to property, plant and equipment of Nxxxx are items not yet paid for as at the year end amounting to N xxxx million (2013: N30.31 million ). These amounts are included in accrued expenses (See Note 22) and have been adjusted for in the statement of cashflows.
A29: 13 | B29: Intangible assets
I30: March 2016 | K30: December 2015
I31: N’000 | K31: N’000
B32: Cost
B33: Balance as at 1 January | I33: 234,088 | K33: 234,088
B34: Additions | I34: 0 | K34: 0
B36: Balance as at 31 | I36: 234,088 | K36: 234,088
B38: Accumulated amortisation
B39: Balance as at 1 January | I39: 232,944 | K39: 176,722
B40: Charge for the year | I40: 195 | K40: 56,222
B42: Balance as at 31 | I42: 233,139 | K42: 232,944
B44: Carrying amount | I44: 949 | K44: 1,144
B46: Amortisation of N0.2 million is included in 'administrative expenses' in the statement of profit or loss and other comprehensive income (Dec. 2015: N56.2 million).
A49: 14 | B49: Loans and receivables
B51: In 2013, the Company purchased tankers from a related party (Rosscourt International Limited) amounting to N2.65 billion. The Company, then entered into an arrangement with some of its transporters to provide these tankers to them, at cost of the tankers plus an interest of 17% per annum. The transporters were expected to repay from freight costs charged to the Company for services rendered and repayment periods range from 12 to 24 months. The transporters made a 20% contribution at the commencement of the arrangement. Outstanding balance on the tankers are secured by the Company's retention of title to the tankers. In March 2015, the arrangement was revised and the interest on outstanding payments was increased to 20% per annum. Also, the tenor was extended for another 12 months and the insurance payments on the trucks for the current period was included as part of the new principal amount. On the basis of retention of title as well as historical payment behaviours of the respective transporters (including continuing business as of date, repayments during the year and adequate insurance cover on the tankers), the Company does not believe that the amounts are impaired and as such no impairment loss has been recorded.
B53: The analysis of the loans was as follows:
I54: March 2016 | K54: December 2015
I55: N’000 | K55: N’000
B57: Cost of trucks (including other incidental costs incurred) | I57: 2,640,373 | K57: 2,640,373
B58: Less 20% down payment from the transporters | I58: (679,050) | K58: (679,050)
B59: Balance as at 1 January | I59: 606,985 | K59: 909,115
B60: Insurance | I60: 35,506 | K60: 72,585
B61: Interest accrued | I61: 10,311 | K61: 55,116
B62: Principal and interests repayments received during the year | I62: (58,247) | K62: (429,831)
B63: Balance as at 31 | I63: 594,555 | K63: 606,985
B64: Less non current portion | I64: 0 | K64: 0
B65: Current portion | I65: 594,555 | K65: 606,985
B67: Interest income earned with respect to these loans was N10.31 million (Dec. 2015: N55.12 million) and has been included as part of finance income in profit or loss (Note 8). During the period, there were no additional cost incurred. All cost incurred on renewal of insurance on these trucks and in line with the agreements is fully recoverable from the transporters.
A69: 15 | B69: Trade and other receivables
I70: March 2016 | K70: December 2015
I71: N’000 | K71: N’000
B72: Trade receivables | I72: 3,377,100 | K72: 3,697,155
B73: Petroleum Equalisation Fund (PEF) | I73: 977,894 | K73: 1,366,129
B74: Petroleum Support Fund (PSF) | I74: 0 | K74: 375,628
B75: Loans to employees | I75: 54,903 | K75: 27,470
B76: Interest receivable | I76: 0 | K76: 0
B77: Interest paid in advance | I77: 0 | K77: 0
B78: Withholding tax receivables
B79: Due from joint operation partners | I79: 57,628 | K79: 38,077
B80: Receivables from registrar | I80: 54,244 | K80: 54,244
B81: Receivables from related parties | I81: 13,064,979 | K81: 14,835,297
B82: Advances paid to suppliers | I82: 0 | K82: 0
B83: Other debtors | I83: 122,927 | K83: 127,185
I85: 17,709,675 | K85: 20,521,185
B87: Less: non-current portion | I87: 0 | K87: (1,211)
B88: Current portion | I88: 17,709,675 | K88: 20,519,974
B90: For receivables that are classified as 'current', due to their short-term maturities, the fair value approximates their carrying values.
B91: The Company's exposure to credit risk, market risk and impairment losses related to trade and other receivables are disclosed in Note 25 (a).
A93: 16 | B93: Witholding tax receivables
B94: The movement on the witholding tax receivable account was as follows:
I95: March 2016 | K95: December 2015
I96: N’000 | K96: N’000
B97: Balance at 1 January | I97: 32,348 | K97: 36,147
B98: Additions | I98: 10,554 | K98: 18,070
B99: Withholding tax credit note utilised | I99: 0 | K99: (21,869)
B100: Balance at 31 | I100: 42,902 | K100: 32,348
B101: Less: non-current portion | I101: 0 | K101: 0
B102: Current portion | I102: 42,902 | K102: 32,348
A105: 17 | B105: Inventories
I106: March 2016 | K106: December 2015
I107: N’000 | K107: N’000
B108: Premium Motor Spirit (PMS) | I108: 407,414 | K108: 721,485
B109: Lubricants and greases | I109: 1,665,583 | K109: 1,869,542
B110: Aviation Turbine Kerosene (ATK) | I110: 130,226 | K110: 315,900
B111: Automotive Gas Oil (AGO) | I111: 29,091 | K111: 67,089
B112: Dual Purpose Kerosene (DPK) | I112: 135,849 | K112: 341,759
B113: Packaging materials and other sundry items | I113: 34,525 | K113: 28,167
B114: Goods in Transit | I114: 0 | K114: 2,916,541
I115: 2,402,688 | J115: 0 | K115: 6,260,483 | L115: 0 | M115: 0 | N115: 0
B117: Inventory amounting to N 174.9 million (Dec. 2015 : N377.93 million) was held in a facility owned by MRS Oil and Gas Limited, a related party (Note 26).
B118: The value of changes in products, packaging materials and work-in-progress included in cost of sales amounted to N23.3 billion (March 2015: N 19.5 billion).
A120: 18 | B120: Cash and cash equivalents
I121: March 2016 | K121: December 2015
I122: N’000 | K122: N’000
B123: Cash at bank and on hand | I123: 3,828,413 | K123: 1,301,602 | N123: 28,266,790.86
B124: Short term deposits with banks | E124: (Note 18 (a)) | I124: 22,484,745 | K124: 18,472,795
B126: Cash and cash equivalents in the statement of financial position | I126: 26,313,158 | K126: 19,774,397
B127: Bank overdrafts used for cash management purposes (Note 24) | I127: 0 | K127: 0
B128: Cash and cash equivalents in the statement of cash flows | I128: 26,313,158 | K128: 19,774,397
A130: (a) | B130: Short term deposits with banks represent placements with commercial banks for periods between 0 - 90 days. Included in short term deposits are unclaimed dividends amounting to N416.98 million (Dec 2015: N408.79 million) held in separate bank accounts in accordance with guidelines issued by Securities and Exchange Commission. This amount is restricted from use by the Company. Also included in short term deposits with banks is an amount of N20.39 billion (Dec 2015: N7.49 billion) being the balance on the sinking fund account. The sinking fund account is used to finance import finance facilities held with the Company's Bankers (Note 24).
A132: 19 | B132: Share capital
I134: March 2016 | K134: December 2015
B135: Authorised: | I135: N’000 | K135: N’000
B136: 271,657,230 Ordinary shares of 50k each | I136: 135,829 | K136: 135,829
B138: Issued and fully paid:
B139: 253,988,672 Ordinary shares of 50k each | I139: 126,994 | K139: 126,994
B141: Issued and fully allotted:
B142: 253,988,672 Ordinary shares of 50k each | I142: 126,994 | K142: 126,994
B144: All ordinary shares rank equally with regard to the Company's residual assets. Holders of these shares are entitled to dividends as declared from time to time and are entitled to one vote per share at general meetings of the Company.
A148: (b) | B148: Retained earnings
I149: 2014 | K149: 2013
I150: N’000 | K150: N’000
B151: Balance as at 1 January | I151: 19,502,153 | K151: 18,927,016
B152: Profit for the year | I152: 363,363 | K152: 634,418
B153: Defined benefit plan actuarial gain, net of tax | I153: 0 | K153: 0
B154: Dividends declared | I154: (190,407) | K154: (59,281)
B155: Dividends paid | K155: 0
B156: Unclaimed dividend written back | I156: 32,976 | K156: 0
B157: Payment of statute barred dividend | I157: 0 | K157: 0
B159: Balance as at 31 December | I159: 19,708,085 | K159: 19,502,153
B161: Included in retained earnings is N14.40 billion (2013: N14.40 billion) which represents revaluation surplus transferred at IFRS transition date. The Company has opted not to distribute this amount.
A164: 20 | B164: Employee benefit obligations
A165: (a) | B165: The amounts outstanding at the end of the year with respect to employee benefit obligations is shown below:
I167: March 2016 | K167: December 2015
I168: N’000 | K168: N’000
B169: Year end obligations for:
B170: Post-employment benefit (Note 20 (a)) | I170: 0 | K170: 0
B171: Other long term employee benefits | I171: 13,774 | K171: 12,618
B172: Total employee benefit liabilities | I172: 13,774 | K172: 12,618
A175: (a) | B175: Post employment benefit obligation comprise of gratuity provision and was based upon independent actuarial valuation performed by HR Nigeria Limited using the projected unit credit basis. The gratuity scheme was terminated in 2013.
B176: The movement in the defined benefit obligation during the year is as follows:
I178: 2014 | K178: 2013
I179: N’000 | K179: N’000
B180: Balance as at 1 January | I180: 0 | K180: 201,250
B181: Current service cost | I181: 0 | K181: 0
B182: Interest cost | I182: 0 | K182: 0
B183: Remeasurement gains | I183: 0 | K183: 0
I184: 0 | K184: 0
B185: Gratuity paid | I185: 0 | K185: (177,301)
B186: Surplus on settlement of gratuity | I186: 0 | K186: (23,949)
B187: Curtailment gains | I187: 0 | K187: 0
B188: Balance as at 31 December | I188: 0 | K188: 0
A191: (b) | B191: The provision was based on an independent actuarial valuation performed by Olurotimi Olatokunbo Okpaise (FRC/2012/NAS/00000000738), a partner with HR Nigeria Limited. The method of valuation used is the projected unit credit method and the last valuation was as at 31 December 2015. Other long term employee benefits comprise long service awards and it is funded on a pay as you go basis by the Company.
B192: The movement on the provision for other long term employee benefits is as follows:
I194: March 2016 | K194: December 2015
I195: N’000 | K195: N’000
B196: Balance as at 1 January | I196: 12,618 | K196: 16,307
B197: Provision for the year : | I197: 1,156 | K197: 0
B198: Current service cost | I198: 0 | K198: 4,694
B199: Interest cost | I199: 0 | K199: 2,188
B200: Discontinued benefits due to contract change | I200: 0 | K200: (6,297)
B201: Remeasurement gains (net) | I201: 0 | K201: (834)
B202: Benefits paid by the employer | I202: 0 | K202: (3,440)
B203: Curtailment gains | I203: 0 | K203: 0
B205: Balance as at 31 | I205: 13,774 | K205: 12,618
B207: There was no curtailment in the long service award arrangement for employees, as a result no corresponding curtailment gain was included in the Company's statement of Profit or Loss and Other Comprehensive Income for the year ended 31 December 2015. (2014 : Nil)
A209: (c) | B209: The balance and movement in the Company's pension payable account which represents amounts due to the pension fund administrators which are yet to be remitted as at year end are shown in Note 22 (a).
A211: (c) | B211: Actuarial Assumptions
B212: Principal actuarial assumptions at the reporting date (expressed as weighted averages):
I213: March 2016 | K213: December 2015
B215: Long-term average discount rate (p.a.) | I215: 12% | K215: 12%
B216: Future average pay increase (p.a.) | I216: 11% | K216: 11%
B217: Average rate of inflation (p.a.) | I217: 9% | K217: 9%
B218: Average Duration in years (Gratuity) | I218: *N/A | K218: *N/A
B219: Average Duration in years (Long Service Awards) | I219: 7.29 | K219: 7.29
B220: * Not applicable
B221: These assumptions depict management’s estimate of the likely future experience of the Company.
B223: Due to unavailability of published reliable demographic data in Nigeria, the demographic assumptions regarding future mortality are based on the rates published jointly by the Institute and Faculty of Actuaries in the UK. The data were rated down by one year to more accurately reflect mortality in Nigeria as follows:
B225: Mortality in Service
B227: Sample age | D227: March 2016 | F227: December 2015
D228: Number of deaths in year out of 10,000 lives | F228: Number of deaths in year out of 10,000 lives
B229: 25 | D229: 7 | F229: 7
B230: 30 | D230: 7 | F230: 7
B231: 35 | D231: 9 | F231: 9
B232: 40 | D232: 14 | F232: 14
B233: 45 | D233: 26 | F233: 26
B235: Assumptions regarding future mortality rates are based on published statistics and mortality tables by institute of Faculty of Actuaries in the UK.
B238: Withdrawal from Service
B240: Age Band | D240: March 2016 | F240: December 2015
D241: Rates
B243: ≤ 30 | D243: 0.5% | F243: 0.5%
B244: 31 - 39 | D244: 0.5% | F244: 0.5%
B245: 40 - 44 | D245: 0.5% | F245: 0.5%
B246: 45 - 60 | D246: 0.0% | F246: 0.0%
B248: It is assumed that all the employees covered by the long service award scheme would retire at age 60 (2014: age 60).
B250: Sensitivity Analysis
B251: Below is the sensitivity analysis of the principal actuarial assumptions adopted in determining the employee benefit liabilities:
F253: Long Service Award
F254: N’000
B255: Discount rate | E255: (0.01) | F255: 13,600
E256: +1% | F256: 11,760
B258: Salary increase rate | E258: (0.01) | F258: 12,029
E259: +1% | F259: 13,272
B261: Inflation rate | E261: (0.01) | F261: 12,275
E262: +1% | F262: 13,015
B264: Mortality rate | D264: Age rated up by 1 year | F264: 12,653
D265: Age rated down by 1 year | F265: 12,579
A267: 21 | B267: Security deposits
B268: These are collateral deposits paid by dealers who maintain credit facilities with the Company. These amounts are set-off on a periodic basis to cater for operational losses. These deposits do not bear interest and these amounts are refundable to the dealers at the termination of the business arrangements.
B269: The Company's exposure to liquidity risks related to security deposits is disclosed in Note 25 (b).
A271: 22 | B271: Dividends
A272: (a) | B272: Declared dividends
B273: The following dividends were declared and paid by the Company during the year.
I274: March 2016 | K274: December 2015
... 335 more rows

Sheet TB Adjusted-3 (hidden)
B1: MRS Oil Nigeria Plc | AC1: MRS Oil | AD1: MRS Oil Nigeria Plc | AQ1: MRS Oil | AR1: Nigeria Plc
B2: Year End: March 31, 2016 | J2: Reviewed by | L2: Prepared by | AC2: Year En | AD2: Year End: December 31, 2015 | AI2: Prepared by | AJ2: Reviewed by | AK2: F2. 3 | AQ2: Year En | AR2: d: December 31, 2015
B3: Trial balance - by mapping number | AC3: Trial b | AD3: Trial balance - by mapping number | AQ3: Trial b | AR3: alance - by mapping number
B8: Account | C8: Rep | D8: Adj's | E8: Reclass | F8: Rep | J8: Rep 03/15 | L8: Annotation | AC8: Account | AD8: Account | AE8: Prelim | AF8: Adj's | AG8: Reclass | AH8: Rep | AI8: Annotation | AJ8: Rep 12/14 | AK8: %Chg | AQ8: Account
A9: 1 | B9: 2 | C9: 6 | D9: 4 | E9: 5 | M9: Exp by nature
A10: 7001050 | B10: 7001050 Sales Revenue - International Aviation Fuels | C10: (2,528,569,048.57) | D10: 0.00 | E10: 0 | F10: (1,567,314,225.51) | G10: =ROUND(F10/1000,0) -> (1,567,314.00) | H10: =G10-I10 -> 0.00 | I10: =ROUND(F10/1000,0) -> (1,567,314.00) | J10: (2,528,569.00) | K10: =J10/1000 -> (2,528.57) | L10: Aviation Turbine Kerosene (ATK) | AB10: =A10=AC10 -> TRUE | AC10: 7001050 | AD10: 7001050 Sales Revenue - International Aviation Fuels | AE10: (11,072,045,043.99) | AF10: 267,869.80 | AG10: 0.00 | AH10: (11,071,777,174.19) | AJ10: (13,050,196,461.43) | AK10: (15) | AQ10: 7001050 | AR10: Sales Revenue - International Aviation Fuels
A11: 7001300 | B11: 7001300 Sales Revenue - Premium Motor Spirit | C11: (17,030,924,234.22) | D11: 0.00 | E11: 0 | F11: (21,340,121,314.16) | G11: =ROUND(F11/1000,0) -> (21,340,121.00) | H11: =G11-I11 -> 0.00 | I11: =ROUND(F11/1000,0) -> (21,340,121.00) | J11: (17,030,924.00) | K11: =J11/1000 -> (17,030.92) | L11: Premium Motor Spirit (PMS) | AB11: TRUE | AC11: 7001300 | AD11: 7001300 Sales Revenue - Premium Motor Spirit | AE11: (69,286,420,947.54) | AF11: 0.00 | AG11: 0.00 | AH11: (69,286,420,947.54) | AJ11: (67,746,335,533.91) | AK11: 2 | AQ11: 7001300 | AR11: Sales Revenue - Premium Motor Spirit
A12: 7001400 | B12: 7001400 Sales Revenue - Dual Purpose Kerosene | C12: (451,703,019.60) | D12: 0.00 | E12: 0 | F12: (776,124,990.00) | G12: (776,125.00) | H12: 0.00 | I12: (776,125.00) | J12: (451,703.00) | K12: (451.70) | L12: Dual Purpose Kerosene (DPK) | AB12: TRUE | AC12: 7001400 | AD12: 7001400 Sales Revenue - Dual Purpose Kerosene | AE12: (1,963,961,613.50) | AF12: 93,000,000.00 | AG12: 0.00 | AH12: (1,870,961,613.50) | AJ12: (2,334,121,930.95) | AK12: (20) | AQ12: 7001400 | AR12: Sales Revenue - Dual Purpose Kerosene
A13: 7001500 | B13: 7001500 Sales Revenue - Auto Gas Oil | C13: (1,096,346,006.01) | D13: 0.00 | E13: 0 | F13: (1,029,652,005.16) | G13: (1,029,652.00) | H13: 0.00 | I13: (1,029,652.00) | J13: (1,096,346.00) | K13: (1,096.35) | L13: Automotive Gas Oil (AGO) | AB13: TRUE | AC13: 7001500 | AD13: 7001500 Sales Revenue - Auto Gas Oil | AE13: (3,655,598,906.75) | AF13: 0.00 | AG13: 0.00 | AH13: (3,655,598,906.75) | AJ13: (8,029,221,638.80) | AK13: (54) | AQ13: 7001500 | AR13: Sales Revenue - Auto Gas Oil
A14: 7001900 | B14: Sales Revenue - Liquidified Petroleum Gas | C14: (1,637,146.95) | F14: 0.00 | G14: 0.00 | H14: 0.00 | I14: 0.00 | J14: (1,637.00) | K14: (1.64) | L14: Liquidified Petroleum Gas (LPG) | AB14: TRUE | AC14: 7001900 | AD14: 7001900 Sales Revenue - Liquidified Petroleum Gas | AE14: (2,466,910.93) | AF14: 0.00 | AG14: 0.00 | AH14: (2,466,910.93) | AJ14: 0.00 | AK14: 0 | AQ14: 7001900 | AR14: Sales Revenue - Liquidified Petroleum Gas
A15: 7001950 | B15: Sales Revenue - LPG Cylinder | C15: (11,336,191.02) | F15: 0.00 | G15: 0.00 | H15: 0.00 | I15: 0.00 | J15: (11,336.00) | K15: (11.34) | L15: Liquidified Petroleum Gas (LPG) | AB15: TRUE | AC15: 7001950 | AD15: 7001950 Sales Revenue - LPG Cylinder | AE15: (16,630,004.25) | AF15: 0.00 | AG15: 0.00 | AH15: (16,630,004.25) | AJ15: 0.00 | AK15: 0 | AQ15: 7001950 | AR15: Sales Revenue - LPG Cylinder
A16: 7002000 | B16: 7002000 Sales Revenue - Base Oils | C16: 0.00 | D16: 0.00 | E16: 0 | F16: 0.00 | G16: 0.00 | H16: 0.00 | I16: 0.00 | J16: 0.00 | K16: 0.00 | L16: Lubricants and greases | AB16: TRUE | AC16: 7002000 | AD16: 7002000 Sales Revenue - Base Oils | AE16: 0.00 | AF16: 0.00 | AG16: 0.00 | AH16: 0.00 | AJ16: (17,754,000.00) | AK16: (100) | AQ16: 7002000 | AR16: Sales Revenue - Base Oils
A17: 7002100 | B17: 7002100 Sales Revenue - Finished Lubes | C17: (337,139,639.50) | D17: 0.00 | E17: 0 | F17: (541,995,282.87) | G17: (541,995.00) | H17: 0.00 | I17: (541,995.00) | J17: (337,140.00) | K17: (337.14) | L17: Lubricants and greases | AB17: TRUE | AC17: 7002100 | AD17: 7002100 Sales Revenue - Finished Lubes | AE17: (1,678,264,773.15) | AF17: 0.00 | AG17: 0.00 | AH17: (1,678,264,773.15) | AJ17: (1,813,229,278.97) | AK17: (7) | AQ17: 7002100 | AR17: Sales Revenue - Finished Lubes
A18: 7002200 | B18: 7002200 Sales Revenue - Additives | C18: 0.00 | D18: 0.00 | E18: 0 | F18: 0.00 | G18: 0.00 | H18: 0.00 | I18: 0.00 | J18: 0.00 | K18: 0.00 | L18: Lubricants and greases | AB18: TRUE | AC18: 7002200 | AD18: 7002200 Sales Revenue - Additives | AE18: (4,736,499.60) | AF18: 0.00 | AG18: 0.00 | AH18: (4,736,499.60) | AJ18: (495,588.00) | AK18: 856 | AQ18: 7002200 | AR18: Sales Revenue - Additives
A19: 7002300 | B19: 7002300 Sales Revenue - Greases | C19: (66,790,992.00) | D19: 0.00 | E19: 0 | F19: (142,415,010.55) | G19: (142,415.00) | H19: 0.00 | I19: (142,415.00) | J19: (66,791.00) | K19: (66.79) | L19: Lubricants and greases | AB19: TRUE | AC19: 7002300 | AD19: 7002300 Sales Revenue - Greases | AE19: (519,850,516.00) | AF19: 0.00 | AG19: 0.00 | AH19: (519,850,516.00) | AJ19: (566,332,976.60) | AK19: (8) | AQ19: 7002300 | AR19: Sales Revenue - Greases
A20: 7002400 | B20: 7002400 Sales Revenue - Specialties | C20: 0.00 | D20: 0.00 | E20: 0 | F20: (311,700.00) | G20: (312.00) | H20: 0.00 | I20: (312.00) | J20: 0.00 | K20: 0.00 | L20: Lubricants and greases | AB20: TRUE | AC20: 7002400 | AD20: 7002400 Sales Revenue - Specialties | AE20: (452,640.00) | AF20: 0.00 | AG20: 0.00 | AH20: (452,640.00) | AJ20: (815,260.00) | AK20: (44) | AQ20: 7002400 | AR20: Sales Revenue - Specialties
A21: 7002700 | B21: 7002700 Sales Revenue - Trading Lubes | C21: (134,487,998.52) | D21: 0.00 | E21: 0 | F21: (151,910,699.34) | G21: (151,911.00) | H21: 0.00 | I21: (151,911.00) | J21: (134,488.00) | K21: (134.49) | L21: Lubricants and greases | AB21: TRUE | AC21: 7002700 | AD21: 7002700 Sales Revenue - Trading Lubes | AE21: (404,921,413.49) | AF21: 0.00 | AG21: 0.00 | AH21: (404,921,413.49) | AJ21: (487,713,861.16) | AK21: (17) | AQ21: 7002700 | AR21: Sales Revenue - Trading Lubes
A22: 7002800 | B22: 7002800 Sales Revenue - Trading Grease (Texaco) | C22: -7694263.76 | D22: 0.00 | E22: 0 | F22: (1,717,909.90) | G22: (1,718.00) | H22: 0.00 | I22: (1,718.00) | J22: (7,694.00) | K22: (7.69) | L22: Lubricants and greases | AB22: TRUE | AC22: 7002800 | AD22: 7002800 Sales Revenue - Trading Grease (Texaco) | AE22: (12,080,840.94) | AF22: 0.00 | AG22: 0.00 | AH22: (12,080,840.94) | AJ22: 0.00 | AK22: 0 | AQ22: 7002800 | AR22: Sales Revenue - Trading Grease (Texaco)
A23: 7032100 | B23: 7032100 Volume Related Discounts - Finished Lubes | C23: 16,892,237.70 | D23: 0.00 | E23: 0 | F23: 25,641,407.96 | G23: 25,641.00 | H23: 0.00 | I23: 25,641.00 | J23: 16,892.00 | K23: 16.89 | L23: Lubricants and greases | AB23: TRUE | AC23: 7032100 | AD23: 7032100 Volume Related Discounts - Finished Lubes | AE23: 95,848,215.86 | AF23: 0.00 | AG23: 0.00 | AH23: 95,848,215.86 | AJ23: 100,100,253.85 | AK23: (4) | AQ23: 7032100 | AR23: Volume Related Discounts - Finished Lubes
A24: 7032300 | B24: 7032300 Volume Related Discounts - Greases | C24: 3,843,397.10 | D24: 0.00 | E24: 0 | F24: 7,055,114.70 | G24: 7,055.00 | H24: 0.00 | I24: 7,055.00 | J24: 3,844.00 | K24: 3.84 | L24: Lubricants and greases | AB24: TRUE | AC24: 7032300 | AD24: 7032300 Volume Related Discounts - Greases | AE24: 30,366,550.30 | AF24: 0.00 | AG24: 0.00 | AH24: 30,366,550.30 | AJ24: 32,380,492.83 | AK24: (6) | AQ24: 7032300 | AR24: Volume Related Discounts - Greases
A25: 7032700 | B25: 7032700 Volume Related Discounts - Trading Lubes | C25: 871,076.30 | D25: 0.00 | E25: 0 | F25: 549,340.04 | G25: 549.00 | H25: 0.00 | I25: 549.00 | J25: 871.00 | K25: 0.87 | L25: Lubricants and greases | AB25: TRUE | AC25: 7032700 | AD25: 7032700 Volume Related Discounts - Trading Lubes | AE25: 1,742,187.75 | AF25: 0.00 | AG25: 0.00 | AH25: 1,742,187.75 | AJ25: 5,170,387.61 | AK25: (66) | AQ25: 7032700 | AR25: Volume Related Discounts - Trading Lubes
A26: 7032800 | B26: 7032800 Volume Related Dis - Trading Grease (Texaco) | C26: 76,859.90 | D26: 0.00 | E26: 0 | F26: 112,582.80 | G26: 113.00 | H26: 0.00 | I26: 113.00 | J26: 77.00 | K26: 0.08 | L26: Lubricants and greases | AB26: TRUE | AC26: 7032800 | AD26: 7032800 Volume Related Dis - Trading Grease (Texaco) | AE26: 292,117.90 | AF26: 0.00 | AG26: 0.00 | AH26: 292,117.90 | AJ26: 296,152.94 | AK26: (1) | AQ26: 7032800 | AR26: Volume Related Dis - Trading Grease (Texaco)
A27: 7042100 | B27: 7042100 Non-Volume Related Discounts - Finished Lubes | C27: 151,065.24 | D27: 0.00 | E27: 0 | F27: 521,763.40 | G27: 522.00 | H27: 0.00 | I27: 522.00 | J27: 151.00 | K27: 0.15 | L27: Lubricants and greases | AB27: TRUE | AC27: 7042100 | AD27: 7042100 Non-Volume Related Discounts - Finished Lubes | AE27: 447,709.43 | AF27: 0.00 | AG27: 0.00 | AH27: 447,709.43 | AJ27: 4,353,821.65 | AK27: (90) | AQ27: 7042100 | AR27: Non-Volume Related Discounts - Finished Lubes
A28: 7042300 | B28: 7042300 Non-Volume Related Discounts - Greases | C28: 1,691.00 | D28: 0.00 | E28: 0 | F28: 58.00 | G28: 0.00 | H28: 0.00 | I28: 0.00 | J28: 2.00 | K28: 0.00 | L28: Lubricants and greases | AB28: TRUE | AC28: 7042300 | AD28: 7042300 Non-Volume Related Discounts - Greases | AE28: 10,473.75 | AF28: 0.00 | AG28: 0.00 | AH28: 10,473.75 | AJ28: 79,565.00 | AK28: (87) | AQ28: 7042300 | AR28: Non-Volume Related Discounts - Greases
A29: 7042400 | B29: Non-Volume Related Discounts - Specialties | F29: 0.00 | G29: 0.00 | H29: 0.00 | I29: 0.00 | J29: 0.00 | K29: 0.00 | AB29: TRUE | AC29: 7042400 | AD29: 7042400 Non-Volume Related Discounts - Specialties | AE29: 1,152.00 | AF29: 0.00 | AG29: 0.00 | AH29: 1,152.00 | AJ29: 0.00 | AK29: 0 | AQ29: 7042400 | AR29: Non-Volume Related Discounts - Specialties
A30: 7042700 | B30: 7042700 Non-Volume Related Discounts - Trading Lubes | C30: 12,914.00 | D30: 0.00 | E30: 0 | F30: 638.00 | G30: 1.00 | H30: 0.00 | I30: 1.00 | J30: 13.00 | K30: 0.01 | L30: Lubricants and greases | AB30: TRUE | AC30: 7042700 | AD30: 7042700 Non-Volume Related Discounts - Trading Lubes | AE30: 61,243.00 | AF30: 0.00 | AG30: 0.00 | AH30: 61,243.00 | AJ30: 47,135.00 | AK30: 30 | AQ30: 7042700 | AR30: Non-Volume Related Discounts - Trading Lubes
A31: 7042800 | B31: 7042800 Non-Volume Related Dis - Trading Grease (Texaco) | C31: 0.00 | D31: 0.00 | E31: 0 | F31: 0.00 | G31: 0.00 | H31: 0.00 | I31: 0.00 | J31: 0.00 | K31: 0.00 | L31: Lubricants and greases | AB31: TRUE | AC31: 7042800 | AD31: 7042800 Non-Volume Related Dis - Trading Grease (Texaco) | AE31: 87.00 | AF31: 0.00 | AG31: 0.00 | AH31: 87.00 | AJ31: 50,048.26 | AK31: (100) | AQ31: 7042800 | AR31: Non-Volume Related Dis - Trading Grease (Texaco)
A32: 7921300 | B32: 7921300 Transp Costs - Road/Rail - Premium Motor Spirit | C32: 304,985,644.07 | D32: 0.00 | E32: 0 | F32: 444,672,431.09 | G32: 444,672.00 | H32: 0.00 | I32: 444,672.00 | J32: 304,986.00 | K32: 304.99 | L32: Premium Motor Spirit (PMS) | AB32: TRUE | AC32: 7921300 | AD32: 7921300 Transp Costs - Road/Rail - Premium Motor Spirit | AE32: 1,287,448,090.07 | AF32: 0.00 | AG32: 0.00 | AH32: 1,287,448,090.07 | AJ32: 1,548,293,395.70 | AK32: (17) | AQ32: 7921300 | AR32: Transp Costs - Road/Rail - Premium Motor Spirit
A33: 7921400 | B33: 7921400 Transp Costs - Road/Rail - Dual Purpose Kerosene | C33: 723,254.09 | D33: 0.00 | E33: 0 | F33: 1,888,462.40 | G33: 1,888.00 | H33: 0.00 | I33: 1,888.00 | J33: 723.00 | K33: 0.72 | L33: Dual Purpose Kerosene (DPK) | AB33: TRUE | AC33: 7921400 | AD33: 7921400 Transp Costs - Road/Rail - Dual Purpose Kerosene | AE33: 8,728,132.92 | AF33: 0.00 | AG33: 0.00 | AH33: 8,728,132.92 | AJ33: 30,040,957.57 | AK33: (71) | AQ33: 7921400 | AR33: Transp Costs - Road/Rail - Dual Purpose Kerosene
A34: 1.0001. | B34: 1.0001.000 Revenue | C34: (21,339,070,400.75) | D34: 0.00 | E34: 0 | F34: (25,071,121,339.10) | G34: =SUM(G10:G33) -> (25,071,122.00) | H34: 0.00 | I34: =SUM(I10:I33) -> (25,071,122.00) | J34: (21,339,069.00) | K34: (21,339.07) | AB34: TRUE | AC34: 1.0001. | AD34: 1.0001.000 Revenue | AE34: (87,192,484,150.16) | AF34: 93,267,869.80 | AG34: 0.00 | AH34: (87,099,216,280.36) | AJ34: (92,325,404,319.41) | AK34: (6) | AQ34: 1.0001. | AR34: 000 Revenue
G35: 0.00 | H35: 0.00 | K35: 0.00 | AB35: TRUE
A36: 8631000 | B36: 8631000 Interest Income - External Loans | C36: 0.00 | D36: 0.00 | E36: 0 | F36: 0.00 | G36: 0.00 | H36: 0.00 | I36: =ROUND(F36/1000,0) -> 0.00 | J36: 0.00 | K36: 0.00 | L36: Interest income on short-term bank deposits | AB36: TRUE | AC36: 8631000 | AD36: 8631000 Interest Income - External Loans | AE36: 0.00 | AF36: 0.00 | AG36: 0.00 | AH36: 0.00 | AJ36: 420,743.91 | AK36: (100) | AQ36: 8631000 | AR36: Interest Income - External Loans
A37: 8631050 | B37: 8631050 Interest on short term deposits | C37: (31,081,486.42) | D37: 0.00 | E37: 0 | F37: (158,971,638.06) | G37: (158,972.00) | H37: 0.00 | I37: (158,972.00) | J37: (31,081.00) | K37: (31.08) | L37: Interest income on short-term bank deposits | AB37: TRUE | AC37: 8631050 | AD37: 8631050 Interest on short term deposits | AE37: (1,670,540,306.51) | AF37: 0.00 | AG37: 0.00 | AH37: (1,670,540,306.51) | AJ37: (158,286,703.37) | AK37: 955 | AQ37: 8631050 | AR37: Interest on short term deposits
A38: 8631150 | B38: 8631150 Interest Income on long term investments | C38: (30,552,295.54) | D38: 0.00 | E38: 0 | F38: (10,310,938.41) | G38: (10,311.00) | H38: 0.00 | I38: (10,311.00) | J38: (30,552.00) | K38: (30.55) | L38: Interest income on loans to transporter | AB38: TRUE | AC38: 8631150 | AD38: 8631150 Interest Income on long term investments | AE38: (55,115,918.39) | AF38: 0.00 | AG38: 0.00 | AH38: (55,115,918.39) | AJ38: (120,352,760.31) | AK38: (54) | AQ38: 8631150 | AR38: Interest Income on long term investments
A39: 8631200 | B39: 8631200 Interest income on customers payments | C39: -106,551.60 | D39: 0.00 | E39: 0 | F39: (233,044.95) | G39: (233.00) | H39: 0.00 | I39: =ROUND(F39/1000,0) -> (233.00) | J39: (107.00) | K39: (0.11) | L39: Interest income on short-term bank deposits | AB39: TRUE | AC39: 8631200 | AD39: 8631200 Interest income on customers payments | AE39: (4,869,155.88) | AF39: 0.00 | AG39: 0.00 | AH39: (4,869,155.88) | AJ39: 507,409.19 | AK39: (1060) | AQ39: 8631200 | AR39: Interest income on customers payments
A40: 1.0002. | B40: 1.0002.000 Interest Income | C40: (61,740,333.56) | D40: 0.00 | E40: 0 | F40: (169,515,621.42) | G40: =SUM(G36:G39) -> (169,516.00) | H40: 0.00 | I40: =SUM(I36:I39) -> (169,516.00) | J40: (61,740.00) | K40: (61.74) | AB40: TRUE | AC40: 1.0002. | AD40: 1.0002.000 Interest Income | AE40: (1,730,525,380.78) | AF40: 0.00 | AG40: 0.00 | AH40: (1,730,525,380.78) | AJ40: (277,711,310.58) | AK40: 523 | AQ40: 1.0002. | AR40: 000 Interest Income
G41: 0.00 | H41: 0.00 | K41: 0.00 | AB41: TRUE
A42: 7151050 | B42: 7151050 Gain on Sale of Fixed Assets | C42: 0.00 | D42: 0.00 | E42: 0 | F42: 0.00 | G42: 0.00 | H42: 0.00 | I42: =ROUND(F42/1000,0) -> 0.00 | J42: 0.00 | K42: 0.00 | L42: Gains on disposal of property, plant & equipment | AB42: =A42=AC42 -> TRUE | AC42: 7151050 | AD42: 7151050 Gain on Sale of Fixed Assets | AE42: 0.00 | AF42: 0.00 | AG42: 0.00 | AH42: 0.00 | AJ42: (1,559,000.00) | AK42: (100) | AQ42: 7151050 | AR42: Gain on Sale of Fixed Assets
A43: 7151200 | B43: 7151200 Sale of Fixed Assets | C43: (2,000,000.00) | D43: 0.00 | E43: 0 | F43: 0.00 | G43: 0.00 | H43: 0.00 | I43: 0.00 | J43: (2,000.00) | K43: (2.00) | L43: Sundry income | AB43: TRUE | AC43: 7151200 | AD43: 7151200 Sale of Fixed Assets | AE43: (2,000,000.00) | AF43: 0.00 | AG43: 0.00 | AH43: (2,000,000.00) | AJ43: (300,000.00) | AK43: 567 | AQ43: 7151200 | AR43: Sale of Fixed Assets
A44: 7251200 | B44: 7251200 Service Station Rental Income - Fixed | C44: (3,760,589.85) | D44: 0.00 | E44: 0 | F44: (4,448,383.60) | G44: (4,448.00) | H44: 0.00 | I44: (4,448.00) | J44: (3,761.00) | K44: (3.76) | L44: Rental and lease income | AB44: TRUE | AC44: 7251200 | AD44: 7251200 Service Station Rental Income - Fixed | AE44: (13,520,730.81) | AF44: 0.00 | AG44: 0.00 | AH44: (13,520,730.81) | AJ44: (13,938,952.78) | AK44: (3) | AQ44: 7251200 | AR44: Service Station Rental Income - Fixed
A45: 7351300 | B45: 7351300 Other Inc-Write On to P & L for Unclaimed Cheques | C45: 0.00 | D45: 0.00 | E45: 0 | F45: 0.00 | G45: 0.00 | H45: 0.00 | I45: 0.00 | J45: 0.00 | K45: 0.00 | L45: Sundry income | AB45: TRUE | AC45: 7351300 | AD45: 7351300 Other Inc-Write On to P & L for Unclaimed Cheques | AE45: 0.00 | AF45: 0.00 | AG45: 0.00 | AH45: 0.00 | AJ45: (893,858.42) | AK45: (100) | AQ45: 7351300 | AR45: Other Inc-Write On to P & L for Unclaimed Cheques
A46: 7351410 | B46: 7351410 Other Income- card selling revenue | C46: 0.00 | D46: 0.00 | E46: 0 | F46: 0.00 | G46: 0.00 | H46: 0.00 | I46: 0.00 | J46: 0.00 | K46: 0.00 | L46: Sundry income | AB46: TRUE | AC46: 7351410 | AD46: 7351410 Other Income- card selling revenue | AE46: 0.00 | AF46: 0.00 | AG46: 0.00 | AH46: 0.00 | AJ46: 30,000.00 | AK46: (100) | AQ46: 7351410 | AR46: Other Income- card selling revenue
A47: 7351450 | B47: 7351450 Other Income-Misc Other Op Earnings - NNPC | C47: (92,736,102.00) | D47: 0.00 | E47: 0 | F47: (165,543,948.00) | G47: (165,544.00) | H47: 0.00 | I47: (165,544.00) | J47: (92,736.00) | K47: (92.74) | L47: Income on storage services | AB47: TRUE | AC47: 7351450 | AD47: 7351450 Other Income-Misc Other Op Earnings - NNPC | AE47: (599,575,311.00) | AF47: 0.00 | AG47: 0.00 | AH47: (599,575,311.00) | AJ47: (383,723,526.00) | AK47: 56 | AQ47: 7351450 | AR47: Other Income-Misc Other Op Earnings - NNPC
A48: 7351500 | B48: 7351500 Other Income-Junk Sales | C48: (4,579,387.52) | D48: 0.00 | E48: 0 | F48: (708,970.00) | G48: (709.00) | H48: 0.00 | I48: =ROUND(F48/1000,0) -> (709.00) | J48: (4,579.00) | K48: (4.58) | L48: Sundry income | AB48: TRUE | AC48: 7351500 | AD48: 7351500 Other Income-Junk Sales | AE48: (7,020,412.86) | AF48: 0.00 | AG48: 0.00 | AH48: (7,020,412.86) | AJ48: (9,451,510.57) | AK48: (26) | AQ48: 7351500 | AR48: Other Income-Junk Sales
A49: 7351510 | B49: 7351510 Insurance Premium Recoveries | C49: (2,899,318.87) | D49: 0.00 | E49: 0 | F49: (2,731,249.80) | G49: (2,731.00) | H49: 0.00 | I49: (2,731.00) | J49: (2,899.00) | K49: (2.90) | L49: Sundry income | AB49: TRUE | AC49: 7351510 | AD49: 7351510 Insurance Premium Recoveries | AE49: (8,204,660.07) | AF49: 0.00 | AG49: 0.00 | AH49: (8,204,660.07) | AJ49: (2,574,863.12) | AK49: 219 | AQ49: 7351510 | AR49: Insurance Premium Recoveries
A50: 7351550 | B50: 7351550 Other Income-Service Charge - Fixed | C50: (209,148,153.50) | D50: 0.00 | E50: 0 | F50: (193,183,738.63) | G50: (193,184.00) | H50: 0.00 | I50: (193,184.00) | J50: (209,148.00) | K50: (209.15) | L50: Sundry income | AB50: TRUE | AC50: 7351550 | AD50: 7351550 Other Income-Service Charge - Fixed | AE50: (772,498,734.67) | AF50: 38,624,936.73 | AG50: 0.00 | AH50: (733,873,797.94) | AJ50: (800,084,102.32) | AK50: (8) | AQ50: 7351550 | AR50: Other Income-Service Charge - Fixed
A51: 7351555 | B51: 7351555 Other Misc Operating Revenue - Service Stations | C51: (19,625,414.96) | D51: 0.00 | E51: 0 | F51: (200,000.00) | G51: (200.00) | H51: 0.00 | I51: (200.00) | J51: (19,625.00) | K51: (19.63) | L51: Rental and lease income | AB51: TRUE | AC51: 7351555 | AD51: 7351555 Other Misc Operating Revenue - Service Stations | AE51: (19,306,494.96) | AF51: 0.00 | AG51: 6,895,544.96 | AH51: (12,410,950.00) | AJ51: (16,013,339.98) | AK51: (22) | AQ51: 7351555 | AR51: Other Misc Operating Revenue - Service Stations
A52: 7351560 | B52: 7351560 Other Misc Operating Earnings | C52: (4,739,624.40) | D52: 0.00 | E52: 0 | F52: (7,634,432.32) | G52: (7,634.00) | H52: 0.00 | I52: =ROUND(F52/1000,0) -> (7,634.00) | J52: (4,740.00) | K52: (4.74) | L52: Sundry income | AB52: TRUE | AC52: 7351560 | AD52: 7351560 Other Misc Operating Earnings | AE52: (23,337,964.25) | AF52: 0.00 | AG52: (6,895,544.96) | AH52: (30,233,509.21) | AJ52: (12,088,392.44) | AK52: 150 | AQ52: 7351560 | AR52: Other Misc Operating Earnings
A53: 7401050 | B53: 7401050 Income from C - Store Royalties | C53: 457,142.78 | D53: 0.00 | E53: 0 | F53: 0.00 | G53: 0.00 | H53: 0.00 | I53: =ROUND(F53/1000,0) -> 0.00 | J53: 457.00 | K53: 0.46 | L53: Sundry income | AB53: TRUE | AC53: 7401050 | AD53: 7401050 Income from C - Store Royalties | AE53: 457,142.78 | AF53: 0.00 | AG53: 0.00 | AH53: 457,142.78 | AJ53: (434,112.00) | AK53: (205) | AQ53: 7401050 | AR53: Income from C - Store Royalties
A54: 7401150 | B54: 7401150 Income from Franchises | C54: (1,200,000.00) | D54: 0.00 | E54: 0 | F54: (7,200,000.00) | G54: (7,200.00) | H54: 0.00 | I54: (7,200.00) | J54: (1,200.00) | K54: (1.20) | L54: Sundry income | AB54: TRUE | AC54: 7401150 | AD54: 7401150 Income from Franchises | AE54: (13,200,000.00) | AF54: 0.00 | AG54: 0.00 | AH54: (13,200,000.00) | AJ54: (14,500,000.00) | AK54: (9) | AQ54: 7401150 | AR54: Income from Franchises
A55: 1.0003. | B55: 1.0003.000 Other Income | C55: (340,231,448.32) | D55: =SUM(D42:D54) -> 0.00 | E55: =SUM(E42:E54) -> 0 | F55: (381,650,722.35) | G55: =SUM(G42:G54) -> (381,650.00) | H55: 0.00 | I55: =SUM(I42:I54) -> (381,650.00) | J55: (340,231.00) | K55: =J55/1000 -> (340.23) | AB55: TRUE | AC55: 1.0003. | AD55: 1.0003.000 Other Income | AE55: (1,483,833,771.65) | AF55: 38,624,936.73 | AG55: 0.00 | AH55: (1,445,208,834.92) | AJ55: (1,283,812,788.63) | AK55: 13 | AQ55: 1.0003. | AR55: 000 Other Income
G56: 0.00 | H56: 0.00 | K56: 0.00 | AB56: TRUE
A57: 7631050 | B57: 7631050 Purchases - Aviation - Intl | C57: 2,064,434,545.81 | D57: 0.00 | E57: 0 | F57: 1,179,635,213.74 | G57: 1,179,635.00 | H57: 0.00 | I57: =ROUND(F57/1000,0) -> 1,179,635.00 | J57: 2,064,435.00 | K57: 2,064.44 | AB57: TRUE | AC57: 7631050 | AD57: 7631050 Purchases - Aviation - Intl | AE57: 9,356,910,847.35 | AF57: 0.00 | AG57: 0.00 | AH57: 9,356,910,847.35 | AJ57: 12,688,899,981.51 | AK57: (26) | AQ57: 7631050 | AR57: Purchases - Aviation - Intl
A58: 7631300 | B58: 7631300 Purchases - Prem Motor Spirit | C58: 15,933,165,350.70 | D58: 0.00 | E58: 0 | F58: 19,761,112,783.41 | G58: 19,761,113.00 | H58: 0.00 | I58: 19,761,113.00 | J58: 15,933,165.00 | K58: 15,933.17 | AB58: TRUE | AC58: 7631300 | AD58: 7631300 Purchases - Prem Motor Spirit | AE58: 65,010,347,068.92 | AF58: 0.00 | AG58: 0.00 | AH58: 65,010,347,068.92 | AJ58: 60,645,856,928.70 | AK58: 7 | AQ58: 7631300 | AR58: Purchases - Prem Motor Spirit
A59: 7631400 | B59: 7631400 Purchases - Dual Purpose Kerosene | C59: 370,175,143.30 | D59: 0.00 | E59: 0 | F59: 202,752,616.32 | G59: 202,753.00 | H59: 0.00 | I59: 202,753.00 | J59: 370,175.00 | K59: 370.18 | AB59: TRUE | AC59: 7631400 | AD59: 7631400 Purchases - Dual Purpose Kerosene | AE59: 1,867,857,069.30 | AF59: 0.00 | AG59: 0.00 | AH59: 1,867,857,069.30 | AJ59: 2,109,561,447.44 | AK59: (11) | AQ59: 7631400 | AR59: Purchases - Dual Purpose Kerosene
A60: 7631500 | B60: 7631500 Purchases - Auto Gas Oil | C60: 1,012,151,323.20 | D60: 0.00 | E60: 0 | F60: 911,399,575.05 | G60: 911,400.00 | H60: 0.00 | I60: 911,400.00 | J60: 1,012,151.00 | K60: 1,012.15 | AB60: TRUE | AC60: 7631500 | AD60: 7631500 Purchases - Auto Gas Oil | AE60: 3,309,858,355.98 | AF60: 0.00 | AG60: 0.00 | AH60: 3,309,858,355.98 | AJ60: 7,073,759,367.00 | AK60: (53) | AQ60: 7631500 | AR60: Purchases - Auto Gas Oil
A61: 7631900 | B61: Purchases - LPG | C61: 1,792,456.88 | F61: 0.00 | G61: 0.00 | H61: 0.00 | I61: =ROUND(F61/1000,0) -> 0.00 | J61: 1,792.00 | K61: 1.79 | AB61: TRUE | AC61: 7631900 | AD61: 7631900 Purchases - LPG | AE61: 2,383,498.15 | AF61: 0.00 | AG61: 0.00 | AH61: 2,383,498.15 | AJ61: 0.00 | AK61: 0 | AQ61: 7631900 | AR61: Purchases - LPG
A62: 7631950 | B62: Purchases - LPG Cylinder | C62: 10,847,621.60 | F62: 0.00 | G62: 0.00 | H62: 0.00 | I62: =ROUND(F62/1000,0) -> 0.00 | J62: 10,848.00 | K62: 10.85 | AB62: TRUE | AC62: 7631950 | AD62: 7631950 Purchases - LPG Cylinder | AE62: 14,118,098.56 | AF62: 0.00 | AG62: 0.00 | AH62: 14,118,098.56 | AJ62: 0.00 | AK62: 0 | AQ62: 7631950 | AR62: Purchases - LPG Cylinder
A63: 7632000 | B63: 7632000 Purchases - Base Oils | C63: 90,204,016.00 | D63: 0.00 | E63: 0 | F63: 0.00 | G63: 0.00 | H63: 0.00 | I63: 0.00 | J63: 90,204.00 | K63: 90.20 | AB63: TRUE | AC63: 7632000 | AD63: 7632000 Purchases - Base Oils | AE63: 1,122,365,868.64 | AF63: 0.00 | AG63: 0.00 | AH63: 1,122,365,868.64 | AJ63: 132,125,732.00 | AK63: 749 | AQ63: 7632000 | AR63: Purchases - Base Oils
A64: 7632200 | B64: 7632200 Purchases - Additives | C64: 8,399,968.00 | D64: 0.00 | E64: =SUM('TB Adjusted-3 '!I479) -> 0 | F64: 129,573,548.54 | G64: 129,574.00 | H64: 0.00 | I64: 129,574.00 | J64: 8,400.00 | K64: 8.40 | AB64: TRUE | AC64: 7632200 | AD64: 7632200 Purchases - Additives | AE64: 185,560,212.31 | AF64: 0.00 | AG64: 0.00 | AH64: 185,560,212.31 | AJ64: 154,138,481.50 | AK64: 20 | AQ64: 7632200 | AR64: Purchases - Additives
A65: 7632400 | B65: 7632400 Purchases - Specialities | C65: 0.00 | D65: 0.00 | E65: 0 | F65: 0.00 | G65: 0.00 | H65: 0.00 | I65: 0.00 | J65: 0.00 | K65: 0.00 | AB65: TRUE | AC65: 7632400 | AD65: 7632400 Purchases - Specialities | AE65: 78,180,946.53 | AF65: 0.00 | AG65: 0.00 | AH65: 78,180,946.53 | AJ65: 5,079,960.00 | AK65: 1439 | AQ65: 7632400 | AR65: Purchases - Specialities
A66: 7632500 | B66: Purchases - Special Fluids | F66: 0.00 | G66: 0.00 | H66: 0.00 | I66: =ROUND(F66/1000,0) -> 0.00 | J66: 0.00 | K66: 0.00 | AB66: TRUE | AC66: 7632500 | AD66: 7632500 Purchases - Special Fluids | AE66: 909,260.00 | AF66: 0.00 | AG66: 0.00 | AH66: 909,260.00 | AJ66: 0.00 | AK66: 0 | AQ66: 7632500 | AR66: Purchases - Special Fluids
A67: 7632600 | B67: 7632600 Purchases - Packaging Materials | C67: 28,891,510.65 | D67: 0.00 | E67: 0 | F67: 70,434,994.86 | G67: 70,435.00 | H67: 0.00 | I67: 70,435.00 | J67: 28,892.00 | K67: 28.89 | AB67: TRUE | AC67: 7632600 | AD67: 7632600 Purchases - Packaging Materials | AE67: 204,827,746.86 | AF67: 0.00 | AG67: 0.00 | AH67: 204,827,746.86 | AJ67: 192,719,985.40 | AK67: 6 | AQ67: 7632600 | AR67: Purchases - Packaging Materials
A68: 7632850 | B68: 7632850 Purchases - Trading Lubes | C68: 24,404,016.92 | D68: 0.00 | E68: 0 | F68: 166,557,252.57 | G68: 166,557.00 | H68: 0.00 | I68: 166,557.00 | J68: 24,404.00 | K68: 24.40 | AB68: TRUE | AC68: 7632850 | AD68: 7632850 Purchases - Trading Lubes | AE68: 353,154,918.58 | AF68: 0.00 | AG68: 0.00 | AH68: 353,154,918.58 | AJ68: 255,098,255.24 | AK68: 38 | AQ68: 7632850 | AR68: Purchases - Trading Lubes
A69: 7632900 | B69: 7632900 Purchases - Trading Grease (Texaco) | C69: 3,984,151.00 | D69: 0.00 | E69: 0 | F69: 7,583,825.97 | G69: 7,584.00 | H69: 1.00 | I69: =ROUND(F69/1000,0)-1 -> 7,583.00 | J69: 3,984.00 | K69: 3.98 | AB69: TRUE | AC69: 7632900 | AD69: 7632900 Purchases - Trading Grease (Texaco) | AE69: 11,952,453.00 | AF69: 0.00 | AG69: 0.00 | AH69: 11,952,453.00 | AJ69: 4,654,125.70 | AK69: 157 | AQ69: 7632900 | AR69: Purchases - Trading Grease (Texaco)
A70: 7639999 | B70: 7639999 Purchase Offset Account | C70: (19,548,450,104.06) | D70: 0.00 | E70: 0 | F70: (22,429,049,810.46) | G70: (22,429,050.00) | H70: 0.00 | I70: (22,429,050.00) | J70: (19,548,450.00) | K70: (19,548.45) | AB70: TRUE | AC70: 7639999 | AD70: 7639999 Purchase Offset Account | AE70: (81,518,426,344.18) | AF70: 0.00 | AG70: 0.00 | AH70: (81,518,426,344.18) | AJ70: (83,261,894,264.49) | AK70: (2) | AQ70: 7639999 | AR70: Purchase Offset Account
A71: 7641050 | B71: 7641050 Purchases - Spare Parts | C71: 0.00 | D71: 0.00 | E71: 0 | F71: 0.00 | G71: 0.00 | H71: 0.00 | I71: 0.00 | J71: 0.00 | K71: 0.00 | AB71: TRUE | AC71: 7641050 | AD71: 7641050 Purchases - Spare Parts | AE71: 0.00 | AF71: 0.00 | AG71: 0.00 | AH71: 0.00 | AJ71: 2,894,640.00 | AK71: (100) | AQ71: 7641050 | AR71: Purchases - Spare Parts
A72: 7641100 | B72: 7641100 Purchases - Consumables | C72: 3,437,905.50 | D72: 0.00 | E72: 0 | F72: 5,109,105.00 | G72: 5,109.00 | H72: 0.00 | I72: 5,109.00 | J72: 3,438.00 | K72: 3.44 | AB72: TRUE | AC72: 7641100 | AD72: 7641100 Purchases - Consumables | AE72: 8,588,109.84 | AF72: 0.00 | AG72: 0.00 | AH72: 8,588,109.84 | AJ72: 6,174,335.80 | AK72: 39 | AQ72: 7641100 | AR72: Purchases - Consumables
A73: 7641199 | B73: 7641199 Purchase Offset Account - Spares & Consumables | C73: (3,437,905.50) | D73: 0.00 | E73: 0 | F73: (5,109,105.00) | G73: (5,109.00) | H73: 0.00 | I73: =ROUND(F73/1000,0) -> (5,109.00) | J73: (3,437.00) | K73: (3.44) | AB73: TRUE | AC73: 7641199 | AD73: 7641199 Purchase Offset Account - Spares & Consumables | AE73: (8,588,109.84) | AF73: 0.00 | AG73: 0.00 | AH73: (8,588,109.84) | AJ73: (9,068,975.80) | AK73: (5) | AQ73: 7641199 | AR73: Purchase Offset Account - Spares & Consumables
A74: 2.0020. | B74: 2.0020.000 Purchases - COGS | C74: 0.00 | D74: 0.00 | E74: 0 | F74: 0.00 | G74: =SUM(G57:G73) -> 1.00 | H74: 1.00 | I74: =SUM(I57:I73) -> 0.00 | J74: 1.00 | K74: =J74/1000 -> 0.00 | AB74: =A74=AC74 -> TRUE | AC74: 2.0020. | AD74: 2.0020.000 Purchases - COGS | AE74: 0.00 | AF74: 0.00 | AG74: 0.00 | AH74: 0.00 | AJ74: 0.00 | AK74: (94) | AQ74: 2.0020. | AR74: 000 Purchases - COGS
G75: =ROUND(F75/1000,0) -> 0.00 | H75: =G75-I75 -> 0.00 | K75: 0.00 | L75: =SUM(I144,I175,I199,I324,I327,I361,I365)-I320 -> 24,828,222.00 | M75: Expenses by nature | AB75: TRUE
A76: 7081050 | B76: 7081050 Throughput Fees - Local Aviation Fuels | C76: 0.00 | D76: 0.00 | E76: 0 | F76: 13,184,338.60 | G76: 13,184.00 | H76: 0.00 | I76: =ROUND(F76/1000,0) -> 13,184.00 | J76: 0.00 | K76: 0.00 | L76: =I244+I245+I246+I247 -> 13,861.00 | M76: Throughput expense | AB76: TRUE | AC76: 7081050 | AD76: 7081050 Throughput Fees - Local Aviation Fuels | AE76: 75,547,981.97 | AF76: 0.00 | AG76: 16,969,750.40 | AH76: 92,517,732.37 | AJ76: 47,285,458.81 | AK76: 96 | AQ76: 7081050 | AR76: Throughput Fees - Local Aviation Fuels
A77: 7081150 | B77: 7081150 Throughput Fees - Premium Motor Spirit | C77: 0.00 | D77: 0.00 | E77: 0 | F77: 0.00 | G77: 0.00 | H77: 0.00 | I77: 0.00 | J77: 0.00 | K77: 0.00 | L77: =I76+L76 -> 27,045.00 | M77: Throughput expense | AB77: TRUE | AC77: 7081150 | AD77: 7081150 Throughput Fees - Premium Motor Spirit | AE77: (15,454,646.40) | AF77: 0.00 | AG77: 0.00 | AH77: (15,454,646.40) | AJ77: 0.00 | AK77: 0 | AQ77: 7081150 | AR77: Throughput Fees - Premium Motor Spirit
A78: 7701050 | B78: 7701050 Cost of Sales - International Aviation Fuels | C78: 2,444,611,270.83 | D78: 0.00 | E78: 0 | F78: 1,362,515,557.57 | G78: 1,362,516.00 | H78: 0.00 | I78: 1,362,516.00 | J78: 2,444,611.00 | K78: 2,444.61 | L78: =SUM(I78:I143) -> 23,302,234.00 | M78: Changes in inventories of lubes, greases and white products | AB78: TRUE | AC78: 7701050 | AD78: 7701050 Cost of Sales - International Aviation Fuels | AE78: 10,309,520,623.45 | AF78: 0.00 | AG78: 0.00 | AH78: 10,309,520,623.45 | AJ78: 11,956,090,349.04 | AK78: (14) | AQ78: 7701050 | AR78: Cost of Sales - International Aviation Fuels
A79: 7701300 | B79: 7701300 Cost of Sales - Premium Motor Spirit | C79: 15,664,567,595.65 | D79: 0.00 | E79: 0 | F79: 20,007,959,245.42 | G79: 20,007,959.00 | H79: 0.00 | I79: =ROUND(F79/1000,0) -> 20,007,959.00 | J79: 15,664,568.00 | K79: 15,664.57 | M79: Changes in inventories of lubes, greases and white products | AB79: TRUE | AC79: 7701300 | AD79: 7701300 Cost of Sales - Premium Motor Spirit | AE79: 64,783,586,654.20 | AF79: 0.00 | AG79: 0.00 | AH79: 64,783,586,654.20 | AJ79: 63,531,254,705.82 | AK79: 2 | AQ79: 7701300 | AR79: Cost of Sales - Premium Motor Spirit
A80: 7701400 | B80: 7701400 Cost of Sales - Dual Purpose Kerosene | C80: 370,175,143.30 | D80: 0.00 | E80: 0 | F80: 683,902,478.79 | G80: 683,902.00 | H80: 0.00 | I80: 683,902.00 | J80: 370,175.00 | K80: 370.18 | M80: Changes in inventories of lubes, greases and white products | AB80: TRUE | AC80: 7701400 | AD80: 7701400 Cost of Sales - Dual Purpose Kerosene | AE80: 1,615,638,793.90 | AF80: 0.00 | AG80: 0.00 | AH80: 1,615,638,793.90 | AJ80: 1,930,464,989.70 | AK80: (16) | AQ80: 7701400 | AR80: Cost of Sales - Dual Purpose Kerosene
A81: 7701500 | B81: 7701500 Cost of Sales - Auto Gas Oil | C81: 978,860,803.68 | D81: 0.00 | E81: 0 | F81: 927,561,349.85 | G81: 927,561.00 | H81: 0.00 | I81: 927,561.00 | J81: 978,861.00 | K81: 978.86 | M81: Changes in inventories of lubes, greases and white products | AB81: TRUE | AC81: 7701500 | AD81: 7701500 Cost of Sales - Auto Gas Oil | AE81: 3,237,135,670.32 | AF81: (443,699,854.12) | AG81: 0.00 | AH81: 2,793,435,816.20 | AJ81: 7,343,714,631.89 | AK81: (62) | AQ81: 7701500 | AR81: Cost of Sales - Auto Gas Oil
A82: 7701900 | B82: Cost of Sales - Liquidified Petroleum Gas | C82: 1,582,554.38 | F82: 0.00 | G82: 0.00 | H82: 0.00 | I82: =ROUND(F82/1000,0) -> 0.00 | J82: 1,583.00 | K82: 1.58 | M82: Changes in inventories of lubes, greases and white products | AB82: TRUE | AC82: 7701900 | AD82: 7701900 Cost of Sales - Liquidified Petroleum Gas | AE82: 2,383,498.15 | AF82: 0.00 | AG82: 0.00 | AH82: 2,383,498.15 | AJ82: 0.00 | AK82: 0 | AQ82: 7701900 | AR82: Cost of Sales - Liquidified Petroleum Gas
A83: 7701950 | B83: Cost of Sales - LPG Cylinder | C83: 9,617,145.12 | F83: 0.00 | G83: 0.00 | H83: 0.00 | I83: 0.00 | J83: 9,617.00 | K83: 9.62 | M83: Changes in inventories of lubes, greases and white products | AB83: TRUE | AC83: 7701950 | AD83: 7701950 Cost of Sales - LPG Cylinder | AE83: 14,118,098.56 | AF83: 0.00 | AG83: 0.00 | AH83: 14,118,098.56 | AJ83: 0.00 | AK83: 0 | AQ83: 7701950 | AR83: Cost of Sales - LPG Cylinder
A84: 7702000 | B84: 7702000 Cost of Sales - Base Oils | C84: 0.00 | D84: 0.00 | E84: 0 | F84: 0.00 | G84: 0.00 | H84: 0.00 | I84: 0.00 | J84: 0.00 | K84: 0.00 | M84: Changes in inventories of lubes, greases and white products | AB84: TRUE | AC84: 7702000 | AD84: 7702000 Cost of Sales - Base Oils | AE84: 0.00 | AF84: 0.00 | AG84: 0.00 | AH84: 0.00 | AJ84: 17,207,372.00 | AK84: (100) | AQ84: 7702000 | AR84: Cost of Sales - Base Oils
A85: 7702100 | B85: 7702100 Cost of Sales - Finished Lubes | C85: 263,151,271.94 | D85: 0.00 | E85: 0 | F85: 385,158,262.01 | G85: 385,158.00 | H85: 0.00 | I85: 385,158.00 | J85: 263,151.00 | K85: 263.15 | M85: Changes in inventories of lubes, greases and white products | AB85: TRUE | AC85: 7702100 | AD85: 7702100 Cost of Sales - Finished Lubes | AE85: 1,193,982,181.82 | AF85: 0.00 | AG85: 0.00 | AH85: 1,193,982,181.82 | AJ85: 1,380,475,757.87 | AK85: (14) | AQ85: 7702100 | AR85: Cost of Sales - Finished Lubes
A86: 7702200 | B86: 7702200 Cost of Sales - Additives | C86: 0.00 | D86: 0.00 | E86: 0 | F86: 0.00 | G86: 0.00 | H86: 0.00 | I86: 0.00 | J86: 0.00 | K86: 0.00 | M86: Changes in inventories of lubes, greases and white products | AB86: TRUE | AC86: 7702200 | AD86: 7702200 Cost of Sales - Additives | AE86: 4,276,080.67 | AF86: 0.00 | AG86: 0.00 | AH86: 4,276,080.67 | AJ86: 433,055.71 | AK86: 887 | AQ86: 7702200 | AR86: Cost of Sales - Additives
A87: 7702300 | B87: 7702300 Cost of Sales - Greases | C87: 48,424,959.94 | D87: 0.00 | E87: 0 | F87: 103,735,687.72 | G87: 103,736.00 | H87: 0.00 | I87: 103,736.00 | J87: 48,425.00 | K87: 48.43 | M87: Changes in inventories of lubes, greases and white products | AB87: TRUE | AC87: 7702300 | AD87: 7702300 Cost of Sales - Greases | AE87: 378,463,190.66 | AF87: 0.00 | AG87: 0.00 | AH87: 378,463,190.66 | AJ87: 421,238,378.92 | AK87: (10) | AQ87: 7702300 | AR87: Cost of Sales - Greases
A88: 7702400 | B88: Cost of Sales - Specialties | F88: 0.00 | G88: 0.00 | H88: 0.00 | I88: =ROUND(F88/1000,0) -> 0.00 | J88: 0.00 | K88: 0.00 | AB88: TRUE | AC88: 7702400 | AD88: 7702400 Cost of Sales - Specialties | AE88: 4,764.00 | AF88: 0.00 | AG88: 0.00 | AH88: 4,764.00 | AJ88: 0.00 | AK88: 0 | AQ88: 7702400 | AR88: Cost of Sales - Specialties
A89: 7702650 | B89: 7702650 Cost of Sales - Trading Lubes | C89: 94,211,255.81 | D89: 0.00 | E89: 0 | F89: 117,991,317.76 | G89: 117,991.00 | H89: 0.00 | I89: 117,991.00 | J89: 94,211.00 | K89: 94.21 | M89: Changes in inventories of lubes, greases and white products | AB89: TRUE | AC89: 7702650 | AD89: 7702650 Cost of Sales - Trading Lubes | AE89: 297,280,128.28 | AF89: 0.00 | AG89: 0.00 | AH89: 297,280,128.28 | AJ89: 343,535,556.71 | AK89: (13) | AQ89: 7702650 | AR89: Cost of Sales - Trading Lubes
A90: 7702700 | B90: Cost of Sales - Trading Grease (Texaco) | C90: 4,563,619.16 | F90: 1,114,276.29 | G90: 1,114.00 | H90: 0.00 | I90: =ROUND(F90/1000,0) -> 1,114.00 | J90: 4,564.00 | K90: 4.56 | M90: Changes in inventories of lubes, greases and white products | AB90: TRUE | AC90: 7702700 | AD90: 7702700 Cost of Sales - Trading Grease (Texaco) | AE90: 7,104,348.96 | AF90: 0.00 | AG90: 0.00 | AH90: 7,104,348.96 | AJ90: 0.00 | AK90: 0 | AQ90: 7702700 | AR90: Cost of Sales - Trading Grease (Texaco)
A91: 7752540 | B91: Jetty & Logistics Ser -Oth Dir Pro-cost ( unallo) | C91: 500,000.00 | F91: 0.00 | G91: 0.00 | H91: 0.00 | I91: =ROUND(F91/1000,0) -> 0.00 | J91: 500.00 | K91: 0.50 | M91: Changes in inventories of lubes, greases and white products | AB91: TRUE | AC91: 7752540 | AD91: 7752540 Jetty & Logistics Ser -Oth Dir Pro-cost ( unallo) | AE91: 6,684,144.56 | AF91: 0.00 | AG91: 0.00 | AH91: 6,684,144.56 | AJ91: 0.00 | AK91: 0 | AQ91: 7752540 | AR91: Jetty & Logistics Ser -Oth Dir Pro-cost ( unallo)
A92: 7801050 | B92: 7801050 Inventory Diff -International Aviation Fuels | C92: -334,609.48 | D92: 0.00 | E92: 0 | F92: 826,158.04 | G92: 826.00 | H92: 0.00 | I92: 826.00 | J92: (335.00) | K92: (0.34) | M92: Changes in inventories of lubes, greases and white products | AB92: TRUE | AC92: 7801050 | AD92: 7801050 Inventory Diff -International Aviation Fuels | AE92: (1,926,369.42) | AF92: 8,650.80 | AG92: 0.00 | AH92: (1,917,718.62) | AJ92: 40,912,669.04 | AK92: (105) | AQ92: 7801050 | AR92: Inventory Diff -International Aviation Fuels
A93: 7801300 | B93: 7801300 Inventory Diff -Premium Motor Spirit | C93: -7,356,195.80 | D93: 0.00 | E93: 0 | F93: 18,627,234.00 | G93: 18,627.00 | H93: 0.00 | I93: 18,627.00 | J93: (7,356.00) | K93: (7.36) | M93: Changes in inventories of lubes, greases and white products | AB93: TRUE | AC93: 7801300 | AD93: 7801300 Inventory Diff -Premium Motor Spirit | AE93: 637,270.34 | AF93: 14,444,837.66 | AG93: 0.00 | AH93: 15,082,108.00 | AJ93: 9,238,824.89 | AK93: 63 | AO93: ie | AQ93: 7801300 | AR93: Inventory Diff -Premium Motor Spirit
A94: 7801400 | B94: 7801400 Inventory Diff -Dual Purpose Kerosene | C94: 19,918.67 | D94: 0.00 | E94: 0 | F94: 302,682.81 | G94: 303.00 | H94: 0.00 | I94: 303.00 | J94: 20.00 | K94: 0.02 | M94: Changes in inventories of lubes, greases and white products | AB94: TRUE | AC94: 7801400 | AD94: 7801400 Inventory Diff -Dual Purpose Kerosene | AE94: 64,479.11 | AF94: 449,900.00 | AG94: 0.00 | AH94: 514,379.11 | AJ94: 98,146.86 | AK94: 424 | AQ94: 7801400 | AR94: Inventory Diff -Dual Purpose Kerosene
A95: 7801500 | B95: 7801500 Inventory Diff -Auto Gas Oil | C95: -1,515,388.17 | D95: 0.00 | E95: 0 | F95: (442,271.79) | G95: (442.00) | H95: 0.00 | I95: (442.00) | J95: (1,515.00) | K95: (1.52) | M95: Changes in inventories of lubes, greases and white products | AB95: TRUE | AC95: 7801500 | AD95: 7801500 Inventory Diff -Auto Gas Oil | AE95: (7,649,582.23) | AF95: 21,262.44 | AG95: 0.00 | AH95: (7,628,319.79) | AJ95: 9,872,997.57 | AK95: (177) | AQ95: 7801500 | AR95: Inventory Diff -Auto Gas Oil
A96: 7802000 | B96: 7802000 Inventory Diff -Base Oils | C96: -19,372,362.58 | D96: 0.00 | E96: 0 | F96: 0.00 | G96: 0.00 | H96: 0.00 | I96: 0.00 | J96: (19,372.00) | K96: (19.37) | M96: Changes in inventories of lubes, greases and white products | AB96: TRUE | AC96: 7802000 | AD96: 7802000 Inventory Diff -Base Oils | AE96: 2,473,249.33 | AF96: 0.00 | AG96: 0.00 | AH96: 2,473,249.33 | AJ96: 17,596,048.03 | AK96: (86) | AQ96: 7802000 | AR96: Inventory Diff -Base Oils
A97: 7802100 | B97: 7802100 Inventory Diff -Finished Lubes | C97: (7,675,590.40) | D97: 0.00 | E97: 0 | F97: 4,113,007.00 | G97: 4,113.00 | H97: 0.00 | I97: 4,113.00 | J97: (7,676.00) | K97: (7.68) | M97: Changes in inventories of lubes, greases and white products | AB97: TRUE | AC97: 7802100 | AD97: 7802100 Inventory Diff -Finished Lubes | AE97: 17,416,643.92 | AF97: 10,042,608.98 | AG97: 0.00 | AH97: 27,459,252.90 | AJ97: (60,777,890.76) | AK97: (145) | AQ97: 7802100 | AR97: Inventory Diff -Finished Lubes
A98: 7802200 | B98: 7802200 Inventory Diff -Additives | C98: -3,719,759.97 | D98: 0.00 | E98: 0 | F98: 0.00 | G98: 0.00 | H98: 0.00 | I98: 0.00 | J98: (3,720.00) | K98: (3.72) | M98: Changes in inventories of lubes, greases and white products | AB98: TRUE | AC98: 7802200 | AD98: 7802200 Inventory Diff -Additives | AE98: (275.67) | AF98: 0.00 | AG98: 0.00 | AH98: (275.67) | AJ98: 1,474,067.92 | AK98: (100) | AQ98: 7802200 | AR98: Inventory Diff -Additives
A99: 7802300 | B99: 7802300 Inventory Diff -Greases | C99: -19,237.15 | D99: 0.00 | E99: 0 | F99: 0.00 | G99: 0.00 | H99: 0.00 | I99: 0.00 | J99: (19.00) | K99: (0.02) | M99: Changes in inventories of lubes, greases and white products | AB99: TRUE | AC99: 7802300 | AD99: 7802300 Inventory Diff -Greases | AE99: (19,237.15) | AF99: 0.00 | AG99: 0.00 | AH99: (19,237.15) | AJ99: 19,237.15 | AK99: (200) | AQ99: 7802300 | AR99: Inventory Diff -Greases
A100: 7802600 | B100: 7802600 Inventory Diff -Packaging Materials | C100: 0.00 | D100: 0.00 | E100: 0 | F100: (29,016.73) | G100: (29.00) | H100: 0.00 | I100: (29.00) | J100: 0.00 | K100: 0.00 | M100: Changes in inventories of lubes, greases and white products | AB100: TRUE | AC100: 7802600 | AD100: 7802600 Inventory Diff -Packaging Materials | AE100: (10,871.59) | AF100: 0.00 | AG100: 0.00 | AH100: (10,871.59) | AJ100: 0.00 | AK100: 0 | AQ100: 7802600 | AR100: Inventory Diff -Packaging Materials
A101: 7802700 | B101: 7802700 Inventory Diff - WIP Lubricating Oil | C101: -29,407.28 | D101: 0.00 | E101: 0 | F101: 0.00 | G101: 0.00 | H101: 0.00 | I101: 0.00 | J101: (29.00) | K101: (0.03) | M101: Changes in inventories of lubes, greases and white products | AB101: TRUE | AC101: 7802700 | AD101: 7802700 Inventory Diff - WIP Lubricating Oil | AE101: (29,407.28) | AF101: 0.00 | AG101: 0.00 | AH101: (29,407.28) | AJ101: 29,407.28 | AK101: (200) | AQ101: 7802700 | AR101: Inventory Diff - WIP Lubricating Oil
A102: 7802900 | B102: 7802900 Inventory Diff -Trading Lubes | C102: -3,595,727.77 | D102: 0.00 | E102: 0 | F102: 0.00 | G102: 0.00 | H102: 0.00 | I102: 0.00 | J102: (3,596.00) | K102: (3.60) | M102: Changes in inventories of lubes, greases and white products | AB102: TRUE | AC102: 7802900 | AD102: 7802900 Inventory Diff -Trading Lubes | AE102: (4,396,122.86) | AF102: (18,779,665.56) | AG102: 0.00 | AH102: (23,175,788.42) | AJ102: 3,299,383.53 | AK102: (802) | AQ102: 7802900 | AR102: Inventory Diff -Trading Lubes
A103: 7802950 | B103: 7802950 Inventory Diff -Trading Grease (Texaco) | C103: 0.00 | D103: 0.00 | E103: 0 | F103: 0.00 | G103: 0.00 | H103: 0.00 | I103: 0.00 | J103: 0.00 | K103: 0.00 | M103: Changes in inventories of lubes, greases and white products | AB103: TRUE | AC103: 7802950 | AD103: 7802950 Inventory Diff -Trading Grease (Texaco) | AE103: 0.00 | AF103: 13,993.93 | AG103: 0.00 | AH103: 13,993.93 | AJ103: 11,572.35 | AK103: 21 | AQ103: 7802950 | AR103: Inventory Diff -Trading Grease (Texaco)
A104: 7806001 | B104: 7806001 Inventory Diff -Other Spare Parts | C104: -3,285,650.00 | D104: 0.00 | E104: 0 | F104: 0.00 | G104: 0.00 | H104: 0.00 | I104: 0.00 | J104: (3,286.00) | K104: (3.29) | M104: Changes in inventories of lubes, greases and white products | AB104: TRUE | AC104: 7806001 | AD104: 7806001 Inventory Diff -Other Spare Parts | AE104: (3,285,650.00) | AF104: 0.00 | AG104: 0.00 | AH104: (3,285,650.00) | AJ104: 3,285,650.00 | AK104: (200) | AQ104: 7806001 | AR104: Inventory Diff -Other Spare Parts
A105: 7808000 | B105: 7808000 Inventory Diff -Misc Resale Items | C105: (1,604.04) | D105: 0.00 | E105: 0 | F105: 0.00 | G105: 0.00 | H105: 0.00 | I105: 0.00 | J105: (2.00) | K105: (0.00) | M105: Changes in inventories of lubes, greases and white products | AB105: TRUE | AC105: 7808000 | AD105: 7808000 Inventory Diff -Misc Resale Items | AE105: (1,604.04) | AF105: 0.00 | AG105: 0.00 | AH105: (1,604.04) | AJ105: (528,531.18) | AK105: (100) | AQ105: 7808000 | AR105: Inventory Diff -Misc Resale Items
A106: 7808001 | B106: 7808001 Inventory Diff -Printing & Stationery | C106: 0.00 | D106: 0.00 | E106: 0 | F106: 0.00 | G106: 0.00 | H106: 0.00 | I106: 0.00 | J106: 0.00 | K106: 0.00 | M106: Changes in inventories of lubes, greases and white products | AB106: =A106=AC106 -> TRUE | AC106: 7808001 | AD106: 7808001 Inventory Diff -Printing & Stationery | AE106: 0.00 | AF106: 0.00 | AG106: 0.00 | AH106: 0.00 | AJ106: (57,630.40) | AK106: (100) | AQ106: 7808001 | AR106: Inventory Diff -Printing & Stationery
A107: 7808002 | B107: 7808002 Inventory Diff -Computer Consumables | C107: 0.00 | D107: 0.00 | E107: 0 | F107: 0.00 | G107: 0.00 | H107: 0.00 | I107: 0.00 | J107: 0.00 | K107: 0.00 | M107: Changes in inventories of lubes, greases and white products | AB107: TRUE | AC107: 7808002 | AD107: 7808002 Inventory Diff -Computer Consumables | AE107: 0.00 | AF107: 0.00 | AG107: 0.00 | AH107: 0.00 | AJ107: (66,520.50) | AK107: (100) | AQ107: 7808002 | AR107: Inventory Diff -Computer Consumables
A108: 7808006 | B108: 7808006 Inventory Diff -Safety Items, boots, fire ext etc | C108: -113,400.00 | D108: 0.00 | E108: 0 | F108: 0.00 | G108: 0.00 | H108: 0.00 | I108: 0.00 | J108: (113.00) | K108: (0.11) | M108: Changes in inventories of lubes, greases and white products | AB108: TRUE | AC108: 7808006 | AD108: 7808006 Inventory Diff -Safety Items, boots, fire ext etc | AE108: (113,400.00) | AF108: 0.00 | AG108: 0.00 | AH108: (113,400.00) | AJ108: 113,400.00 | AK108: (200) | AQ108: 7808006 | AR108: Inventory Diff -Safety Items, boots, fire ext etc
A109: 7871150 | B109: 7871150 Price Difference - Lubrication oil | C109: 95,220.24 | D109: 0.00 | E109: 0 | F109: (2,590.17) | G109: (3.00) | H109: 0.00 | I109: (3.00) | J109: 95.00 | K109: 0.10 | M109: Changes in inventories of lubes, greases and white products | AB109: TRUE | AC109: 7871150 | AD109: 7871150 Price Difference - Lubrication oil | AE109: 1,256,739.47 | AF109: 0.00 | AG109: 0.00 | AH109: 1,256,739.47 | AJ109: 924,350.11 | AK109: 36 | AQ109: 7871150 | AR109: Price Difference - Lubrication oil
A110: 7871300 | B110: 7871300 Premium Motor Spirit (price diff - Material Acc) | C110: 466,784,061.35 | D110: (73,176,790.00) | E110: 0 | F110: (186,231,297.87) | G110: (186,231.00) | H110: 0.00 | I110: (186,231.00) | J110: (58,918.00) | K110: (58.92) | M110: Changes in inventories of lubes, greases and white products | AB110: TRUE | AC110: 7871300 | AD110: 7871300 Premium Motor Spirit (price diff - Material Acc) | AE110: (709,139,434.27) | AF110: (20,586,471.61) | AG110: 0.00 | AH110: (729,725,905.88) | AJ110: (1,645,874,671.53) | AK110: (56) | AQ110: 7871300 | AR110: Premium Motor Spirit (price diff - Material Acc)
A111: 7871400 | B111: 7871400 Dual Purpose Kerosene (price diff - Material Acc) | C111: 8,311,248.10 | D111: 0.00 | E111: 0 | F111: (79,561,962.51) | G111: (79,562.00) | H111: 0.00 | I111: (79,562.00) | J111: 8,311.00 | K111: 8.31 | M111: Changes in inventories of lubes, greases and white products | AB111: TRUE | AC111: 7871400 | AD111: 7871400 Dual Purpose Kerosene (price diff - Material Acc) | AE111: 106,273,900.22 | AF111: 0.00 | AG111: 0.00 | AH111: 106,273,900.22 | AJ111: 153,849,047.35 | AK111: (31) | AQ111: 7871400 | AR111: Dual Purpose Kerosene (price diff - Material Acc)
A112: 7871900 | B112: Liquidified Petroleum Gas (price diff - Material A | F112: 0.00 | G112: 0.00 | H112: 0.00 | I112: =ROUND(F112/1000,0) -> 0.00 | J112: 0.00 | K112: 0.00 | AB112: TRUE | AC112: 7871900 | AD112: 7871900 Liquidified Petroleum Gas (price diff - Material A | AE112: (53,667.23) | AF112: 0.00 | AG112: 0.00 | AH112: (53,667.23) | AJ112: 0.00 | AK112: 0 | AQ112: 7871900 | AR112: Liquidified Petroleum Gas (price diff - Material A
A113: 7872000 | B113: Base Oils (price diff - Material Acc) | F113: 0.00 | G113: 0.00 | H113: 0.00 | I113: =ROUND(F113/1000,0) -> 0.00 | J113: 0.00 | K113: 0.00 | AB113: TRUE | AC113: 7872000 | AD113: 7872000 Base Oils (price diff - Material Acc) | AE113: (31,556.34) | AF113: 0.00 | AG113: 0.00 | AH113: (31,556.34) | AJ113: 0.00 | AK113: 0 | AQ113: 7872000 | AR113: Base Oils (price diff - Material Acc)
A114: 7872100 | B114: 7872100 Finished Lubes (price diff - Material Acc) | C114: (5,031,647.93) | D114: 0.00 | E114: 0 | F114: 2,087,658.78 | G114: 2,088.00 | H114: 0.00 | I114: 2,088.00 | J114: (5,032.00) | K114: (5.03) | M114: Changes in inventories of lubes, greases and white products | AB114: TRUE | AC114: 7872100 | AD114: 7872100 Finished Lubes (price diff - Material Acc) | AE114: (5,541,842.85) | AF114: 0.00 | AG114: 0.00 | AH114: (5,541,842.85) | AJ114: (4,577,479.82) | AK114: 21 | AQ114: 7872100 | AR114: Finished Lubes (price diff - Material Acc)
A115: 7872200 | B115: 7872200 Additives (price diff - Material Acc) | C115: 0.00 | D115: 0.00 | E115: 0 | F115: 0.00 | G115: 0.00 | H115: 0.00 | I115: =ROUND(F115/1000,0) -> 0.00 | J115: 0.00 | K115: 0.00 | M115: Changes in inventories of lubes, greases and white products | AB115: TRUE | AC115: 7872200 | AD115: 7872200 Additives (price diff - Material Acc) | AE115: 0.00 | AF115: 0.00 | AG115: 0.00 | AH115: 0.00 | AJ115: 3.70 | AK115: (100) | AQ115: 7872200 | AR115: Additives (price diff - Material Acc)
A116: 7872300 | B116: 7872300 Greases (price diff - Material Acc) | C116: 0.00 | D116: 0.00 | E116: 0 | F116: 0.00 | G116: 0.00 | H116: 0.00 | I116: 0.00 | J116: 0.00 | K116: 0.00 | M116: Changes in inventories of lubes, greases and white products | AB116: TRUE | AC116: 7872300 | AD116: 7872300 Greases (price diff - Material Acc) | AE116: 0.00 | AF116: 0.00 | AG116: 0.00 | AH116: 0.00 | AJ116: 527,424.23 | AK116: (100) | AQ116: 7872300 | AR116: Greases (price diff - Material Acc)
A117: 7872400 | B117: Specialties (price diff - Material Acc) | F117: 0.00 | G117: 0.00 | H117: 0.00 | I117: 0.00 | J117: 0.00 | K117: 0.00 | AB117: TRUE | AC117: 7872400 | AD117: 7872400 Specialties (price diff - Material Acc) | AE117: 837,058.83 | AF117: 0.00 | AG117: 0.00 | AH117: 837,058.83 | AJ117: 0.00 | AK117: 0 | AQ117: 7872400 | AR117: Specialties (price diff - Material Acc)
A118: 7872600 | B118: 7872600 Packaging Materials (price diff - Material Acc) | C118: -13015243.25 | D118: 0.00 | E118: 0 | F118: 0.00 | G118: 0.00 | H118: 0.00 | I118: 0.00 | J118: (13,015.00) | K118: (13.02) | M118: Changes in inventories of lubes, greases and white products | AB118: TRUE | AC118: 7872600 | AD118: 7872600 Packaging Materials (price diff - Material Acc) | AE118: (13,031,155.78) | AF118: 0.00 | AG118: 0.00 | AH118: (13,031,155.78) | AJ118: 0.00 | AK118: 0 | AQ118: 7872600 | AR118: Packaging Materials (price diff - Material Acc)
A119: 7872800 | B119: 7872800 WIP Grease (price diff - Material Acc) | C119: (21,180,565.88) | D119: 0.00 | E119: 0 | F119: 5,173,599.93 | G119: 5,174.00 | H119: 0.00 | I119: 5,174.00 | J119: (21,181.00) | K119: (21.18) | M119: Changes in inventories of lubes, greases and white products | AB119: TRUE | AC119: 7872800 | AD119: 7872800 WIP Grease (price diff - Material Acc) | AE119: (11,138,073.86) | AF119: 0.00 | AG119: 0.00 | AH119: (11,138,073.86) | AJ119: (17,944,133.16) | AK119: (38) | AQ119: 7872800 | AR119: WIP Grease (price diff - Material Acc)
A120: 7872850 | B120: 7872850 Lubes By-Products (price diff - Material Acc) | C120: (11,917,746.14) | D120: 0.00 | E120: 0 | F120: 1,719,637.37 | G120: 1,720.00 | H120: 0.00 | I120: =ROUND(F120/1000,0) -> 1,720.00 | J120: (11,917.00) | K120: (11.92) | M120: Changes in inventories of lubes, greases and white products | AB120: TRUE | AC120: 7872850 | AD120: 7872850 Lubes By-Products (price diff - Material Acc) | AE120: (30,654,340.64) | AF120: 0.00 | AG120: 0.00 | AH120: (30,654,340.64) | AJ120: (14,484,720.33) | AK120: 112 | AQ120: 7872850 | AR120: Lubes By-Products (price diff - Material Acc)
A121: 7872900 | B121: 7872900 Trading - Lubes(price diff - Material Acc) | C121: 0.00 | D121: 0.00 | E121: 0 | F121: (419.63) | G121: 0.00 | H121: 0.00 | I121: 0.00 | J121: 0.00 | K121: 0.00 | M121: Changes in inventories of lubes, greases and white products | AB121: TRUE | AC121: 7872900 | AD121: 7872900 Trading - Lubes(price diff - Material Acc) | AE121: (3,244,810.04) | AF121: 0.00 | AG121: 0.00 | AH121: (3,244,810.04) | AJ121: 741,962.96 | AK121: (537) | AQ121: 7872900 | AR121: Trading - Lubes(price diff - Material Acc)
A122: 7872950 | B122: 7872950 Trading - Grease (Texaco)-(price diff - Material A | C122: 0.00 | D122: 0.00 | E122: 0 | F122: 0.00 | G122: 0.00 | H122: 0.00 | I122: 0.00 | J122: 0.00 | K122: 0.00 | M122: Changes in inventories of lubes, greases and white products | AB122: TRUE | AC122: 7872950 | AD122: 7872950 Trading - Grease (Texaco)-(price diff - Material A | AE122: 9,958.19 | AF122: 0.00 | AG122: 0.00 | AH122: 9,958.19 | AJ122: 0.00 | AK122: 0 | AQ122: 7872950 | AR122: Trading - Grease (Texaco)-(price diff - Material A
A123: 7962850 | B123: Lubes By-Products(cons in oper- contra Acc) | F123: (91,986.30) | G123: =ROUND(F123/1000,0) -> (92.00) | H123: =G123-I123 -> 0.00 | I123: =ROUND(F123/1000,0) -> (92.00) | J123: 0.00
A124: 7902100 | B124: 7902100 Finished Lubes (Diff in Consumption Acc) | C124: (227,054,318.79) | D124: 0.00 | E124: 0 | F124: (361,634,982.32) | G124: (361,635.00) | H124: 0.00 | I124: (361,635.00) | J124: (227,054.00) | K124: (227.05) | M124: Changes in inventories of lubes, greases and white products | AB124: =A124=AC124 -> TRUE | AC124: 7902100 | AD124: 7902100 Finished Lubes (Diff in Consumption Acc) | AE124: (1,207,179,293.44) | AF124: 0.00 | AG124: 0.00 | AH124: (1,207,179,293.44) | AJ124: (1,130,733,243.46) | AK124: 7 | AQ124: 7902100 | AR124: Finished Lubes (Diff in Consumption Acc)
A125: 7902300 | B125: 7902300 Greases (Diff in Consumption Acc) | C125: (31,491,992.93) | D125: 0.00 | E125: 0 | F125: (94,480,624.02) | G125: (94,481.00) | H125: 0.00 | I125: (94,481.00) | J125: (31,492.00) | K125: (31.49) | M125: Changes in inventories of lubes, greases and white products | AB125: TRUE | AC125: 7902300 | AD125: 7902300 Greases (Diff in Consumption Acc) | AE125: (317,203,799.45) | AF125: 0.00 | AG125: 0.00 | AH125: (317,203,799.45) | AJ125: (410,735,326.11) | AK125: (23) | AQ125: 7902300 | AR125: Greases (Diff in Consumption Acc)
A126: 7902700 | B126: 7902700 Difference in Consumption - Lube Oils | C126: (198,112,509.41) | D126: 0.00 | E126: 0 | F126: (357,260,399.52) | G126: (357,260.00) | H126: 0.00 | I126: (357,260.00) | J126: (198,113.00) | K126: (198.11) | M126: Changes in inventories of lubes, greases and white products | AB126: TRUE | AC126: 7902700 | AD126: 7902700 Difference in Consumption - Lube Oils | AE126: (1,073,762,116.39) | AF126: 0.00 | AG126: 0.00 | AH126: (1,073,762,116.39) | AJ126: (1,032,408,895.11) | AK126: 4 | AQ126: 7902700 | AR126: Difference in Consumption - Lube Oils
A127: 7902800 | B127: 7902800 Difference in Consumption - WIP Greases | C127: (21,501,778.35) | D127: 0.00 | E127: 0 | F127: (88,321,850.27) | G127: (88,322.00) | H127: 0.00 | I127: (88,322.00) | J127: (21,502.00) | K127: (21.50) | M127: Changes in inventories of lubes, greases and white products | AB127: TRUE | AC127: 7902800 | AD127: 7902800 Difference in Consumption - WIP Greases | AE127: (276,224,852.65) | AF127: 0.00 | AG127: 0.00 | AH127: (276,224,852.65) | AJ127: (316,248,055.30) | AK127: (13) | AQ127: 7902800 | AR127: Difference in Consumption - WIP Greases
A128: 7905200 | B128: 7905200 Premium Motor Spirit (Vari part-part Transf) | C128: 500,000.00 | D128: 0.00 | E128: 0 | F128: 232,256.24 | G128: 232.00 | H128: 0.00 | I128: =ROUND(F128/1000,0) -> 232.00 | J128: 500.00 | K128: 0.50 | M128: Changes in inventories of lubes, greases and white products | AB128: TRUE | AC128: 7905200 | AD128: 7905200 Premium Motor Spirit (Vari part-part Transf) | AE128: 3,268,242.29 | AF128: 0.00 | AG128: 0.00 | AH128: 3,268,242.29 | AJ128: 3,009,282.10 | AK128: 9 | AQ128: 7905200 | AR128: Premium Motor Spirit (Vari part-part Transf)
A129: 7905250 | B129: 7905250 Dual Purpose Kerosene (Vari part-part Transf) | C129: 0.00 | D129: 0.00 | E129: 0 | F129: 0.00 | G129: 0.00 | H129: 0.00 | I129: 0.00 | J129: 0.00 | K129: 0.00 | M129: Changes in inventories of lubes, greases and white products | AB129: TRUE | AC129: 7905250 | AD129: 7905250 Dual Purpose Kerosene (Vari part-part Transf) | AE129: 0.00 | AF129: 0.00 | AG129: 0.00 | AH129: 0.00 | AJ129: 3,710,966.91 | AK129: (100) | AQ129: 7905250 | AR129: Dual Purpose Kerosene (Vari part-part Transf)
A130: 7905300 | B130: 7905300 Auto Gas Oil (Vari part-part Transf) | C130: 0.00 | D130: 0.00 | E130: 0 | F130: (73,920.00) | G130: (74.00) | H130: 0.00 | I130: (74.00) | J130: 0.00 | K130: 0.00 | M130: Changes in inventories of lubes, greases and white products | AB130: TRUE | AC130: 7905300 | AD130: 7905300 Auto Gas Oil (Vari part-part Transf) | AE130: 0.00 | AF130: 0.00 | AG130: 0.00 | AH130: 0.00 | AJ130: 25,427.61 | AK130: (100) | AQ130: 7905300 | AR130: Auto Gas Oil (Vari part-part Transf)
A131: 7905600 | B131: 7905600 Finished Lubes (Vari part-part Transf) | C131: (70,176.69) | D131: 0.00 | E131: 0 | F131: (105,369.16) | G131: (105.00) | H131: 0.00 | I131: (105.00) | J131: (70.00) | K131: (0.07) | M131: Changes in inventories of lubes, greases and white products | AB131: TRUE | AC131: 7905600 | AD131: 7905600 Finished Lubes (Vari part-part Transf) | AE131: (278,623.69) | AF131: 0.00 | AG131: 0.00 | AH131: (278,623.69) | AJ131: (17,643.96) | AK131: 1479 | AQ131: 7905600 | AR131: Finished Lubes (Vari part-part Transf)
A132: 7911500 | B132: Auto Gas Oil (process rejection) | C132: 0.00 | D132: 0.00 | E132: 0 | F132: 0.00 | G132: 0.00 | H132: 0.00 | I132: =ROUND(F132/1000,0) -> 0.00 | J132: 0.00 | K132: 0.00 | AB132: TRUE | AC132: 7911500 | AD132: 7911500 Auto Gas Oil (process rejection) | AE132: (93.20) | AF132: 0.00 | AG132: 0.00 | AH132: (93.20) | AJ132: 0.00 | AK132: 0 | AQ132: 7911500 | AR132: Auto Gas Oil (process rejection)
A133: 7962000 | B133: 7962000 Base Oils(cons in oper- contra Acc) | C133: 153,366,409.58 | D133: 0.00 | E133: 0 | F133: 275,780,247.47 | G133: 275,780.00 | H133: 0.00 | I133: 275,780.00 | J133: 153,366.00 | K133: 153.37 | L133: =I77+I79+I80+I81+I82+I83+#REF!+I93+I94+I95+#REF!+I110+I111+#REF!+I112+I128+I129+I91 ->  | M133: Changes in inventories of lubes, greases and white products | AB133: TRUE | AC133: 7962000 | AD133: 7962000 Base Oils(cons in oper- contra Acc) | AE133: 896,846,619.18 | AF133: 0.00 | AG133: 0.00 | AH133: 896,846,619.18 | AJ133: 913,431,180.10 | AK133: (2) | AQ133: 7962000 | AR133: Base Oils(cons in oper- contra Acc)
A134: 7962100 | B134: 7962100 Finished Lubes(cons in oper- contra Acc) | C134: 3,155,399.73 | D134: 0.00 | E134: 0 | F134: 10,008,818.47 | G134: 10,009.00 | H134: 0.00 | I134: 10,009.00 | J134: 3,155.00 | K134: 3.16 | L134: =I76+I78+I92+#REF!+#REF! ->  | M134: Changes in inventories of lubes, greases and white products | AB134: TRUE | AC134: 7962100 | AD134: 7962100 Finished Lubes(cons in oper- contra Acc) | AE134: 46,310,810.99 | AF134: 0.00 | AG134: 0.00 | AH134: 46,310,810.99 | AJ134: 106,401,940.15 | AK134: (56) | AQ134: 7962100 | AR134: Finished Lubes(cons in oper- contra Acc)
A135: 7962200 | B135: 7962200 Additives(cons in oper- contra Acc) | C135: 42,579,422.84 | D135: 0.00 | E135: 0 | F135: 59,934,780.32 | G135: 59,935.00 | H135: 0.00 | I135: 59,935.00 | J135: 42,579.00 | K135: 42.58 | L135: =I144-L133-L134 ->  | M135: Changes in inventories of lubes, greases and white products | AB135: TRUE | AC135: 7962200 | AD135: 7962200 Additives(cons in oper- contra Acc) | AE135: 209,754,226.94 | AF135: 0.00 | AG135: 0.00 | AH135: 209,754,226.94 | AJ135: 162,221,409.66 | AK135: 29 | AQ135: 7962200 | AR135: Additives(cons in oper- contra Acc)
A136: 7962300 | B136: 7962300 Greases(cons in oper- contra Acc) | C136: 0.00 | D136: 0.00 | E136: 0 | F136: 0.00 | G136: 0.00 | H136: 0.00 | I136: 0.00 | J136: 0.00 | K136: 0.00 | M136: Changes in inventories of lubes, greases and white products | AB136: TRUE | AC136: 7962300 | AD136: 7962300 Greases(cons in oper- contra Acc) | AE136: 0.00 | AF136: 0.00 | AG136: 0.00 | AH136: 0.00 | AJ136: 1,117,412.25 | AK136: (100) | AQ136: 7962300 | AR136: Greases(cons in oper- contra Acc)
A137: 7962400 | B137: 7962400 Specialties(cons in oper- contra Acc) | C137: 2,155,403.41 | D137: 0.00 | E137: 0 | F137: 13,207,962.06 | G137: 13,208.00 | H137: 0.00 | I137: 13,208.00 | J137: 2,155.00 | K137: 2.16 | M137: Changes in inventories of lubes, greases and white products | AB137: TRUE | AC137: 7962400 | AD137: 7962400 Specialties(cons in oper- contra Acc) | AE137: 37,676,876.51 | AF137: 0.00 | AG137: 0.00 | AH137: 37,676,876.51 | AJ137: 38,900,342.01 | AK137: (3) | AQ137: 7962400 | AR137: Specialties(cons in oper- contra Acc)
A138: 7962500 | B138: 7962500 Special Fluids(cons in oper- contra Acc) | C138: 10,911.15 | D138: 0.00 | E138: 0 | F138: 0.00 | G138: 0.00 | H138: 0.00 | I138: 0.00 | J138: 11.00 | K138: 0.01 | M138: Changes in inventories of lubes, greases and white products | AB138: TRUE | AC138: 7962500 | AD138: 7962500 Special Fluids(cons in oper- contra Acc) | AE138: 124,568.96 | AF138: 0.00 | AG138: 0.00 | AH138: 124,568.96 | AJ138: 218,223.07 | AK138: (43) | AQ138: 7962500 | AR138: Special Fluids(cons in oper- contra Acc)
A139: 7962600 | B139: 7962600 Packaging Materials (cons in oper- contra Acc) | C139: 25,877,423.85 | D139: 0.00 | E139: 0 | F139: 68,571,907.70 | G139: =ROUND(F139/1000,0) -> 68,572.00 | H139: =G139-I139 -> 0.00 | I139: =ROUND(F139/1000,0) -> 68,572.00 | J139: 25,877.00 | K139: =J139/1000 -> 25.88 | M139: Changes in inventories of lubes, greases and white products | AB139: TRUE | AC139: 7962600 | AD139: 7962600 Packaging Materials (cons in oper- contra Acc) | AE139: 205,649,127.58 | AF139: 0.00 | AG139: 0.00 | AH139: 205,649,127.58 | AJ139: 188,988,026.60 | AK139: 9 | AQ139: 7962600 | AR139: Packaging Materials (cons in oper- contra Acc)
A140: 7962700 | B140: 7962700 Conusumed in operations - WIP Lube Oil | C140: 214,579,452.36 | D140: 0.00 | E140: 0 | F140: 348,988,791.09 | G140: 348,989.00 | H140: 0.00 | I140: 348,989.00 | J140: 214,579.00 | K140: 214.58 | M140: Changes in inventories of lubes, greases and white products | AB140: TRUE | AC140: 7962700 | AD140: 7962700 Conusumed in operations - WIP Lube Oil | AE140: 1,099,525,468.56 | AF140: 0.00 | AG140: 0.00 | AH140: 1,099,525,468.56 | AJ140: 1,040,104,815.62 | AK140: 6 | AQ140: 7962700 | AR140: Conusumed in operations - WIP Lube Oil
A141: 7962800 | B141: 7962800 Conusumed in operations - WIP Greases | C141: 24,614,230.45 | D141: 0.00 | E141: 0 | F141: 70,134,043.76 | G141: 70,134.00 | H141: 0.00 | I141: 70,134.00 | J141: 24,614.00 | K141: 24.61 | M141: Changes in inventories of lubes, greases and white products | AB141: TRUE | AC141: 7962800 | AD141: 7962800 Conusumed in operations - WIP Greases | AE141: 239,764,577.88 | AF141: 0.00 | AG141: 0.00 | AH141: 239,764,577.88 | AJ141: 323,349,912.21 | AK141: (26) | AQ141: 7962800 | AR141: Conusumed in operations - WIP Greases
A142: 7962900 | B142: 7962900 Tra - Lubes(cons in oper- contra Acc) | C142: 0.00 | D142: 0.00 | E142: 0 | F142: 0.00 | G142: 0.00 | H142: 0.00 | I142: =ROUND(F142/1000,0) -> 0.00 | J142: 0.00 | K142: 0.00 | L142: =L143-L135 ->  | M142: Changes in inventories of lubes, greases and white products | AB142: TRUE | AC142: 7962900 | AD142: 7962900 Tra - Lubes(cons in oper- contra Acc) | AE142: 450,556.53 | AF142: 0.00 | AG142: 0.00 | AH142: 450,556.53 | AJ142: 1,299,565.65 | AK142: (65) | AQ142: 7962900 | AR142: Tra - Lubes(cons in oper- contra Acc)
A143: 7969300 | B143: 7969300 Auto Gas Oil(cons in oper- cost ctr) | C143: 1,153,838.85 | D143: 0.00 | E143: 0 | F143: 822,885.72 | G143: 823.00 | H143: 0.00 | I143: =ROUND(F143/1000,0) -> 823.00 | J143: 1,154.00 | K143: 1.15 | L143: =SUM(I131:I141,I113:I127,I142:I143,I96:I109,I84:I91) -> 566,617.00 | M143: Changes in inventories of lubes, greases and white products | AB143: TRUE | AC143: 7969300 | AD143: 7969300 Auto Gas Oil(cons in oper- cost ctr) | AE143: 4,179,496.27 | AF143: 0.00 | AG143: 0.00 | AH143: 4,179,496.27 | AJ143: 4,791,240.67 | AK143: (13) | AQ143: 7969300 | AR143: Auto Gas Oil(cons in oper- cost ctr)
A144: 2.0010. | B144: 2.0010.000 Cost of Sales | C144: 20,247,073,648.38 | D144: =SUM(D76:D143) -> -73,176,790.00 | E144: =SUM(E76:E143) -> 0 | F144: 23,315,417,494.48 | G144: =SUM(G76:G143) -> 23,315,418.00 | H144: 0.00 | I144: =SUM(I76:I143) -> 23,315,418.00 | J144: 19,721,369.00 | K144: 19,721.37 | L144: =I76+I78+I92 -> 1,376,526.00 | AB144: TRUE | AC144: 2.0010. | AD144: 2.0010.000 Cost of Sales | AE144: 81,117,875,204.13 | AF144: (458,084,737.48) | AG144: 16,969,750.40 | AH144: 80,676,760,217.05 | AJ144: 85,366,809,452.43 | AK144: (5) | AQ144: 2.0010. | AR144: 000 Cost of Sales
G145: 0.00 | H145: 0.00 | K145: 0.00 | L145: =I79+I80+I81+I82+I83+I93+I95+I94+I110+I111+I112+I77+I128+I130 -> 21,372,275.00 | AB145: TRUE
A146: 7351350 | B146: 7351350 Other Income- Pump Repairs Recovery | C146: (5,316,929.31) | D146: 0.00 | E146: 0 | F146: (9,022,342.25) | G146: =ROUND(F146/1000,0) -> (9,022.00) | H146: =G146-I146 -> 0.00 | I146: =ROUNDDOWN(F146/1000,0) -> (9,022.00) | J146: (5,317.00) | K146: =J146/1000 -> (5.32) | M146: Maintenance | AB146: TRUE | AC146: 7351350 | AD146: 7351350 Other Income- Pump Repairs Recovery | AE146: (25,626,605.81) | AF146: 0.00 | AG146: 0.00 | AH146: (25,626,605.81) | AJ146: (28,281,131.00) | AK146: (9) | AQ146: 7351350 | AR146: Other Income- Pump Repairs Recovery
A147: 7921100 | B147: 7921100 Transp Costs - Road/Rail - Local Aviation Fuels | C147: 57,576,954.09 | D147: 0.00 | E147: 0 | F147: 94,445,974.18 | G147: 94,446.00 | H147: 0.00 | I147: =ROUND(F147/1000,0) -> 94,446.00 | J147: 57,577.00 | K147: 57.58 | L147: =I144 -> 23,315,418.00 | M147: Freight expense | AB147: TRUE | AC147: 7921100 | AD147: 7921100 Transp Costs - Road/Rail - Local Aviation Fuels | AE147: 526,747,039.42 | AF147: 0.00 | AG147: 0.00 | AH147: 526,747,039.42 | AJ147: 276,678,344.17 | AK147: 90 | AQ147: 7921100 | AR147: Transp Costs - Road/Rail - Local Aviation Fuels
A148: 7921500 | B148: 7921500 Transp Costs - Road/Rail - Auto Gas Oil | C148: 19,336,736.23 | D148: 0.00 | E148: 0 | F148: 19,369,872.40 | G148: 19,370.00 | H148: 0.00 | I148: 19,370.00 | J148: 19,337.00 | K148: 19.34 | L148: =L147-L145-L144-L143 -> 0.00 | M148: =VLOOKUP(B148,Sheet1!$A$1:$I$178,9,0) -> Freight expense | AB148: TRUE | AC148: 7921500 | AD148: 7921500 Transp Costs - Road/Rail - Auto Gas Oil | AE148: 76,756,008.79 | AF148: 142,712,930.47 | AG148: 0.00 | AH148: 219,468,939.26 | AJ148: 124,256,889.14 | AK148: 77 | AQ148: 7921500 | AR148: Transp Costs - Road/Rail - Auto Gas Oil
A149: 7922100 | B149: 7922100 Transp Costs - Finished Lubes | C149: 12,840,700.88 | D149: 0.00 | E149: 0 | F149: 12,050,803.88 | G149: 12,051.00 | H149: 0.00 | I149: 12,051.00 | J149: 12,841.00 | K149: 12.84 | M149: =VLOOKUP(B149,Sheet1!$A$1:$I$178,9,0) -> Freight expense | AB149: TRUE | AC149: 7922100 | AD149: 7922100 Transp Costs - Finished Lubes | AE149: 54,498,880.76 | AF149: 0.00 | AG149: 0.00 | AH149: 54,498,880.76 | AJ149: 42,317,415.17 | AK149: 29 | AQ149: 7922100 | AR149: Transp Costs - Finished Lubes
A150: 8091025 | B150: 8091025 Office & Other Cleaning Expenses (contract labour) | C150: 5,216,726.40 | D150: 0.00 | E150: 0 | F150: 5,396,252.10 | G150: 5,396.00 | H150: 0.00 | I150: 5,396.00 | J150: 5,217.00 | K150: 5.22 | M150: Maintenance | AB150: TRUE | AC150: 8091025 | AD150: 8091025 Office & Other Cleaning Expenses (contract labour) | AE150: 23,445,891.95 | AF150: 0.00 | AG150: 0.00 | AH150: 23,445,891.95 | AJ150: 24,913,166.87 | AK150: (6) | AQ150: 8091025 | AR150: Office & Other Cleaning Expenses (contract labour)
A151: 8201450 | B151: 8201450 Materials & Supplies - Others | C151: 395,325.00 | D151: 0.00 | E151: 0 | F151: 447,195.00 | G151: 447.00 | H151: 0.00 | I151: 447.00 | J151: 395.00 | K151: 0.40 | M151: Office expenses and supplies | AB151: TRUE | AC151: 8201450 | AD151: 8201450 Materials & Supplies - Others | AE151: 10,162,015.00 | AF151: 4,945,070.81 | AG151: 0.00 | AH151: 15,107,085.81 | AJ151: 844,830.00 | AK151: 1688 | AQ151: 8201450 | AR151: Materials & Supplies - Others
A152: 8231100 | B152: 8231100 Fuel Terminal Equipment Repairs | C152: 0.00 | D152: 0.00 | E152: 0 | F152: 0.00 | G152: 0.00 | H152: 0.00 | I152: =ROUND(F152/1000,0) -> 0.00 | J152: 0.00 | K152: 0.00 | M152: =VLOOKUP(B152,Sheet1!$A$1:$I$178,9,0) -> Maintenance | AB152: TRUE | AC152: 8231100 | AD152: 8231100 Fuel Terminal Equipment Repairs | AE152: 2,050,258.75 | AF152: 0.00 | AG152: 0.00 | AH152: 2,050,258.75 | AJ152: (61,822.50) | AK152: (3416) | AQ152: 8231100 | AR152: Fuel Terminal Equipment Repairs
A153: 8231125 | B153: 8231125 Pump Repairs | C153: 18,079,463.18 | D153: 0.00 | E153: 0 | F153: 7,620,102.31 | G153: 7,620.00 | H153: 0.00 | I153: 7,620.00 | J153: 18,079.00 | K153: 18.08 | M153: =VLOOKUP(B153,Sheet1!$A$1:$I$178,9,0) -> Maintenance | AB153: TRUE | AC153: 8231125 | AD153: 8231125 Pump Repairs | AE153: 57,612,984.10 | AF153: 0.00 | AG153: 0.00 | AH153: 57,612,984.10 | AJ153: 40,041,622.86 | AK153: 44 | AQ153: 8231125 | AR153: Pump Repairs
A154: 8231150 | B154: 8231150 Generating Sets Maintenance & Repairs | C154: 730,967.83 | D154: 0.00 | E154: 0 | F154: 2,464,238.08 | G154: 2,464.00 | H154: 0.00 | I154: 2,464.00 | J154: 731.00 | K154: 0.73 | M154: =VLOOKUP(B154,Sheet1!$A$1:$I$178,9,0) -> Maintenance | AB154: TRUE | AC154: 8231150 | AD154: 8231150 Generating Sets Maintenance & Repairs | AE154: 5,162,677.64 | AF154: 158,882.38 | AG154: 0.00 | AH154: 5,321,560.02 | AJ154: 4,720,743.23 | AK154: 13 | AQ154: 8231150 | AR154: Generating Sets Maintenance & Repairs
A155: 8231175 | B155: 8231175 Environmental Remediation | C155: -267,448.13 | D155: 0.00 | E155: 0 | F155: 0.00 | G155: 0.00 | H155: 0.00 | I155: 0.00 | J155: (267.00) | K155: (0.27) | M155: =VLOOKUP(B155,Sheet1!$A$1:$I$178,9,0) -> Other Expenses | AB155: TRUE | AC155: 8231175 | AD155: 8231175 Environmental Remediation | AE155: 40,426.88 | AF155: 176,951.25 | AG155: 0.00 | AH155: 217,378.13 | AJ155: 5,092,069.33 | AK155: (96) | AQ155: 8231175 | AR155: Environmental Remediation
A156: 8231275 | B156: 8231275 Aviation Equipment Repairs | C156: 4,338,993.28 | D156: 0.00 | E156: 0 | F156: 1,597,273.69 | G156: 1,597.00 | H156: 0.00 | I156: 1,597.00 | J156: 4,339.00 | K156: 4.34 | M156: =VLOOKUP(B156,Sheet1!$A$1:$I$178,9,0) -> Maintenance | AB156: =A156=AC156 -> TRUE | AC156: 8231275 | AD156: 8231275 Aviation Equipment Repairs | AE156: 14,062,674.75 | AF156: 0.00 | AG156: 0.00 | AH156: 14,062,674.75 | AJ156: 19,698,987.45 | AK156: (29) | AQ156: 8231275 | AR156: Aviation Equipment Repairs
A157: 8231300 | B157: 8231300 Tank Cleaning & Maintenance Expenses | C157: 4,220,452.20 | D157: 0.00 | E157: 0 | F157: 3,614,355.53 | G157: 3,614.00 | H157: 0.00 | I157: 3,614.00 | J157: 4,220.00 | K157: 4.22 | M157: =VLOOKUP(B157,Sheet1!$A$1:$I$178,9,0) -> Maintenance | AB157: TRUE | AC157: 8231300 | AD157: 8231300 Tank Cleaning & Maintenance Expenses | AE157: 33,533,304.89 | AF157: 4,614,480.44 | AG157: 0.00 | AH157: 38,147,785.33 | AJ157: (3,590,239.04) | AK157: (1163) | AQ157: 8231300 | AR157: Tank Cleaning & Maintenance Expenses
A158: 8231325 | B158: 8231325 Paving Expenses | C158: 47,466,656.16 | D158: 0.00 | E158: (193,477,795.53) | F158: 0.00 | G158: 0.00 | H158: 0.00 | I158: 0.00 | J158: 47,467.00 | K158: 47.47 | M158: =VLOOKUP(B158,Sheet1!$A$1:$I$178,9,0) -> Other Expenses | AB158: TRUE | AC158: 8231325 | AD158: 8231325 Paving Expenses | AE158: 247,250.00 | AF158: 0.00 | AG158: 0.00 | AH158: 247,250.00 | AJ158: 268,275.00 | AK158: (8) | AQ158: 8231325 | AR158: Paving Expenses
A159: 8231350 | B159: 8231350 EDP Equipment Maintenance | C159: 0.00 | D159: 0.00 | E159: 0 | F159: 0.00 | G159: 0.00 | H159: 0.00 | I159: 0.00 | J159: 0.00 | K159: 0.00 | M159: =VLOOKUP(B159,Sheet1!$A$1:$I$178,9,0) -> Maintenance | AB159: TRUE | AC159: 8231350 | AD159: 8231350 EDP Equipment Maintenance | AE159: 506,500.00 | AF159: 0.00 | AG159: 0.00 | AH159: 506,500.00 | AJ159: 329,850.00 | AK159: 54 | AQ159: 8231350 | AR159: EDP Equipment Maintenance
A160: 8231500 | B160: 8231500 Other Equipment Repairs & Maintenance | C160: 27,510.00 | D160: 0.00 | E160: 0 | F160: 89,250.00 | G160: 89.00 | H160: 0.00 | I160: 89.00 | J160: 28.00 | K160: 0.03 | M160: =VLOOKUP(B160,Sheet1!$A$1:$I$178,9,0) -> Maintenance | AB160: TRUE | AC160: 8231500 | AD160: 8231500 Other Equipment Repairs & Maintenance | AE160: (210,385.00) | AF160: 420,565.16 | AG160: 0.00 | AH160: 210,180.16 | AJ160: 5,194,132.16 | AK160: (96) | AQ160: 8231500 | AR160: Other Equipment Repairs & Maintenance
A161: 8231575 | B161: 8231575 Service Station Clean-Up Expenses | C161: 0.00 | D161: 0.00 | E161: 0 | F161: 0.00 | G161: 0.00 | H161: 0.00 | I161: 0.00 | J161: 0.00 | K161: 0.00 | M161: Maintenance | AB161: TRUE | AC161: 8231575 | AD161: 8231575 Service Station Clean-Up Expenses | AE161: 29,610.00 | AF161: 0.00 | AG161: 0.00 | AH161: 29,610.00 | AJ161: 0.00 | AK161: 0 | AQ161: 8231575 | AR161: Service Station Clean-Up Expenses
A162: 8251025 | B162: 8251025 Rentals - Land | C162: 17,169,198.00 | D162: 0.00 | E162: 0 | F162: 17,163,198.50 | G162: 17,163.00 | H162: 0.00 | I162: =ROUNDDOWN(F162/1000,0) -> 17,163.00 | J162: 17,169.00 | K162: 17.17 | M162: Rental of service stations, buildings and equipment | AB162: TRUE | AC162: 8251025 | AD162: 8251025 Rentals - Land | AE162: 18,475,998.00 | AF162: 0.00 | AG162: 0.00 | AH162: 18,475,998.00 | AJ162: 11,921,713.83 | AK162: 55 | AQ162: 8251025 | AR162: Rentals - Land
A163: 8251050 | B163: 8251050 Rentals - Service Stations | C163: 22,131,660.63 | D163: 0.00 | E163: 0 | F163: 30,447,925.88 | G163: 30,448.00 | H163: 0.00 | I163: 30,448.00 | J163: 22,132.00 | K163: 22.13 | M163: Rental of service stations, buildings and equipment | AB163: TRUE | AC163: 8251050 | AD163: 8251050 Rentals - Service Stations | AE163: 101,791,377.63 | AF163: 0.00 | AG163: 0.00 | AH163: 101,791,377.63 | AJ163: 106,315,130.31 | AK163: (4) | AQ163: 8251050 | AR163: Rentals - Service Stations
A164: 8251075 | B164: 8251075 Rentals - Plants & Terminals | C164: 6,502,062.49 | D164: 0.00 | E164: 0 | F164: 0.00 | G164: 0.00 | H164: 0.00 | I164: 0.00 | J164: 6,502.00 | K164: 6.50 | M164: Rental of service stations, buildings and equipment | AB164: TRUE | AC164: 8251075 | AD164: 8251075 Rentals - Plants & Terminals | AE164: 55,000.04 | AF164: 0.00 | AG164: 0.00 | AH164: 55,000.04 | AJ164: 28,936,049.98 | AK164: (100) | AQ164: 8251075 | AR164: Rentals - Plants & Terminals
A165: 8251175 | B165: 8251175 Tools & Equipment Hire / Rental | C165: 0.00 | D165: 0.00 | E165: 0 | F165: 77,000.00 | G165: 77.00 | H165: 0.00 | I165: 77.00 | J165: 0.00 | K165: 0.00 | M165: Rental of service stations, buildings and equipment | AB165: TRUE | AC165: 8251175 | AD165: 8251175 Tools & Equipment Hire / Rental | AE165: 60,000.00 | AF165: 0.00 | AG165: 0.00 | AH165: 60,000.00 | AJ165: 657,000.00 | AK165: (91) | AQ165: 8251175 | AR165: Tools & Equipment Hire / Rental
A166: 8251200 | B166: 8251200 Motor Truck Hire | C166: 156,000.00 | D166: 0.00 | E166: 0 | F166: 92,500.00 | G166: 93.00 | H166: 0.00 | I166: 93.00 | J166: 156.00 | K166: 0.16 | M166: Rental of service stations, buildings and equipment | AB166: TRUE | AC166: 8251200 | AD166: 8251200 Motor Truck Hire | AE166: 1,901,000.00 | AF166: 0.00 | AG166: 0.00 | AH166: 1,901,000.00 | AJ166: (10,698,044.00) | AK166: (118) | AQ166: 8251200 | AR166: Motor Truck Hire
A167: 8431025 | B167: 8431025 Advertising Expenses (Adv & Sales pro) | C167: 6,503,142.00 | D167: 0.00 | E167: 0 | F167: 11,940,297.46 | G167: 11,940.00 | H167: 0.00 | I167: =ROUND(F167/1000,0) -> 11,940.00 | J167: 6,504.00 | K167: 6.50 | M167: Advertising expense | AB167: TRUE | AC167: 8431025 | AD167: 8431025 Advertising Expenses (Adv & Sales pro) | AE167: 13,236,481.07 | AF167: 0.00 | AG167: 0.00 | AH167: 13,236,481.07 | AJ167: 3,139,515.70 | AK167: 322 | AQ167: 8431025 | AR167: Advertising Expenses (Adv & Sales pro)
A168: 8431050 | B168: 8431050 Sales Promotion Expenses (Adv & Sales pro) | C168: 0.00 | D168: 0.00 | E168: 0 | F168: 855,007.50 | G168: 855.00 | H168: 0.00 | I168: 855.00 | J168: 0.00 | K168: 0.00 | M168: Advertising expense | AB168: TRUE | AC168: 8431050 | AD168: 8431050 Sales Promotion Expenses (Adv & Sales pro) | AE168: 4,619,125.00 | AF168: 0.00 | AG168: 0.00 | AH168: 4,619,125.00 | AJ168: 442,000.00 | AK168: 945 | AQ168: 8431050 | AR168: Sales Promotion Expenses (Adv & Sales pro)
A169: 8431075 | B169: 8431075 Trades Fairs and Exhibitions (Adv & Sales pro) | C169: 0.00 | D169: 0.00 | E169: 0 | F169: (1,500,000.00) | G169: (1,500.00) | H169: 0.00 | I169: (1,500.00) | J169: 0.00 | K169: 0.00 | M169: Advertising expense | AB169: TRUE | AC169: 8431075 | AD169: 8431075 Trades Fairs and Exhibitions (Adv & Sales pro) | AE169: 3,900,842.60 | AF169: 0.00 | AG169: 0.00 | AH169: 3,900,842.60 | AJ169: (2,146,184.00) | AK169: (282) | AQ169: 8431075 | AR169: Trades Fairs and Exhibitions (Adv & Sales pro)
A170: 8431100 | B170: 8431100 Sponsorships (Adv & Sales pro) | C170: 1370000.00 | D170: 0.00 | E170: 0 | F170: 0.00 | G170: 0.00 | H170: 0.00 | I170: 0.00 | J170: 1,370.00 | K170: 1.37 | M170: Advertising expense | AB170: TRUE | AC170: 8431100 | AD170: 8431100 Sponsorships (Adv & Sales pro) | AE170: 1,870,000.00 | AF170: 0.00 | AG170: 0.00 | AH170: 1,870,000.00 | AJ170: 0.00 | AK170: 0 | AQ170: 8431100 | AR170: Sponsorships (Adv & Sales pro)
A171: 8431125 | B171: 8431125 Donations (Adv & Sales pro) | C171: 93,536.12 | D171: 0.00 | E171: 0 | F171: 20,535.55 | G171: 21.00 | H171: 0.00 | I171: 21.00 | J171: 94.00 | K171: 0.09 | M171: Advertising expense | AB171: TRUE | AC171: 8431125 | AD171: 8431125 Donations (Adv & Sales pro) | AE171: 256,707.36 | AF171: 0.00 | AG171: 0.00 | AH171: 256,707.36 | AJ171: 396,827.07 | AK171: (35) | AQ171: 8431125 | AR171: Donations (Adv & Sales pro)
A172: 8431130 | B172: 8431130 Gifts (Adv & Sales pro) | C172: 187,500.00 | D172: 0.00 | E172: 0 | F172: 8,614,480.00 | G172: 8,614.00 | H172: 0.00 | I172: 8,614.00 | J172: 188.00 | K172: 0.19 | M172: Advertising expense | AB172: TRUE | AC172: 8431130 | AD172: 8431130 Gifts (Adv & Sales pro) | AE172: 3,811,604.00 | AF172: 0.00 | AG172: 0.00 | AH172: 3,811,604.00 | AJ172: 4,722,064.21 | AK172: (19) | AQ172: 8431130 | AR172: Gifts (Adv & Sales pro)
A173: 8431150 | B173: 8431150 Public Relations Projects (Adv & Sales pro) | C173: 5,788,184.00 | D173: 0.00 | E173: 0 | F173: 1,863,409.09 | G173: 1,863.00 | H173: 0.00 | I173: 1,863.00 | J173: 5,788.00 | K173: 5.79 | M173: Advertising expense | AB173: TRUE | AC173: 8431150 | AD173: 8431150 Public Relations Projects (Adv & Sales pro) | AE173: 37,572,485.00 | AF173: 0.00 | AG173: 0.00 | AH173: 37,572,485.00 | AJ173: 24,409,936.00 | AK173: 54 | AQ173: 8431150 | AR173: Public Relations Projects (Adv & Sales pro)
A174: 8431175 | B174: 8431175 Branding Costs (Adv & Sales pro) | C174: 0.00 | D174: 0.00 | E174: 0 | F174: 247,250.00 | G174: 247.00 | H174: 0.00 | I174: 247.00 | J174: 0.00 | K174: 0.00 | M174: Advertising expense | AB174: TRUE | AC174: 8431175 | AD174: 8431175 Branding Costs (Adv & Sales pro) | AE174: 5,409,500.00 | AF174: 110,250.00 | AG174: 0.00 | AH174: 5,519,750.00 | AJ174: 802,500.00 | AK174: 588 | AQ174: 8431175 | AR174: Branding Costs (Adv & Sales pro)
A175: 2.0011. | B175: 2.0011.000 Selling & Distribution | C175: 217,108,170.93 | D175: =SUM(D46:D174) -> -146,353,580.00 | E175: =SUM(E46:E174) -> (193,477,795.53) | F175: 207,894,578.90 | G175: =SUM(G146:G174) -> 207,893.00 | H175: 0.00 | I175: =SUM(I146:I174) -> 207,893.00 | J175: 224,550.00 | K175: 224.55 | AB175: TRUE | AC175: 2.0011. | AD175: 2.0011.000 Selling & Distribution | AE175: 997,605,258.63 | AF175: 153,139,130.51 | AG175: 0.00 | AH175: 1,150,744,389.14 | AJ175: 709,602,772.94 | AK175: 62 | AQ175: 2.0011. | AR175: 000 Selling & Distribution
G176: 0.00 | H176: 0.00 | K176: 0.00 | AB176: TRUE
A177: 8011050 | B177: 8011050 Basic Salaries - Regular Employees (MAEX) | C177: 37,844,746.38 | D177: 0.00 | E177: 193,477,795.53 | F177: 42,135,545.80 | G177: 42,136.00 | H177: 0.00 | I177: =ROUND(F177/1000,0) -> 42,136.00 | J177: 37,845.00 | K177: 37.85 | L177: Salaries and wages | M177: Employee benefits | AB177: TRUE | AC177: 8011050 | AD177: 8011050 Basic Salaries - Regular Employees (MAEX) | AE177: 151,141,734.17 | AF177: 0.00 | AG177: 0.00 | AH177: 151,141,734.17 | AJ177: 317,982,804.73 | AK177: (52) | AQ177: 8011050 | AR177: Basic Salaries - Regular Employees (MAEX)
A178: 8011100 | B178: 8011100 Housing Allowances (MAEX) | C178: 45,366,359.65 | D178: 0.00 | E178: 0 | F178: 40,390,334.92 | G178: 40,390.00 | H178: 0.00 | I178: 40,390.00 | J178: 45,366.00 | K178: 45.37 | L178: Salaries and wages | M178: =VLOOKUP(B178,Sheet1!$A$1:$I$178,9,0) -> Employee benefits | AB178: TRUE | AC178: 8011100 | AD178: 8011100 Housing Allowances (MAEX) | AE178: 165,361,567.05 | AF178: 0.00 | AG178: 0.00 | AH178: 165,361,567.05 | AJ178: 189,977,707.65 | AK178: (13) | AQ178: 8011100 | AR178: Housing Allowances (MAEX)
A179: 8011150 | B179: 8011150 Transport Allowances (MAEX) | C179: -253,994.16 | D179: 0.00 | E179: 0 | F179: 0.00 | G179: 0.00 | H179: 0.00 | I179: 0.00 | J179: (254.00) | K179: (0.25) | L179: Salaries and wages | M179: =VLOOKUP(B179,Sheet1!$A$1:$I$178,9,0) -> Employee benefits | AB179: TRUE | AC179: 8011150 | AD179: 8011150 Transport Allowances (MAEX) | AE179: 0.00 | AF179: 0.00 | AG179: 0.00 | AH179: 0.00 | AJ179: 2,854,651.17 | AK179: (100) | AQ179: 8011150 | AR179: Transport Allowances (MAEX)
A180: 8011200 | B180: 8011200 Leave Allowance - Local Staff (MAEX) | C180: 6,546,952.55 | D180: 0.00 | E180: 0 | F180: 5,069,363.47 | G180: 5,069.00 | H180: 0.00 | I180: 5,069.00 | J180: 6,547.00 | K180: 6.55 | L180: Salaries and wages | M180: =VLOOKUP(B180,Sheet1!$A$1:$I$178,9,0) -> Employee benefits | AB180: TRUE | AC180: 8011200 | AD180: 8011200 Leave Allowance - Local Staff (MAEX) | AE180: 11,217,475.09 | AF180: 0.00 | AG180: 0.00 | AH180: 11,217,475.09 | AJ180: 16,723,156.41 | AK180: (33) | AQ180: 8011200 | AR180: Leave Allowance - Local Staff (MAEX)
A181: 8011340 | B181: 8011340 Driver Allowance (MAEX) | C181: 3,092,000.00 | D181: 0.00 | E181: 0 | F181: 2,085,400.00 | G181: 2,085.00 | H181: 0.00 | I181: 2,085.00 | J181: 3,092.00 | K181: 3.09 | L181: Salaries and wages | M181: =VLOOKUP(B181,Sheet1!$A$1:$I$178,9,0) -> Employee benefits | AB181: TRUE | AC181: 8011340 | AD181: 8011340 Driver Allowance (MAEX) | AE181: 8,421,367.74 | AF181: 0.00 | AG181: 0.00 | AH181: 8,421,367.74 | AJ181: 11,494,777.79 | AK181: (27) | AQ181: 8011340 | AR181: Driver Allowance (MAEX)
A182: 8011350 | B182: 8011350 Other Allowances (MAEX) | C182: 4,136,264.59 | D182: 0.00 | E182: 0 | F182: 3,675,115.91 | G182: 3,675.00 | H182: 0.00 | I182: 3,675.00 | J182: 4,136.00 | K182: 4.14 | L182: Salaries and wages | M182: =VLOOKUP(B182,Sheet1!$A$1:$I$178,9,0) -> Employee benefits | AB182: TRUE | AC182: 8011350 | AD182: 8011350 Other Allowances (MAEX) | AE182: 17,910,257.24 | AF182: 0.00 | AG182: 0.00 | AH182: 17,910,257.24 | AJ182: 19,111,742.66 | AK182: (6) | AQ182: 8011350 | AR182: Other Allowances (MAEX)
A183: 8011370 | B183: 8011370 Bonus - All Other (MAEX) | C183: 0.00 | D183: 0.00 | E183: 0 | F183: 0.00 | G183: 0.00 | H183: 0.00 | I183: 0.00 | J183: 0.00 | K183: 0.00 | L183: Salaries and wages | M183: =VLOOKUP(B183,Sheet1!$A$1:$I$178,9,0) -> Employee benefits | AB183: TRUE | AC183: 8011370 | AD183: 8011370 Bonus - All Other (MAEX) | AE183: 13,044,282.25 | AF183: 0.00 | AG183: 0.00 | AH183: 13,044,282.25 | AJ183: 62,957,594.13 | AK183: (79) | AQ183: 8011370 | AR183: Bonus - All Other (MAEX)
A184: 8011375 | B184: 8011375 Notice Period (MAEX) | C184: 5,434,427.14 | D184: 0.00 | E184: 0 | F184: 0.00 | G184: 0.00 | H184: 0.00 | I184: 0.00 | J184: 5,434.00 | K184: 5.43 | L184: Salaries and wages | M184: Employee benefits | AB184: TRUE | AC184: 8011375 | AD184: 8011375 Notice Period (MAEX) | AE184: 4,513,389.82 | AF184: 0.00 | AG184: 0.00 | AH184: 4,513,389.82 | AJ184: (2,151,326.61) | AK184: (310) | AQ184: 8011375 | AR184: Notice Period (MAEX)
A185: 8011650 | B185: 8011650 Short term contract employees - external (MAEX) | C185: 20,000.00 | D185: 0.00 | E185: 0 | F185: 125,000.00 | G185: 125.00 | H185: 0.00 | I185: 125.00 | J185: 20.00 | K185: 0.02 | L185: Other employee benefits | M185: Employee benefits | AB185: TRUE | AC185: 8011650 | AD185: 8011650 Short term contract employees - external (MAEX) | AE185: 315,000.00 | AF185: 0.00 | AG185: 0.00 | AH185: 315,000.00 | AJ185: 216,550.38 | AK185: 45 | AQ185: 8011650 | AR185: Short term contract employees - external (MAEX)
A186: 8031025 | B186: 8031025 Pension Fund Expenses | C186: 11,378,201.24 | D186: 0.00 | E186: 0 | F186: 10,510,603.12 | G186: 10,511.00 | H186: 0.00 | I186: 10,511.00 | J186: 11,378.00 | K186: 11.38 | L186: Employer's pension contribution | M186: =VLOOKUP(B186,Sheet1!$A$1:$I$178,9,0) -> Employee benefits | AB186: TRUE | AC186: 8031025 | AD186: 8031025 Pension Fund Expenses | AE186: 43,449,318.59 | AF186: 0.00 | AG186: 0.00 | AH186: 43,449,318.59 | AJ186: 52,052,201.45 | AK186: (17) | AQ186: 8031025 | AR186: Pension Fund Expenses
A187: 8031050 | B187: 8031050 Vacation Expense - Local staff | C187: 0.00 | D187: 0.00 | E187: 0 | F187: 0.00 | G187: 0.00 | H187: 0.00 | I187: 0.00 | J187: 0.00 | K187: 0.00 | L187: Other employee benefits | M187: =VLOOKUP(B187,Sheet1!$A$1:$I$178,9,0) -> Employee benefits | AB187: TRUE | AC187: 8031050 | AD187: 8031050 Vacation Expense - Local staff | AE187: 0.00 | AF187: 0.00 | AG187: 0.00 | AH187: 0.00 | AJ187: 30,000.00 | AK187: (100) | AQ187: 8031050 | AR187: Vacation Expense - Local staff
A188: 8031100 | B188: 8031100 Social security benefits/charges - Local staff | C188: 957,364.85 | D188: 0.00 | E188: 0 | F188: 973,234.11 | G188: 973.00 | H188: 0.00 | I188: =ROUND(F188/1000,0) -> 973.00 | J188: 957.00 | K188: 0.96 | L188: Other employee benefits | M188: Employee benefits | AB188: =A188=AC188 -> TRUE | AC188: 8031100 | AD188: 8031100 Social security benefits/charges - Local staff | AE188: 3,940,397.37 | AF188: 0.00 | AG188: 0.00 | AH188: 3,940,397.37 | AJ188: 5,073,564.08 | AK188: (22) | AQ188: 8031100 | AR188: Social security benefits/charges - Local staff
A189: 8031450 | B189: 8031450 Education Grant | C189: 2,673,639.04 | D189: 0.00 | E189: 0 | F189: 2,309,120.90 | G189: 2,309.00 | H189: 0.00 | I189: 2,309.00 | J189: 2,674.00 | K189: 2.67 | L189: Other employee benefits | M189: Employee benefits | AB189: TRUE | AC189: 8031450 | AD189: 8031450 Education Grant | AE189: 8,681,512.34 | AF189: 0.00 | AG189: 0.00 | AH189: 8,681,512.34 | AJ189: 10,436,869.02 | AK189: (17) | AQ189: 8031450 | AR189: Education Grant
A190: 8031475 | B190: 8031475 Tuition Aid Plan | C190: 0.00 | D190: 0.00 | E190: 0 | F190: 0.00 | G190: 0.00 | H190: 0.00 | I190: 0.00 | J190: 0.00 | K190: 0.00 | L190: Other employee benefits | M190: =VLOOKUP(B190,Sheet1!$A$1:$I$178,9,0) -> Employee benefits | AB190: TRUE | AC190: 8031475 | AD190: 8031475 Tuition Aid Plan | AE190: 0.00 | AF190: 0.00 | AG190: 0.00 | AH190: 0.00 | AJ190: 939,725.00 | AK190: (100) | AQ190: 8031475 | AR190: Tuition Aid Plan
A191: 8031500 | B191: 8031500 Employee Car Cash Out Amortisation | C191: 2,752,424.72 | D191: 0.00 | E191: 0 | F191: 1,988,336.10 | G191: 1,988.00 | H191: 0.00 | I191: 1,988.00 | J191: 2,752.00 | K191: 2.75 | L191: Other employee benefits | M191: =VLOOKUP(B191,Sheet1!$A$1:$I$178,9,0) -> Employee benefits | AB191: TRUE | AC191: 8031500 | AD191: 8031500 Employee Car Cash Out Amortisation | AE191: 7,996,511.03 | AF191: 0.00 | AG191: 0.00 | AH191: 7,996,511.03 | AJ191: 7,596,022.82 | AK191: 5 | AQ191: 8031500 | AR191: Employee Car Cash Out Amortisation
A192: 8031510 | B192: 8031510 Employee Car Grant Amortisation | C192: 1,430,000.00 | D192: 0.00 | E192: 0 | F192: 1,756,666.60 | G192: 1,757.00 | H192: 0.00 | I192: =ROUNDUP(F192/1000,0) -> 1,757.00 | J192: 1,430.00 | K192: 1.43 | L192: Other employee benefits | M192: =VLOOKUP(B192,Sheet1!$A$1:$I$178,9,0) -> Employee benefits | AB192: TRUE | AC192: 8031510 | AD192: 8031510 Employee Car Grant Amortisation | AE192: 5,602,499.96 | AF192: 0.00 | AG192: 0.00 | AH192: 5,602,499.96 | AJ192: 6,240,000.00 | AK192: (10) | AQ192: 8031510 | AR192: Employee Car Grant Amortisation
A193: 8031590 | B193: Employee Home Loan Amortization | F193: 1,210,996.60 | G193: =ROUND(F193/1000,0) -> 1,211.00 | H193: =G193-I193 -> 0.00 | I193: =ROUNDUP(F193/1000,0) -> 1,211.00 | J193: 0.00
A194: 8031550 | B194: 8031550 Other Employee Benefits | C194: 5,878,075.49 | D194: (5,733,319.00) | E194: 0 | F194: 1,540,215.00 | G194: 1,540.00 | H194: 0.00 | I194: 1,540.00 | J194: 5,878.00 | K194: 5.88 | L194: Other employee benefits | M194: =VLOOKUP(B194,Sheet1!$A$1:$I$178,9,0) -> Employee benefits | AB194: =A194=AC194 -> TRUE | AC194: 8031550 | AD194: 8031550 Other Employee Benefits | AE194: 3,983,754.21 | AF194: 0.00 | AG194: 0.00 | AH194: 3,983,754.21 | AJ194: 34,093,107.78 | AK194: (88) | AQ194: 8031550 | AR194: Other Employee Benefits
A195: 8031800 | B195: 8031800 Personal Income Tax (PAYE), Co. Expense Portion | C195: -411704.92 | D195: 26,659,575.62 | E195: 0 | F195: (1,505,044.72) | G195: (1,505.00) | H195: 0.00 | I195: (1,505.00) | J195: (412.00) | K195: (0.41) | L195: Other employee benefits | M195: Employee benefits | AB195: TRUE | AC195: 8031800 | AD195: 8031800 Personal Income Tax (PAYE), Co. Expense Portion | AE195: (925,584.42) | AF195: 0.00 | AG195: 0.00 | AH195: (925,584.42) | AJ195: 26,659,575.62 | AK195: (103) | AQ195: 8031800 | AR195: Personal Income Tax (PAYE), Co. Expense Portion
A196: 8051050 | B196: 8051050 Training Expenses- Ovearseas | C196: 3,411,786.49 | D196: 0.00 | E196: 0 | F196: 78,190.75 | G196: 78.00 | H196: (1.00) | I196: =ROUNDUP(F196/1000,0) -> 79.00 | J196: 3,412.00 | K196: 3.41 | L196: Other employee benefits | M196: Employee benefits | AB196: TRUE | AC196: 8051050 | AD196: 8051050 Training Expenses- Ovearseas | AE196: 4,584,403.64 | AF196: 0.00 | AG196: 0.00 | AH196: 4,584,403.64 | AJ196: 17,968,163.67 | AK196: (74) | AQ196: 8051050 | AR196: Training Expenses- Ovearseas
A197: 8051075 | B197: 8051075 Training Expenses - Retailers | C197: 182,660.00 | D197: 0.00 | E197: 0 | F197: 0.00 | G197: 0.00 | H197: 0.00 | I197: =ROUND(F197/1000,0) -> 0.00 | J197: 183.00 | K197: 0.18 | L197: Other employee benefits | M197: =VLOOKUP(B197,Sheet1!$A$1:$I$178,9,0) -> Employee benefits | AB197: TRUE | AC197: 8051075 | AD197: 8051075 Training Expenses - Retailers | AE197: 355,940.00 | AF197: 0.00 | AG197: 0.00 | AH197: 355,940.00 | AJ197: 403,890.00 | AK197: (12) | AQ197: 8051075 | AR197: Training Expenses - Retailers
A198: 8331175 | B198: 8331175 Industrial Training Fund / Professionnal training | C198: 1,449,731.30 | D198: 0.00 | E198: 0 | F198: 1,014,299.94 | G198: 1,014.00 | H198: 0.00 | I198: =ROUND(F198/1000,0) -> 1,014.00 | J198: 1,450.00 | K198: 1.45 | L198: Other employee benefits | M198: Employee benefits | AB198: TRUE | AC198: 8331175 | AD198: 8331175 Industrial Training Fund / Professionnal training | AE198: (580,054.91) | AF198: 0.00 | AG198: 0.00 | AH198: (580,054.91) | AJ198: 4,418,420.11 | AK198: (113) | AQ198: 8331175 | AR198: Industrial Training Fund / Professionnal training
A199: 2.1200. | B199: 2.1200.000 Payroll Expenses | C199: 130,439,203.06 | D199: =SUM(D177:D198) -> 20,926,256.62 | E199: =SUM(E177:E198) -> 193,477,795.53 | F199: 113,357,378.50 | G199: =SUM(G177:G198) -> 113,356.00 | H199: -1.00 | I199: =SUM(I177:I198) -> 113,357.00 | J199: 131,888.00 | K199: 131.89 | AB199: TRUE | AC199: 2.1200. | AD199: 2.1200.000 Payroll Expenses | AE199: 449,013,771.17 | AF199: 0.00 | AG199: 0.00 | AH199: 449,013,771.17 | AJ199: 785,079,197.86 | AK199: (43) | AQ199: 2.1200. | AR199: 000 Payroll Expenses
G200: 0.00 | H200: 0.00 | K200: 0.00 | AB200: TRUE
A201: 7879000 | B201: 7879000 MM Small Differences | C201: -3.74 | D201: 0.00 | E201: 0 | F201: (0.08) | G201: 0.00 | H201: 0.00 | I201: =ROUND(F201/1000,0) -> 0.00 | J201: 0.00 | K201: 0.00 | M201: Other Expenses | AB201: TRUE | AC201: 7879000 | AD201: 7879000 MM Small Differences | AE201: 1.33 | AF201: 0.00 | AG201: 0.00 | AH201: 1.33 | AJ201: 1.56 | AK201: (15) | AQ201: 7879000 | AR201: MM Small Differences
A202: 8011750 | B202: 8011750 Entertainment Allowances - All Others | F202: 326,521.81 | G202: 327.00 | H202: 0.00 | I202: =ROUND(F202/1000,0) -> 327.00 | J202: 0.00 | K202: 0.00 | L202: Other employee benefits | AB202: TRUE | AC202: 8011750 | AD202: 8011750 Entertainment Allowances - All Others | AE202: 2,612,174.48 | AF202: 0.00 | AG202: 0.00 | AH202: 2,612,174.48 | AJ202: 0.00 | AK202: 0 | AQ202: 8011750 | AR202: Entertainment Allowances - All Others
A203: 8031150 | B203: 8031150 Medical Expenses / Hospital Bills | C203: 7,797,714.01 | D203: 0.00 | E203: 0 | F203: 13,271,401.87 | G203: 13,271.00 | H203: 0.00 | I203: =ROUND(F203/1000,0) -> 13,271.00 | J203: 7,798.00 | K203: 7.80 | AB203: TRUE | AC203: 8031150 | AD203: 8031150 Medical Expenses / Hospital Bills | AE203: 33,428,958.34 | AF203: 0.00 | AG203: 0.00 | AH203: 33,428,958.34 | AJ203: 33,904,380.18 | AK203: (1) | AQ203: 8031150 | AR203: Medical Expenses / Hospital Bills
A204: 8031325 | B204: 8031325 Canteen Expenses / Staff Meals | C204: 8,929,531.12 | D204: 0.00 | E204: 0 | F204: 8,033,618.76 | G204: 8,034.00 | H204: 0.00 | I204: 8,034.00 | J204: 8,930.00 | K204: 8.93 | M204: Office expenses and supplies | AB204: TRUE | AC204: 8031325 | AD204: 8031325 Canteen Expenses / Staff Meals | AE204: 31,474,627.68 | AF204: 0.00 | AG204: 0.00 | AH204: 31,474,627.68 | AJ204: 36,804,725.91 | AK204: (14) | AQ204: 8031325 | AR204: Canteen Expenses / Staff Meals
... 513 more rows

Sheet Sheet5 (hidden)
C1: MRS Oil Nigeria Plc
C2: Year End: December 31, 2013
C3: Trial balance - by mapping number
C8: Account
B9: 1 | C9: 2.00
A10: 10.00 | B10: 7001050 | C10: 7001050 Sales Revenue - International Aviation Fuels | D10: (2,528,569.00)
A11: 11.00 | B11: 7001300 | C11: 7001300 Sales Revenue - Premium Motor Spirit | D11: (17,030,924.00)
A12: 12.00 | B12: 7001400 | C12: 7001400 Sales Revenue - Dual Purpose Kerosene | D12: (451,703.00)
A13: 13.00 | B13: 7001500 | C13: 7001500 Sales Revenue - Auto Gas Oil | D13: (1,096,346.00)
A14: 14.00 | B14: 7001900 | C14: Sales Revenue - Liquidified Petroleum Gas | D14: (1,637.00)
A15: 15.00 | B15: 7001950 | C15: Sales Revenue - LPG Cylinder | D15: (11,336.00)
A16: 16.00 | B16: 7002000 | C16: 7002000 Sales Revenue - Base Oils | D16: 0
A17: 17.00 | B17: 7002100 | C17: 7002100 Sales Revenue - Finished Lubes | D17: (337,140.00)
A18: 18.00 | B18: 7002200 | C18: 7002200 Sales Revenue - Additives | D18: 0
A19: 19.00 | B19: 7002300 | C19: 7002300 Sales Revenue - Greases | D19: (66,791.00)
A20: 20.00 | B20: 7002400 | C20: 7002400 Sales Revenue - Specialties | D20: 0
A21: 21.00 | B21: 7002700 | C21: 7002700 Sales Revenue - Trading Lubes | D21: (134,488.00)
A22: 22.00 | B22: 7002800 | C22: 7002800 Sales Revenue - Trading Grease (Texaco) | D22: (7,694.00)
A23: 23.00 | B23: 7032100 | C23: 7032100 Volume Related Discounts - Finished Lubes | D23: 16,892.00
A24: 24.00 | B24: 7032300 | C24: 7032300 Volume Related Discounts - Greases | D24: 3,844.00
A25: 25.00 | B25: 7032700 | C25: 7032700 Volume Related Discounts - Trading Lubes | D25: 871.00
A26: 26.00 | B26: 7032800 | C26: 7032800 Volume Related Dis - Trading Grease (Texaco) | D26: 77.00
A27: 27.00 | B27: 7042100 | C27: 7042100 Non-Volume Related Discounts - Finished Lubes | D27: 151.00
A28: 28.00 | B28: 7042300 | C28: 7042300 Non-Volume Related Discounts - Greases | D28: 2.00
A29: 29.00 | B29: 7042700 | C29: 7042700 Non-Volume Related Discounts - Trading Lubes | D29: 13.00
A30: 30.00 | B30: 7042800 | C30: 7042800 Non-Volume Related Dis - Trading Grease (Texaco) | D30: 0
A31: 31.00 | B31: 7921300 | C31: 7921300 Transp Costs - Road/Rail - Premium Motor Spirit | D31: 304,986.00
A32: 32.00 | B32: 7921400 | C32: 7921400 Transp Costs - Road/Rail - Dual Purpose Kerosene | D32: 723.00
A33: 33.00 | B33: 1.0001. | C33: 1.0001.000 Revenue | D33: (21,339,069.00)
A34: 34.00
A35: 35.00 | B35: 8631000 | C35: 8631000 Interest Income - External Loans | D35: 0
A36: 36.00 | B36: 8631050 | C36: 8631050 Interest on short term deposits | D36: (31,081.00)
A37: 37.00 | B37: 8631105 | C37: 8631105 Interest Income - Employee Land Loans | D37: 0
A38: 38.00 | B38: 8631110 | C38: 8631110 Interest Income - Employee Home Loans | D38: 0
A39: 39.00 | B39: 8631150 | C39: 8631150 Interest Income on long term investments | D39: (30,552.00)
A40: 40.00 | B40: 8631200 | C40: 8631200 Interest income on customers payments | D40: (107.00)
A41: 41.00 | B41: 1.0002. | C41: 1.0002.000 Interest Income | D41: (61,740.00)
A42: 42.00
A43: 43.00 | B43: 7151050 | C43: 7151050 Gain on Sale of Fixed Assets | D43: 0
A44: 44.00 | B44: 7151200 | C44: 7151200 Sale of Fixed Assets | D44: (2,000.00)
A45: 45.00 | B45: 7251200 | C45: 7251200 Service Station Rental Income - Fixed | D45: (3,761.00)
A46: 46.00 | B46: 7351300 | C46: 7351300 Other Inc-Write On to P & L for Unclaimed Cheques | D46: 0
A47: 47.00 | B47: 7351410 | C47: 7351410 Other Income- card selling revenue | D47: 0
A48: 48.00 | B48: 7351450 | C48: 7351450 Other Income-Misc Other Op Earnings - NNPC | D48: (92,736.00)
A49: 49.00 | B49: 7351500 | C49: 7351500 Other Income-Junk Sales | D49: (4,579.00)
A50: 50.00 | B50: 7351510 | C50: 7351510 Insurance Premium Recoveries | D50: (2,899.00)
A51: 51.00 | B51: 7351550 | C51: 7351550 Other Income-Service Charge - Fixed | D51: (209,148.00)
A52: 52.00 | B52: 7351555 | C52: 7351555 Other Misc Operating Revenue - Service Stations | D52: (19,625.00)
A53: 53.00 | B53: 7351560 | C53: 7351560 Other Misc Operating Earnings | D53: (4,740.00)
A54: 54.00 | B54: 7401050 | C54: 7401050 Income from C - Store Royalties | D54: 457.00
A55: 55.00 | B55: 7401150 | C55: 7401150 Income from Franchises | D55: (1,200.00)
A56: 56.00 | B56: 1.0003. | C56: 1.0003.000 Other Income | D56: (340,231.00)
A57: 57.00
A58: 58.00 | B58: 7631050 | C58: 7631050 Purchases - Aviation - Intl | D58: 2,064,435.00
A59: 59.00 | B59: 7631300 | C59: 7631300 Purchases - Prem Motor Spirit | D59: 15,933,165.00
A60: 60.00 | B60: 7631400 | C60: 7631400 Purchases - Dual Purpose Kerosene | D60: 370,175.00
A61: 61.00 | B61: 7631500 | C61: 7631500 Purchases - Auto Gas Oil | D61: 1,012,151.00
A62: 62.00 | B62: 7632000 | C62: 7632000 Purchases - Base Oils | D62: 90,204.00
A63: 63.00 | B63: 7631900 | C63: Purchases - LPG | D63: 1,792.00
A64: 64.00 | B64: 7631950 | C64: Purchases - LPG Cylinder | D64: 10,848.00
A65: 65.00 | B65: 7632100 | C65: 7632100 Purchases - Finished Lubes | D65: 0
A66: 66.00 | B66: 7632200 | C66: 7632200 Purchases - Additives | D66: 8,400.00
A67: 67.00 | B67: 7632400 | C67: 7632400 Purchases - Specialities | D67: 0
A68: 68.00 | B68: 7632600 | C68: 7632600 Purchases - Packaging Materials | D68: 28,892.00
A69: 69.00 | B69: 7632850 | C69: 7632850 Purchases - Trading Lubes | D69: 24,404.00
A70: 70.00 | B70: 7632900 | C70: 7632900 Purchases - Trading Grease (Texaco) | D70: 3,984.00
A71: 71.00 | B71: 7639999 | C71: 7639999 Purchase Offset Account | D71: (19,548,450.00)
A72: 72.00 | B72: 7641050 | C72: 7641050 Purchases - Spare Parts | D72: 0
A73: 73.00 | B73: 7641100 | C73: 7641100 Purchases - Consumables | D73: 3,438.00
A74: 74.00 | B74: 7641199 | C74: 7641199 Purchase Offset Account - Spares & Consumables | D74: (3,437.00)
A75: 75.00 | B75: 2.0020. | C75: 2.0020.000 Purchases - COGS | D75: 1.00
A76: 76.00
A77: 77.00 | B77: 7081050 | C77: 7081050 Throughput Fees - Local Aviation Fuels | D77: 0
A78: 78.00 | B78: 7081150 | C78: 7081150 Throughput Fees - Premium Motor Spirit | D78: 0
A79: 79.00 | B79: 7701050 | C79: 7701050 Cost of Sales - International Aviation Fuels | D79: 2,444,611.00
A80: 80.00 | B80: 7701300 | C80: 7701300 Cost of Sales - Premium Motor Spirit | D80: 15,664,568.00
A81: 81.00 | B81: 7701400 | C81: 7701400 Cost of Sales - Dual Purpose Kerosene | D81: 370,175.00
A82: 82.00 | B82: 7701500 | C82: 7701500 Cost of Sales - Auto Gas Oil | D82: 978,861.00
A83: 83.00 | B83: 7701900 | C83: Cost of Sales - Liquidified Petroleum Gas | D83: 1,583.00
A84: 84.00 | B84: 7701950 | C84: Cost of Sales - LPG Cylinder | D84: 9,617.00
A85: 85.00 | B85: 7702000 | C85: 7702000 Cost of Sales - Base Oils | D85: 0
A86: 86.00 | B86: 7702100 | C86: 7702100 Cost of Sales - Finished Lubes | D86: 263,151.00
A87: 87.00 | B87: 7702200 | C87: 7702200 Cost of Sales - Additives | D87: 0
A88: 88.00 | B88: 7702300 | C88: 7702300 Cost of Sales - Greases | D88: 48,425.00
A89: 89.00 | B89: 7702650 | C89: 7702650 Cost of Sales - Trading Lubes | D89: 94,211.00
A90: 90.00 | B90: 7702700 | C90: Cost of Sales - Trading Grease (Texaco) | D90: 4,564.00
A91: 91.00 | B91: 7751615 | C91: 7751615 Into Plane Fees-Oth Dir Pro-cost ( unallo) | D91: 0
A92: 92.00 | B92: 7801050 | C92: 7801050 Inventory Diff -International Aviation Fuels | D92: (335.00)
A93: 93.00 | B93: 7801100 | C93: 7801100 Inventory Diff -Local Aviation Fuels | D93: 0
A94: 94.00 | B94: 7801300 | C94: 7801300 Inventory Diff -Premium Motor Spirit | D94: (7,356.00)
A95: 95.00 | B95: 7801400 | C95: 7801400 Inventory Diff -Dual Purpose Kerosene | D95: 20.00
A96: 96.00 | B96: 7801500 | C96: 7801500 Inventory Diff -Auto Gas Oil | D96: (1,515.00)
A97: 97.00 | B97: 7801800 | C97: 7801800 Inventory Diff -Low Power Fuel Oil | D97: 0
A98: 98.00 | B98: 7802000 | C98: 7802000 Inventory Diff -Base Oils | D98: (19,372.00)
A99: 99.00 | B99: 7802100 | C99: 7802100 Inventory Diff -Finished Lubes | D99: (7,676.00)
A100: 100.00 | B100: 7802200 | C100: 7802200 Inventory Diff -Additives | D100: (3,720.00)
A101: 101.00 | B101: 7802300 | C101: 7802300 Inventory Diff -Greases | D101: (19.00)
A102: 102.00 | B102: 7802400 | C102: 7802400 Inventory Diff -Specialties | D102: 0
A103: 103.00 | B103: 7802600 | C103: 7802600 Inventory Diff -Packaging Materials | D103: 0
A104: 104.00 | B104: 7802700 | C104: 7802700 Inventory Diff - WIP Lubricating Oil | D104: (29.00)
A105: 105.00 | B105: 7802850 | C105: 7802850 Inventory Diff -Lubes By-Products | D105: 0
A106: 106.00 | B106: 7802900 | C106: 7802900 Inventory Diff -Trading Lubes | D106: (3,596.00)
A107: 107.00 | B107: 7802950 | C107: 7802950 Inventory Diff -Trading Grease (Texaco) | D107: 0
A108: 108.00 | B108: 7806001 | C108: 7806001 Inventory Diff -Other Spare Parts | D108: (3,286.00)
A109: 109.00 | B109: 7808000 | C109: 7808000 Inventory Diff -Misc Resale Items | D109: (2.00)
A110: 110.00 | B110: 7808001 | C110: 7808001 Inventory Diff -Printing & Stationery | D110: 0
A111: 111.00 | B111: 7808002 | C111: 7808002 Inventory Diff -Computer Consumables | D111: 0
A112: 112.00 | B112: 7808004 | C112: 7808004 Inventory Diff -Provisions / Office Entertainment | D112: 0
A113: 113.00 | B113: 7808006 | C113: 7808006 Inventory Diff -Safety Items, boots, fire ext etc | D113: (113.00)
A114: 114.00 | B114: 7808009 | C114: 7808009 Inventory Diff -Storehouse Materials, Other | D114: 0
A115: 115.00 | B115: 7871050 | C115: 7871050 Int Aviation Fuels (price diff - Material Acc) | D115: 0
A116: 116.00 | B116: 7871150 | C116: 7871150 Price Difference - Lubrication oil | D116: 95.00
A117: 117.00 | B117: 7871300 | C117: 7871300 Premium Motor Spirit (price diff - Material Acc) | D117: 466,784.00
A118: 118.00 | B118: 7871400 | C118: 7871400 Dual Purpose Kerosene (price diff - Material Acc) | D118: 8,311.00
A119: 119.00 | B119: 7871500 | C119: 7871500 Auto Gas Oil (price diff - Material Acc) | D119: 0
A120: 120.00 | B120: 7872100 | C120: 7872100 Finished Lubes (price diff - Material Acc) | D120: (5,032.00)
A121: 121.00 | B121: 7872200 | C121: 7872200 Additives (price diff - Material Acc) | D121: 0
A122: 122.00 | B122: 7872300 | C122: 7872300 Greases (price diff - Material Acc) | D122: 0
A123: 123.00 | B123: 7872600 | C123: 7872600 Packaging Materials (price diff - Material Acc) | D123: (13,015.00)
A124: 124.00 | B124: 7872700 | C124: 7872700 WIP Lube Oil (price diff - Material Acc) | D124: 0
A125: 125.00 | B125: 7872800 | C125: 7872800 WIP Grease (price diff - Material Acc) | D125: (21,181.00)
A126: 126.00 | B126: 7872850 | C126: 7872850 Lubes By-Products (price diff - Material Acc) | D126: (11,917.00)
A127: 127.00 | B127: 7872900 | C127: 7872900 Trading - Lubes(price diff - Material Acc) | D127: 0
A128: 128.00 | B128: 7872950 | C128: 7872950 Trading - Grease (Texaco)-(price diff - Material A | D128: 0
A129: 129.00 | B129: 7902100 | C129: 7902100 Finished Lubes (Diff in Consumption Acc) | D129: (227,054.00)
A130: 130.00 | B130: 7902300 | C130: 7902300 Greases (Diff in Consumption Acc) | D130: (31,492.00)
A131: 131.00 | B131: 7902700 | C131: 7902700 Difference in Consumption - Lube Oils | D131: (198,113.00)
A132: 132.00 | B132: 7902800 | C132: 7902800 Difference in Consumption - WIP Greases | D132: (21,502.00)
A133: 133.00 | B133: 7905200 | C133: 7905200 Premium Motor Spirit (Vari part-part Transf) | D133: 500.00
A134: 134.00 | B134: 7905250 | C134: 7905250 Dual Purpose Kerosene (Vari part-part Transf) | D134: 0
A135: 135.00 | B135: 7905300 | C135: 7905300 Auto Gas Oil (Vari part-part Transf) | D135: 0
A136: 136.00 | B136: 7905600 | C136: 7905600 Finished Lubes (Vari part-part Transf) | D136: (70.00)
A137: 137.00 | B137: 7962000 | C137: 7962000 Base Oils(cons in oper- contra Acc) | D137: 153,366.00
A138: 138.00 | B138: 7962100 | C138: 7962100 Finished Lubes(cons in oper- contra Acc) | D138: 3,155.00
A139: 139.00 | B139: 7962200 | C139: 7962200 Additives(cons in oper- contra Acc) | D139: 42,579.00
A140: 140.00 | B140: 7962300 | C140: 7962300 Greases(cons in oper- contra Acc) | D140: 0
A141: 141.00 | B141: 7962400 | C141: 7962400 Specialties(cons in oper- contra Acc) | D141: 2,155.00
A142: 142.00 | B142: 7962500 | C142: 7962500 Special Fluids(cons in oper- contra Acc) | D142: 11.00
A143: 143.00 | B143: 7962600 | C143: 7962600 Packaging Materials (cons in oper- contra Acc) | D143: 25,877.00
A144: 144.00 | B144: 7962700 | C144: 7962700 Conusumed in operations - WIP Lube Oil | D144: 214,579.00
A145: 145.00 | B145: 7962800 | C145: 7962800 Conusumed in operations - WIP Greases | D145: 24,614.00
A146: 146.00 | B146: 7752540 | C146: Jetty & Logistics Ser -Oth Dir Pro-cost ( unallo) | D146: 500.00
A147: 147.00 | B147: 7962850 | C147: 7962850 Lubes By-Products(cons in oper- contra Acc) | D147: 0
A148: 148.00 | B148: 7962900 | C148: 7962900 Tra - Lubes(cons in oper- contra Acc) | D148: 0
A149: 149.00 | B149: 7969300 | C149: 7969300 Auto Gas Oil(cons in oper- cost ctr) | D149: 1,154.00
A150: 150.00 | B150: 2.0010. | C150: 2.0010.000 Cost of Sales | D150: 20,247,071.00
A151: 151.00
A152: 152.00 | B152: 7351350 | C152: 7351350 Other Income- Pump Repairs Recovery | D152: (5,317.00)
A153: 153.00 | B153: 7921100 | C153: 7921100 Transp Costs - Road/Rail - Local Aviation Fuels | D153: 57,577.00
A154: 154.00 | B154: 7921500 | C154: 7921500 Transp Costs - Road/Rail - Auto Gas Oil | D154: 19,337.00
A155: 155.00 | B155: 7922100 | C155: 7922100 Transp Costs - Finished Lubes | D155: 12,841.00
A156: 156.00 | B156: 8091025 | C156: 8091025 Office & Other Cleaning Expenses (contract labour) | D156: 5,217.00
A157: 157.00 | B157: 8201450 | C157: 8201450 Materials & Supplies - Others | D157: 395.00
A158: 158.00 | B158: 8231100 | C158: 8231100 Fuel Terminal Equipment Repairs | D158: 0
A159: 159.00 | B159: 8231125 | C159: 8231125 Pump Repairs | D159: 18,079.00
A160: 160.00 | B160: 8231150 | C160: 8231150 Generating Sets Maintenance & Repairs | D160: 731.00
A161: 161.00 | B161: 8231175 | C161: 8231175 Environmental Remediation | D161: (267.00)
A162: 162.00 | B162: 8231275 | C162: 8231275 Aviation Equipment Repairs | D162: 4,339.00
A163: 163.00 | B163: 8231300 | C163: 8231300 Tank Cleaning & Maintenance Expenses | D163: 4,220.00
A164: 164.00 | B164: 8231325 | C164: 8231325 Paving Expenses | D164: 47,467.00
A165: 165.00 | B165: 8231350 | C165: 8231350 EDP Equipment Maintenance | D165: 0
A166: 166.00 | B166: 8231500 | C166: 8231500 Other Equipment Repairs & Maintenance | D166: 28.00
A167: 167.00 | B167: 8231575 | C167: 8231575 Service Station Clean-Up Expenses | D167: 0
A168: 168.00 | B168: 8251025 | C168: 8251025 Rentals - Land | D168: 17,169.00
A169: 169.00 | B169: 8251050 | C169: 8251050 Rentals - Service Stations | D169: 22,132.00
A170: 170.00 | B170: 8251075 | C170: 8251075 Rentals - Plants & Terminals | D170: 6,502.00
A171: 171.00 | B171: 8251175 | C171: 8251175 Tools & Equipment Hire / Rental | D171: 0
A172: 172.00 | B172: 8251200 | C172: 8251200 Motor Truck Hire | D172: 156.00
A173: 173.00 | B173: 8431025 | C173: 8431025 Advertising Expenses (Adv & Sales pro) | D173: 6,504.00
A174: 174.00 | B174: 8431075 | C174: 8431075 Trades Fairs and Exhibitions (Adv & Sales pro) | D174: 0
A175: 175.00 | B175: 8431175 | C175: 8431175 Branding Costs (Adv & Sales pro) | D175: 0
A176: 176.00 | B176: 2.0011. | C176: 2.0011.000 Selling & Distribution | D176: 217,110.00
A177: 177.00
A178: 178.00 | B178: 8011050 | C178: 8011050 Basic Salaries - Regular Employees (MAEX) | D178: 37,845.00
A179: 179.00 | B179: 8011100 | C179: 8011100 Housing Allowances (MAEX) | D179: 45,366.00
A180: 180.00 | B180: 8011150 | C180: 8011150 Transport Allowances (MAEX) | D180: (254.00)
A181: 181.00 | B181: 8011200 | C181: 8011200 Leave Allowance - Local Staff (MAEX) | D181: 6,547.00
A182: 182.00 | B182: 8011280 | C182: 8011280 Shift Allowance (MAEX) | D182: 0
A183: 183.00 | B183: 8011340 | C183: 8011340 Driver Allowance (MAEX) | D183: 3,092.00
A184: 184.00 | B184: 8011350 | C184: 8011350 Other Allowances (MAEX) | D184: 4,136.00
A185: 185.00 | B185: 8011370 | C185: 8011370 Bonus - All Other (MAEX) | D185: 0
A186: 186.00 | B186: 8011375 | C186: 8011375 Notice Period (MAEX) | D186: 5,434.00
A187: 187.00 | B187: 8011650 | C187: 8011650 Short term contract employees - external (MAEX) | D187: 20.00
A188: 188.00 | B188: 8031025 | C188: 8031025 Pension Fund Expenses | D188: 11,378.00
A189: 189.00 | B189: 8031050 | C189: 8031050 Vacation Expense - Local staff | D189: 0
A190: 190.00 | B190: 8031100 | C190: 8031100 Social security benefits/charges - Local staff | D190: 957.00
A191: 191.00 | B191: 8031250 | C191: 8031250 Gratuity Costs | D191: 0
A192: 192.00 | B192: 8031450 | C192: 8031450 Education Grant | D192: 2,674.00
A193: 193.00 | B193: 8031475 | C193: 8031475 Tuition Aid Plan | D193: 0
A194: 194.00 | B194: 8031500 | C194: 8031500 Employee Car Cash Out Amortisation | D194: 2,752.00
A195: 195.00 | B195: 8031510 | C195: 8031510 Employee Car Grant Amortisation | D195: 1,430.00
A196: 196.00 | B196: 8031520 | C196: 8031520 Death / Disability Benefits | D196: 0
A197: 197.00 | B197: 8031550 | C197: 8031550 Other Employee Benefits | D197: 5,878.00
A198: 198.00 | B198: 8031555 | C198: 8031555 Long Service Award | D198: 0
A199: 199.00 | B199: 8031800 | C199: 8031800 Personal Income Tax (PAYE), Co. Expense Portion | D199: (412.00)
A200: 200.00 | B200: 8051050 | C200: 8051050 Training Expenses- Ovearseas | D200: 3,412.00
A201: 201.00 | B201: 8051075 | C201: 8051075 Training Expenses - Retailers | D201: 183.00
A202: 202.00 | B202: 2.1200. | C202: 2.1200.000 Payroll Expenses | D202: 130,438.00
A203: 203.00
A204: 204.00 | B204: 7751650 | C204: 7751650 Federal Airport Auth of Nigeria (FAAN) Charges | D204: 0
... 525 more rows

Sheet 2a. Adjusted Summary Sheet (hidden)
A1: ABCD | E1: 130.4.1.0010
A2: Client
A3: MRS Oil Nigeria PLC
A4: Prepared by
A5: T Jones
A6: Summary of Fixed Asset Movement
A13: Asset Class | C13: Leasehold Land & Building | E13: Plant & Machinery | G13: Motor Vehicles | I13: Computer Equipment | K13: Furniture & Fittings | M13: CWIP | O13: Total
A15: Cost
